Workbook

Sheet fatoura
C1: RK hardware and tools | D1: الرقم: | E1: 312
D2: التاريخ: | E2: 2019-06-02 | N2: =SUM($G$7:$G$23) -> 1135 | O2: دفعة | P2: رقم الشيك | Q2: تاريخ الشيك | R2: رقم الوصل | S2: صاحب الشيك
F3: رصيد سابق | G3: رصيد نهائي
B4: السيد: | C4: =IF(N9<>0,VLOOKUP(N9,asma2alzaba2en,2,FALSE),"") -> xx1 | F4: =IF(N9<>0,VLOOKUP(N9,asma2alzaba2en,5,FALSE),"") -> 0 | G4: =IF(B7<>0,(F4+N2),"") -> 1135
B6: كود | C6: الوصف | D6: عدد | E6: الوحدة | F6: السعر | G6: المجموع | H6: اسم الزبون | I6: رقم الفاتورة | J6: تاريخ | K6: الكلفة | Q6: اخر سعر | R6: الكلفة | S6: العدد الموجود
B7: b30 | C7: =IF(B7<>0,VLOOKUP(fatoura!B7,v,2,FALSE),"") -> صنف 5 | D7: 2 | E7: =IF(B7<>0,VLOOKUP(fatoura!B7,v,4,FALSE),"") -> 1000 | F7: 6 | G7: 12 | H7: =IF(B7<>"",$C$4,"") -> xx1 | I7: =IF(B7<>"",$E$1,"") -> 312 | J7: =IF(B7<>"",$E$2,"") -> 2019-06-02 | K7: =IF(B7<>0,VLOOKUP(fatoura!B7,v,6,FALSE),"") -> 5 | Q7: =IFERROR(IF(B7="","",LOOKUP(MAX(المبيعات!$J$2:$J$443),IF(المبيعات!$H$2:$H$443=$C$4,IF(المبيعات!$B$2:$B$443=$B7,ROW($I$2:$I$808)-ROW($I$2)+1)),المبيعات!$F$2:$F$443)),"") -> 4.45 | R7: =IFERROR(IF(C7="","",LOOKUP(MAX(المبيعات!$J$2:$J$443),IF(المبيعات!$H$2:$H$443=$C$4,IF(المبيعات!$B$2:$B$443=$B7,ROW($I$2:$I$808)-ROW($I$2)+1)),المبيعات!$K$2:$K$443)),"") -> 5 | S7: =IF(B7<>0,VLOOKUP(fatoura!B7,v,8,FALSE),"") -> 1548
B8: b25 | C8: =IF(B8<>0,VLOOKUP(fatoura!B8,v,2,FALSE),"") -> صنف 4 | D8: 3 | E8: =IF(B8<>0,VLOOKUP(fatoura!B8,v,4,FALSE),"") -> 1000 | F8: 5 | G8: 15 | H8: xx1 | I8: 312 | J8: 2019-06-02 | K8: =IF(B8<>0,VLOOKUP(fatoura!B8,v,6,FALSE),"") -> 4 | Q8: =IFERROR(IF(B8="","",LOOKUP(MAX(المبيعات!$J$2:$J$443),IF(المبيعات!$H$2:$H$443=$C$4,IF(المبيعات!$B$2:$B$443=$B8,ROW($I$2:$I$808)-ROW($I$2)+1)),المبيعات!$F$2:$F$443)),"") -> 3.9 | R8: =IFERROR(IF(C8="","",LOOKUP(MAX(المبيعات!$J$2:$J$443),IF(المبيعات!$H$2:$H$443=$C$4,IF(المبيعات!$B$2:$B$443=$B8,ROW($I$2:$I$808)-ROW($I$2)+1)),المبيعات!$K$2:$K$443)),"") -> 4 | S8: =IF(B8<>0,VLOOKUP(fatoura!B8,v,8,FALSE),"") -> 300
B9: b15 | C9: =IF(B9<>0,VLOOKUP(fatoura!B9,v,2,FALSE),"") -> صنف 1 | D9: 4 | E9: =IF(B9<>0,VLOOKUP(fatoura!B9,v,4,FALSE),"") -> 1000 | F9: 2 | G9: 8 | H9: xx1 | I9: 312 | J9: 2019-06-02 | K9: =IF(B9<>0,VLOOKUP(fatoura!B9,v,6,FALSE),"") -> 1 | N9: x1 | Q9: =IFERROR(IF(B9="","",LOOKUP(MAX(المبيعات!$J$2:$J$443),IF(المبيعات!$H$2:$H$443=$C$4,IF(المبيعات!$B$2:$B$443=$B9,ROW($I$2:$I$808)-ROW($I$2)+1)),المبيعات!$F$2:$F$443)),"") -> 3.15 | R9: =IFERROR(IF(C9="","",LOOKUP(MAX(المبيعات!$J$2:$J$443),IF(المبيعات!$H$2:$H$443=$C$4,IF(المبيعات!$B$2:$B$443=$B9,ROW($I$2:$I$808)-ROW($I$2)+1)),المبيعات!$K$2:$K$443)),"") -> 1 | S9: =IF(B9<>0,VLOOKUP(fatoura!B9,v,8,FALSE),"") -> 312
B10: 3 | C10: =IF(B10<>0,VLOOKUP(fatoura!B10,v,2,FALSE),"") -> دفعة | D10: 5 | E10: =IF(B10<>0,VLOOKUP(fatoura!B10,v,4,FALSE),"") -> 0 | F10: 20 | G10: 100 | H10: xx1 | I10: 312 | J10: 2019-06-02 | K10: =IF(B10<>0,VLOOKUP(fatoura!B10,v,6,FALSE),"") -> 0 | Q10: =IFERROR(IF(B10="","",LOOKUP(MAX(المبيعات!$J$2:$J$443),IF(المبيعات!$H$2:$H$443=$C$4,IF(المبيعات!$B$2:$B$443=$B10,ROW($I$2:$I$808)-ROW($I$2)+1)),المبيعات!$F$2:$F$443)),"") ->  | R10: =IFERROR(IF(C10="","",LOOKUP(MAX(المبيعات!$J$2:$J$443),IF(المبيعات!$H$2:$H$443=$C$4,IF(المبيعات!$B$2:$B$443=$B10,ROW($I$2:$I$808)-ROW($I$2)+1)),المبيعات!$K$2:$K$443)),"") ->  | S10: =IF(B10<>0,VLOOKUP(fatoura!B10,v,8,FALSE),"") -> 0
B11: b30 | C11: =IF(B11<>0,VLOOKUP(fatoura!B11,v,2,FALSE),"") -> صنف 5 | D11: 5 | E11: =IF(B11<>0,VLOOKUP(fatoura!B11,v,4,FALSE),"") -> 1000 | F11: 200 | G11: 1000 | H11: xx1 | I11: 312 | J11: 2019-06-02 | K11: =IF(B11<>0,VLOOKUP(fatoura!B11,v,6,FALSE),"") -> 5 | Q11: =IFERROR(IF(B11="","",LOOKUP(MAX(المبيعات!$J$2:$J$443),IF(المبيعات!$H$2:$H$443=$C$4,IF(المبيعات!$B$2:$B$443=$B11,ROW($I$2:$I$808)-ROW($I$2)+1)),المبيعات!$F$2:$F$443)),"") -> 4.45 | R11: =IFERROR(IF(C11="","",LOOKUP(MAX(المبيعات!$J$2:$J$443),IF(المبيعات!$H$2:$H$443=$C$4,IF(المبيعات!$B$2:$B$443=$B11,ROW($I$2:$I$808)-ROW($I$2)+1)),المبيعات!$K$2:$K$443)),"") -> 5 | S11: =IF(B11<>0,VLOOKUP(fatoura!B11,v,8,FALSE),"") -> 1548
C12: =IF(B12<>0,VLOOKUP(fatoura!B12,v,2,FALSE),"") ->  | E12: =IF(B12<>0,VLOOKUP(fatoura!B12,v,4,FALSE),"") ->  | G12: 0 | K12: =IF(B12<>0,VLOOKUP(fatoura!B12,v,6,FALSE),"") ->  | Q12: =IFERROR(IF(B12="","",LOOKUP(MAX(المبيعات!$J$2:$J$443),IF(المبيعات!$H$2:$H$443=$C$4,IF(المبيعات!$B$2:$B$443=$B12,ROW($I$2:$I$808)-ROW($I$2)+1)),المبيعات!$F$2:$F$443)),"") ->  | R12: =IFERROR(IF(C12="","",LOOKUP(MAX(المبيعات!$J$2:$J$443),IF(المبيعات!$H$2:$H$443=$C$4,IF(المبيعات!$B$2:$B$443=$B12,ROW($I$2:$I$808)-ROW($I$2)+1)),المبيعات!$K$2:$K$443)),"") ->  | S12: =IF(B12<>0,VLOOKUP(fatoura!B12,v,8,FALSE),"") -> 
C13: =IF(B13<>0,VLOOKUP(fatoura!B13,v,2,FALSE),"") ->  | E13: =IF(B13<>0,VLOOKUP(fatoura!B13,v,4,FALSE),"") ->  | G13: 0 | K13: =IF(B13<>0,VLOOKUP(fatoura!B13,v,6,FALSE),"") ->  | Q13: =IFERROR(IF(B13="","",LOOKUP(MAX(المبيعات!$J$2:$J$443),IF(المبيعات!$H$2:$H$443=$C$4,IF(المبيعات!$B$2:$B$443=$B13,ROW($I$2:$I$808)-ROW($I$2)+1)),المبيعات!$F$2:$F$443)),"") ->  | R13: =IFERROR(IF(C13="","",LOOKUP(MAX(المبيعات!$J$2:$J$443),IF(المبيعات!$H$2:$H$443=$C$4,IF(المبيعات!$B$2:$B$443=$B13,ROW($I$2:$I$808)-ROW($I$2)+1)),المبيعات!$K$2:$K$443)),"") ->  | S13: =IF(B13<>0,VLOOKUP(fatoura!B13,v,8,FALSE),"") -> 
C14: =IF(B14<>0,VLOOKUP(fatoura!B14,v,2,FALSE),"") ->  | E14: =IF(B14<>0,VLOOKUP(fatoura!B14,v,4,FALSE),"") ->  | G14: 0 | H14: =IF(B14<>"",$C$4,"") ->  | K14: =IF(B14<>0,VLOOKUP(fatoura!B14,v,6,FALSE),"") ->  | Q14: =IFERROR(IF(B14="","",LOOKUP(MAX(المبيعات!$J$2:$J$443),IF(المبيعات!$H$2:$H$443=$C$4,IF(المبيعات!$B$2:$B$443=$B14,ROW($I$2:$I$808)-ROW($I$2)+1)),المبيعات!$F$2:$F$443)),"") ->  | R14: =IFERROR(IF(C14="","",LOOKUP(MAX(المبيعات!$J$2:$J$443),IF(المبيعات!$H$2:$H$443=$C$4,IF(المبيعات!$B$2:$B$443=$B14,ROW($I$2:$I$808)-ROW($I$2)+1)),المبيعات!$K$2:$K$443)),"") ->  | S14: =IF(B14<>0,VLOOKUP(fatoura!B14,v,8,FALSE),"") -> 
C15: =IF(B15<>0,VLOOKUP(fatoura!B15,v,2,FALSE),"") ->  | E15: =IF(B15<>0,VLOOKUP(fatoura!B15,v,4,FALSE),"") ->  | G15: 0 | K15: =IF(B15<>0,VLOOKUP(fatoura!B15,v,6,FALSE),"") ->  | Q15: =IFERROR(IF(B15="","",LOOKUP(MAX(المبيعات!$J$2:$J$443),IF(المبيعات!$H$2:$H$443=$C$4,IF(المبيعات!$B$2:$B$443=$B15,ROW($I$2:$I$808)-ROW($I$2)+1)),المبيعات!$F$2:$F$443)),"") ->  | R15: =IFERROR(IF(C15="","",LOOKUP(MAX(المبيعات!$J$2:$J$443),IF(المبيعات!$H$2:$H$443=$C$4,IF(المبيعات!$B$2:$B$443=$B15,ROW($I$2:$I$808)-ROW($I$2)+1)),المبيعات!$K$2:$K$443)),"") ->  | S15: =IF(B15<>0,VLOOKUP(fatoura!B15,v,8,FALSE),"") -> 
C16: =IF(B16<>0,VLOOKUP(fatoura!B16,v,2,FALSE),"") ->  | E16: =IF(B16<>0,VLOOKUP(fatoura!B16,v,4,FALSE),"") ->  | G16: 0 | K16: =IF(B16<>0,VLOOKUP(fatoura!B16,v,6,FALSE),"") ->  | Q16: =IFERROR(IF(B16="","",LOOKUP(MAX(المبيعات!$J$2:$J$443),IF(المبيعات!$H$2:$H$443=$C$4,IF(المبيعات!$B$2:$B$443=$B16,ROW($I$2:$I$808)-ROW($I$2)+1)),المبيعات!$F$2:$F$443)),"") ->  | R16: =IFERROR(IF(C16="","",LOOKUP(MAX(المبيعات!$J$2:$J$443),IF(المبيعات!$H$2:$H$443=$C$4,IF(المبيعات!$B$2:$B$443=$B16,ROW($I$2:$I$808)-ROW($I$2)+1)),المبيعات!$K$2:$K$443)),"") ->  | S16: =IF(B16<>0,VLOOKUP(fatoura!B16,v,8,FALSE),"") -> 
C17: =IF(B17<>0,VLOOKUP(fatoura!B17,v,2,FALSE),"") ->  | E17: =IF(B17<>0,VLOOKUP(fatoura!B17,v,4,FALSE),"") ->  | G17: 0 | K17: =IF(B17<>0,VLOOKUP(fatoura!B17,v,6,FALSE),"") ->  | Q17: =IFERROR(IF(B17="","",LOOKUP(MAX(المبيعات!$J$2:$J$443),IF(المبيعات!$H$2:$H$443=$C$4,IF(المبيعات!$B$2:$B$443=$B17,ROW($I$2:$I$808)-ROW($I$2)+1)),المبيعات!$F$2:$F$443)),"") ->  | R17: =IFERROR(IF(C17="","",LOOKUP(MAX(المبيعات!$J$2:$J$443),IF(المبيعات!$H$2:$H$443=$C$4,IF(المبيعات!$B$2:$B$443=$B17,ROW($I$2:$I$808)-ROW($I$2)+1)),المبيعات!$K$2:$K$443)),"") ->  | S17: =IF(B17<>0,VLOOKUP(fatoura!B17,v,8,FALSE),"") -> 
C18: =IF(B18<>0,VLOOKUP(fatoura!B18,v,2,FALSE),"") ->  | E18: =IF(B18<>0,VLOOKUP(fatoura!B18,v,4,FALSE),"") ->  | G18: 0 | K18: =IF(B18<>0,VLOOKUP(fatoura!B18,v,6,FALSE),"") ->  | Q18: =IFERROR(IF(B18="","",LOOKUP(MAX(المبيعات!$J$2:$J$443),IF(المبيعات!$H$2:$H$443=$C$4,IF(المبيعات!$B$2:$B$443=$B18,ROW($I$2:$I$808)-ROW($I$2)+1)),المبيعات!$F$2:$F$443)),"") ->  | R18: =IFERROR(IF(C18="","",LOOKUP(MAX(المبيعات!$J$2:$J$443),IF(المبيعات!$H$2:$H$443=$C$4,IF(المبيعات!$B$2:$B$443=$B18,ROW($I$2:$I$808)-ROW($I$2)+1)),المبيعات!$K$2:$K$443)),"") ->  | S18: =IF(B18<>0,VLOOKUP(fatoura!B18,v,8,FALSE),"") -> 
C19: =IF(B19<>0,VLOOKUP(fatoura!B19,v,2,FALSE),"") ->  | E19: =IF(B19<>0,VLOOKUP(fatoura!B19,v,4,FALSE),"") ->  | G19: 0 | K19: =IF(B19<>0,VLOOKUP(fatoura!B19,v,6,FALSE),"") ->  | Q19: =IFERROR(IF(B19="","",LOOKUP(MAX(المبيعات!$J$2:$J$443),IF(المبيعات!$H$2:$H$443=$C$4,IF(المبيعات!$B$2:$B$443=$B19,ROW($I$2:$I$808)-ROW($I$2)+1)),المبيعات!$F$2:$F$443)),"") ->  | R19: =IFERROR(IF(C19="","",LOOKUP(MAX(المبيعات!$J$2:$J$443),IF(المبيعات!$H$2:$H$443=$C$4,IF(المبيعات!$B$2:$B$443=$B19,ROW($I$2:$I$808)-ROW($I$2)+1)),المبيعات!$K$2:$K$443)),"") ->  | S19: =IF(B19<>0,VLOOKUP(fatoura!B19,v,8,FALSE),"") -> 
C20: =IF(B20<>0,VLOOKUP(fatoura!B20,v,2,FALSE),"") ->  | E20: =IF(B20<>0,VLOOKUP(fatoura!B20,v,4,FALSE),"") ->  | G20: 0 | K20: =IF(B20<>0,VLOOKUP(fatoura!B20,v,6,FALSE),"") ->  | Q20: =IFERROR(IF(B20="","",LOOKUP(MAX(المبيعات!$J$2:$J$443),IF(المبيعات!$H$2:$H$443=$C$4,IF(المبيعات!$B$2:$B$443=$B20,ROW($I$2:$I$808)-ROW($I$2)+1)),المبيعات!$F$2:$F$443)),"") ->  | R20: =IFERROR(IF(C20="","",LOOKUP(MAX(المبيعات!$J$2:$J$443),IF(المبيعات!$H$2:$H$443=$C$4,IF(المبيعات!$B$2:$B$443=$B20,ROW($I$2:$I$808)-ROW($I$2)+1)),المبيعات!$K$2:$K$443)),"") ->  | S20: =IF(B20<>0,VLOOKUP(fatoura!B20,v,8,FALSE),"") -> 
C21: =IF(B21<>0,VLOOKUP(fatoura!B21,v,2,FALSE),"") ->  | E21: =IF(B21<>0,VLOOKUP(fatoura!B21,v,4,FALSE),"") ->  | G21: 0 | K21: =IF(B21<>0,VLOOKUP(fatoura!B21,v,6,FALSE),"") ->  | Q21: =IFERROR(IF(B21="","",LOOKUP(MAX(المبيعات!$J$2:$J$443),IF(المبيعات!$H$2:$H$443=$C$4,IF(المبيعات!$B$2:$B$443=$B21,ROW($I$2:$I$808)-ROW($I$2)+1)),المبيعات!$F$2:$F$443)),"") ->  | R21: =IFERROR(IF(C21="","",LOOKUP(MAX(المبيعات!$J$2:$J$443),IF(المبيعات!$H$2:$H$443=$C$4,IF(المبيعات!$B$2:$B$443=$B21,ROW($I$2:$I$808)-ROW($I$2)+1)),المبيعات!$K$2:$K$443)),"") ->  | S21: =IF(B21<>0,VLOOKUP(fatoura!B21,v,8,FALSE),"") -> 
C22: =IF(B22<>0,VLOOKUP(fatoura!B22,v,2,FALSE),"") ->  | E22: =IF(B22<>0,VLOOKUP(fatoura!B22,v,4,FALSE),"") ->  | G22: 0 | K22: =IF(B22<>0,VLOOKUP(fatoura!B22,v,6,FALSE),"") ->  | Q22: =IFERROR(IF(B22="","",LOOKUP(MAX(المبيعات!$J$2:$J$443),IF(المبيعات!$H$2:$H$443=$C$4,IF(المبيعات!$B$2:$B$443=$B22,ROW($I$2:$I$808)-ROW($I$2)+1)),المبيعات!$F$2:$F$443)),"") ->  | R22: =IFERROR(IF(C22="","",LOOKUP(MAX(المبيعات!$J$2:$J$443),IF(المبيعات!$H$2:$H$443=$C$4,IF(المبيعات!$B$2:$B$443=$B22,ROW($I$2:$I$808)-ROW($I$2)+1)),المبيعات!$K$2:$K$443)),"") ->  | S22: =IF(B22<>0,VLOOKUP(fatoura!B22,v,8,FALSE),"") -> 
C23: =IF(B23<>0,VLOOKUP(fatoura!B23,v,2,FALSE),"") ->  | E23: =IF(B23<>0,VLOOKUP(fatoura!B23,v,4,FALSE),"") ->  | G23: 0 | K23: =IF(B23<>0,VLOOKUP(fatoura!B23,v,6,FALSE),"") ->  | Q23: =IFERROR(IF(B23="","",LOOKUP(MAX(المبيعات!$J$2:$J$443),IF(المبيعات!$H$2:$H$443=$C$4,IF(المبيعات!$B$2:$B$443=$B23,ROW($I$2:$I$808)-ROW($I$2)+1)),المبيعات!$F$2:$F$443)),"") ->  | R23: =IFERROR(IF(C23="","",LOOKUP(MAX(المبيعات!$J$2:$J$443),IF(المبيعات!$H$2:$H$443=$C$4,IF(المبيعات!$B$2:$B$443=$B23,ROW($I$2:$I$808)-ROW($I$2)+1)),المبيعات!$K$2:$K$443)),"") ->  | S23: =IF(B23<>0,VLOOKUP(fatoura!B23,v,8,FALSE),"") -> 
C24: =IF(B24<>0,VLOOKUP(fatoura!B24,v,2,FALSE),"") ->  | E24: =IF(B24<>0,VLOOKUP(fatoura!B24,v,4,FALSE),"") ->  | G24: 0 | K24: =IF(B24<>0,VLOOKUP(fatoura!B24,v,6,FALSE),"") ->  | Q24: =IFERROR(IF(B24="","",LOOKUP(MAX(المبيعات!$J$2:$J$443),IF(المبيعات!$H$2:$H$443=$C$4,IF(المبيعات!$B$2:$B$443=$B24,ROW($I$2:$I$808)-ROW($I$2)+1)),المبيعات!$F$2:$F$443)),"") ->  | R24: =IFERROR(IF(C24="","",LOOKUP(MAX(المبيعات!$J$2:$J$443),IF(المبيعات!$H$2:$H$443=$C$4,IF(المبيعات!$B$2:$B$443=$B24,ROW($I$2:$I$808)-ROW($I$2)+1)),المبيعات!$K$2:$K$443)),"") ->  | S24: =IF(B24<>0,VLOOKUP(fatoura!B24,v,8,FALSE),"") -> 
C25: =IF(B25<>0,VLOOKUP(fatoura!B25,v,2,FALSE),"") ->  | E25: =IF(B25<>0,VLOOKUP(fatoura!B25,v,4,FALSE),"") ->  | G25: 0 | K25: =IF(B25<>0,VLOOKUP(fatoura!B25,v,6,FALSE),"") ->  | Q25: =IFERROR(IF(B25="","",LOOKUP(MAX(المبيعات!$J$2:$J$443),IF(المبيعات!$H$2:$H$443=$C$4,IF(المبيعات!$B$2:$B$443=$B25,ROW($I$2:$I$808)-ROW($I$2)+1)),المبيعات!$F$2:$F$443)),"") ->  | R25: =IFERROR(IF(C25="","",LOOKUP(MAX(المبيعات!$J$2:$J$443),IF(المبيعات!$H$2:$H$443=$C$4,IF(المبيعات!$B$2:$B$443=$B25,ROW($I$2:$I$808)-ROW($I$2)+1)),المبيعات!$K$2:$K$443)),"") ->  | S25: =IF(B25<>0,VLOOKUP(fatoura!B25,v,8,FALSE),"") -> 
C26: =IF(B26<>0,VLOOKUP(fatoura!B26,v,2,FALSE),"") ->  | E26: =IF(B26<>0,VLOOKUP(fatoura!B26,v,4,FALSE),"") ->  | G26: 0 | K26: =IF(B26<>0,VLOOKUP(fatoura!B26,v,6,FALSE),"") ->  | Q26: =IFERROR(IF(B26="","",LOOKUP(MAX(المبيعات!$J$2:$J$443),IF(المبيعات!$H$2:$H$443=$C$4,IF(المبيعات!$B$2:$B$443=$B26,ROW($I$2:$I$808)-ROW($I$2)+1)),المبيعات!$F$2:$F$443)),"") ->  | R26: =IFERROR(IF(C26="","",LOOKUP(MAX(المبيعات!$J$2:$J$443),IF(المبيعات!$H$2:$H$443=$C$4,IF(المبيعات!$B$2:$B$443=$B26,ROW($I$2:$I$808)-ROW($I$2)+1)),المبيعات!$K$2:$K$443)),"") ->  | S26: =IF(B26<>0,VLOOKUP(fatoura!B26,v,8,FALSE),"") -> 
C27: =IF(B27<>0,VLOOKUP(fatoura!B27,v,2,FALSE),"") ->  | E27: =IF(B27<>0,VLOOKUP(fatoura!B27,v,4,FALSE),"") ->  | G27: 0 | K27: =IF(B27<>0,VLOOKUP(fatoura!B27,v,6,FALSE),"") ->  | Q27: =IFERROR(IF(B27="","",LOOKUP(MAX(المبيعات!$J$2:$J$443),IF(المبيعات!$H$2:$H$443=$C$4,IF(المبيعات!$B$2:$B$443=$B27,ROW($I$2:$I$808)-ROW($I$2)+1)),المبيعات!$F$2:$F$443)),"") ->  | R27: =IFERROR(IF(C27="","",LOOKUP(MAX(المبيعات!$J$2:$J$443),IF(المبيعات!$H$2:$H$443=$C$4,IF(المبيعات!$B$2:$B$443=$B27,ROW($I$2:$I$808)-ROW($I$2)+1)),المبيعات!$K$2:$K$443)),"") ->  | S27: =IF(B27<>0,VLOOKUP(fatoura!B27,v,8,FALSE),"") -> 
C28: =IF(B28<>0,VLOOKUP(fatoura!B28,v,2,FALSE),"") ->  | E28: =IF(B28<>0,VLOOKUP(fatoura!B28,v,4,FALSE),"") ->  | G28: 0 | K28: =IF(B28<>0,VLOOKUP(fatoura!B28,v,6,FALSE),"") ->  | Q28: =IFERROR(IF(B28="","",LOOKUP(MAX(المبيعات!$J$2:$J$443),IF(المبيعات!$H$2:$H$443=$C$4,IF(المبيعات!$B$2:$B$443=$B28,ROW($I$2:$I$808)-ROW($I$2)+1)),المبيعات!$F$2:$F$443)),"") ->  | R28: =IFERROR(IF(C28="","",LOOKUP(MAX(المبيعات!$J$2:$J$443),IF(المبيعات!$H$2:$H$443=$C$4,IF(المبيعات!$B$2:$B$443=$B28,ROW($I$2:$I$808)-ROW($I$2)+1)),المبيعات!$K$2:$K$443)),"") ->  | S28: =IF(B28<>0,VLOOKUP(fatoura!B28,v,8,FALSE),"") -> 
C29: =IF(B29<>0,VLOOKUP(fatoura!B29,v,2,FALSE),"") ->  | E29: =IF(B29<>0,VLOOKUP(fatoura!B29,v,4,FALSE),"") ->  | G29: 0 | K29: =IF(B29<>0,VLOOKUP(fatoura!B29,v,6,FALSE),"") ->  | Q29: =IFERROR(IF(B29="","",LOOKUP(MAX(المبيعات!$J$2:$J$443),IF(المبيعات!$H$2:$H$443=$C$4,IF(المبيعات!$B$2:$B$443=$B29,ROW($I$2:$I$808)-ROW($I$2)+1)),المبيعات!$F$2:$F$443)),"") ->  | R29: =IFERROR(IF(C29="","",LOOKUP(MAX(المبيعات!$J$2:$J$443),IF(المبيعات!$H$2:$H$443=$C$4,IF(المبيعات!$B$2:$B$443=$B29,ROW($I$2:$I$808)-ROW($I$2)+1)),المبيعات!$K$2:$K$443)),"") ->  | S29: =IF(B29<>0,VLOOKUP(fatoura!B29,v,8,FALSE),"") -> 
C30: =IF(B30<>0,VLOOKUP(fatoura!B30,v,2,FALSE),"") ->  | E30: =IF(B30<>0,VLOOKUP(fatoura!B30,v,4,FALSE),"") ->  | G30: 0 | K30: =IF(B30<>0,VLOOKUP(fatoura!B30,v,6,FALSE),"") ->  | Q30: =IFERROR(IF(B30="","",LOOKUP(MAX(المبيعات!$J$2:$J$443),IF(المبيعات!$H$2:$H$443=$C$4,IF(المبيعات!$B$2:$B$443=$B30,ROW($I$2:$I$808)-ROW($I$2)+1)),المبيعات!$F$2:$F$443)),"") ->  | R30: =IFERROR(IF(C30="","",LOOKUP(MAX(المبيعات!$J$2:$J$443),IF(المبيعات!$H$2:$H$443=$C$4,IF(المبيعات!$B$2:$B$443=$B30,ROW($I$2:$I$808)-ROW($I$2)+1)),المبيعات!$K$2:$K$443)),"") ->  | S30: =IF(B30<>0,VLOOKUP(fatoura!B30,v,8,FALSE),"") -> 
C31: =IF(B31<>0,VLOOKUP(fatoura!B31,v,2,FALSE),"") ->  | E31: =IF(B31<>0,VLOOKUP(fatoura!B31,v,4,FALSE),"") ->  | G31: 0 | K31: =IF(B31<>0,VLOOKUP(fatoura!B31,v,6,FALSE),"") ->  | Q31: =IFERROR(IF(B31="","",LOOKUP(MAX(المبيعات!$J$2:$J$443),IF(المبيعات!$H$2:$H$443=$C$4,IF(المبيعات!$B$2:$B$443=$B31,ROW($I$2:$I$808)-ROW($I$2)+1)),المبيعات!$F$2:$F$443)),"") ->  | R31: =IFERROR(IF(C31="","",LOOKUP(MAX(المبيعات!$J$2:$J$443),IF(المبيعات!$H$2:$H$443=$C$4,IF(المبيعات!$B$2:$B$443=$B31,ROW($I$2:$I$808)-ROW($I$2)+1)),المبيعات!$K$2:$K$443)),"") ->  | S31: =IF(B31<>0,VLOOKUP(fatoura!B31,v,8,FALSE),"") -> 
C32: =IF(B32<>0,VLOOKUP(fatoura!B32,v,2,FALSE),"") ->  | E32: =IF(B32<>0,VLOOKUP(fatoura!B32,v,4,FALSE),"") ->  | G32: 0 | K32: =IF(B32<>0,VLOOKUP(fatoura!B32,v,6,FALSE),"") ->  | Q32: =IFERROR(IF(B32="","",LOOKUP(MAX(المبيعات!$J$2:$J$443),IF(المبيعات!$H$2:$H$443=$C$4,IF(المبيعات!$B$2:$B$443=$B32,ROW($I$2:$I$808)-ROW($I$2)+1)),المبيعات!$F$2:$F$443)),"") ->  | R32: =IFERROR(IF(C32="","",LOOKUP(MAX(المبيعات!$J$2:$J$443),IF(المبيعات!$H$2:$H$443=$C$4,IF(المبيعات!$B$2:$B$443=$B32,ROW($I$2:$I$808)-ROW($I$2)+1)),المبيعات!$K$2:$K$443)),"") ->  | S32: =IF(B32<>0,VLOOKUP(fatoura!B32,v,8,FALSE),"") -> 
C33: =IF(B33<>0,VLOOKUP(fatoura!B33,v,2,FALSE),"") ->  | E33: =IF(B33<>0,VLOOKUP(fatoura!B33,v,4,FALSE),"") ->  | G33: 0 | K33: =IF(B33<>0,VLOOKUP(fatoura!B33,v,6,FALSE),"") ->  | Q33: =IFERROR(IF(B33="","",LOOKUP(MAX(المبيعات!$J$2:$J$443),IF(المبيعات!$H$2:$H$443=$C$4,IF(المبيعات!$B$2:$B$443=$B33,ROW($I$2:$I$808)-ROW($I$2)+1)),المبيعات!$F$2:$F$443)),"") ->  | R33: =IFERROR(IF(C33="","",LOOKUP(MAX(المبيعات!$J$2:$J$443),IF(المبيعات!$H$2:$H$443=$C$4,IF(المبيعات!$B$2:$B$443=$B33,ROW($I$2:$I$808)-ROW($I$2)+1)),المبيعات!$K$2:$K$443)),"") ->  | S33: =IF(B33<>0,VLOOKUP(fatoura!B33,v,8,FALSE),"") -> 
C34: =IF(B34<>0,VLOOKUP(fatoura!B34,v,2,FALSE),"") ->  | E34: =IF(B34<>0,VLOOKUP(fatoura!B34,v,4,FALSE),"") ->  | G34: 0 | K34: =IF(B34<>0,VLOOKUP(fatoura!B34,v,6,FALSE),"") ->  | Q34: =IFERROR(IF(B34="","",LOOKUP(MAX(المبيعات!$J$2:$J$443),IF(المبيعات!$H$2:$H$443=$C$4,IF(المبيعات!$B$2:$B$443=$B34,ROW($I$2:$I$808)-ROW($I$2)+1)),المبيعات!$F$2:$F$443)),"") ->  | R34: =IFERROR(IF(C34="","",LOOKUP(MAX(المبيعات!$J$2:$J$443),IF(المبيعات!$H$2:$H$443=$C$4,IF(المبيعات!$B$2:$B$443=$B34,ROW($I$2:$I$808)-ROW($I$2)+1)),المبيعات!$K$2:$K$443)),"") ->  | S34: =IF(B34<>0,VLOOKUP(fatoura!B34,v,8,FALSE),"") -> 
C35: =IF(B35<>0,VLOOKUP(fatoura!B35,v,2,FALSE),"") ->  | E35: =IF(B35<>0,VLOOKUP(fatoura!B35,v,4,FALSE),"") ->  | G35: 0 | K35: =IF(B35<>0,VLOOKUP(fatoura!B35,v,6,FALSE),"") ->  | Q35: =IFERROR(IF(B35="","",LOOKUP(MAX(المبيعات!$J$2:$J$443),IF(المبيعات!$H$2:$H$443=$C$4,IF(المبيعات!$B$2:$B$443=$B35,ROW($I$2:$I$808)-ROW($I$2)+1)),المبيعات!$F$2:$F$443)),"") ->  | R35: =IFERROR(IF(C35="","",LOOKUP(MAX(المبيعات!$J$2:$J$443),IF(المبيعات!$H$2:$H$443=$C$4,IF(المبيعات!$B$2:$B$443=$B35,ROW($I$2:$I$808)-ROW($I$2)+1)),المبيعات!$K$2:$K$443)),"") ->  | S35: =IF(B35<>0,VLOOKUP(fatoura!B35,v,8,FALSE),"") -> 
C36: =IF(B36<>0,VLOOKUP(fatoura!B36,v,2,FALSE),"") ->  | E36: =IF(B36<>0,VLOOKUP(fatoura!B36,v,4,FALSE),"") ->  | G36: 0 | K36: =IF(B36<>0,VLOOKUP(fatoura!B36,v,6,FALSE),"") ->  | Q36: =IFERROR(IF(B36="","",LOOKUP(MAX(المبيعات!$J$2:$J$443),IF(المبيعات!$H$2:$H$443=$C$4,IF(المبيعات!$B$2:$B$443=$B36,ROW($I$2:$I$808)-ROW($I$2)+1)),المبيعات!$F$2:$F$443)),"") ->  | R36: =IFERROR(IF(C36="","",LOOKUP(MAX(المبيعات!$J$2:$J$443),IF(المبيعات!$H$2:$H$443=$C$4,IF(المبيعات!$B$2:$B$443=$B36,ROW($I$2:$I$808)-ROW($I$2)+1)),المبيعات!$K$2:$K$443)),"") ->  | S36: =IF(B36<>0,VLOOKUP(fatoura!B36,v,8,FALSE),"") -> 
C37: =IF(B37<>0,VLOOKUP(fatoura!B37,v,2,FALSE),"") ->  | E37: =IF(B37<>0,VLOOKUP(fatoura!B37,v,4,FALSE),"") ->  | G37: 0 | K37: =IF(B37<>0,VLOOKUP(fatoura!B37,v,6,FALSE),"") ->  | Q37: =IFERROR(IF(B37="","",LOOKUP(MAX(المبيعات!$J$2:$J$443),IF(المبيعات!$H$2:$H$443=$C$4,IF(المبيعات!$B$2:$B$443=$B37,ROW($I$2:$I$808)-ROW($I$2)+1)),المبيعات!$F$2:$F$443)),"") ->  | R37: =IFERROR(IF(C37="","",LOOKUP(MAX(المبيعات!$J$2:$J$443),IF(المبيعات!$H$2:$H$443=$C$4,IF(المبيعات!$B$2:$B$443=$B37,ROW($I$2:$I$808)-ROW($I$2)+1)),المبيعات!$K$2:$K$443)),"") ->  | S37: =IF(B37<>0,VLOOKUP(fatoura!B37,v,8,FALSE),"") -> 
C38: =IF(B38<>0,VLOOKUP(fatoura!B38,v,2,FALSE),"") ->  | E38: =IF(B38<>0,VLOOKUP(fatoura!B38,v,4,FALSE),"") ->  | G38: 0 | K38: =IF(B38<>0,VLOOKUP(fatoura!B38,v,6,FALSE),"") ->  | Q38: =IFERROR(IF(B38="","",LOOKUP(MAX(المبيعات!$J$2:$J$443),IF(المبيعات!$H$2:$H$443=$C$4,IF(المبيعات!$B$2:$B$443=$B38,ROW($I$2:$I$808)-ROW($I$2)+1)),المبيعات!$F$2:$F$443)),"") ->  | R38: =IFERROR(IF(C38="","",LOOKUP(MAX(المبيعات!$J$2:$J$443),IF(المبيعات!$H$2:$H$443=$C$4,IF(المبيعات!$B$2:$B$443=$B38,ROW($I$2:$I$808)-ROW($I$2)+1)),المبيعات!$K$2:$K$443)),"") ->  | S38: =IF(B38<>0,VLOOKUP(fatoura!B38,v,8,FALSE),"") -> 
C39: =IF(B39<>0,VLOOKUP(fatoura!B39,v,2,FALSE),"") ->  | E39: =IF(B39<>0,VLOOKUP(fatoura!B39,v,4,FALSE),"") ->  | G39: 0 | I39: =IF(B39<>"",$E$1,"") ->  | J39: =IF(B39<>"",$E$2,"") ->  | K39: =IF(B39<>0,VLOOKUP(fatoura!B39,v,6,FALSE),"") ->  | Q39: =IFERROR(IF(B39="","",LOOKUP(MAX(المبيعات!$J$2:$J$443),IF(المبيعات!$H$2:$H$443=$C$4,IF(المبيعات!$B$2:$B$443=$B39,ROW($I$2:$I$808)-ROW($I$2)+1)),المبيعات!$F$2:$F$443)),"") ->  | R39: =IFERROR(IF(C39="","",LOOKUP(MAX(المبيعات!$J$2:$J$443),IF(المبيعات!$H$2:$H$443=$C$4,IF(المبيعات!$B$2:$B$443=$B39,ROW($I$2:$I$808)-ROW($I$2)+1)),المبيعات!$K$2:$K$443)),"") ->  | S39: =IF(B39<>0,VLOOKUP(fatoura!B39,v,8,FALSE),"") -> 
C40: =IF(B40<>0,VLOOKUP(fatoura!B40,v,2,FALSE),"") ->  | E40: =IF(B40<>0,VLOOKUP(fatoura!B40,v,4,FALSE),"") ->  | G40: 0 | I40: =IF(B40<>"",$E$1,"") ->  | J40: =IF(B40<>"",$E$2,"") ->  | K40: =IF(B40<>0,VLOOKUP(fatoura!B40,v,6,FALSE),"") ->  | Q40: =IFERROR(IF(B40="","",LOOKUP(MAX(المبيعات!$J$2:$J$443),IF(المبيعات!$H$2:$H$443=$C$4,IF(المبيعات!$B$2:$B$443=$B40,ROW($I$2:$I$808)-ROW($I$2)+1)),المبيعات!$F$2:$F$443)),"") ->  | R40: =IFERROR(IF(C40="","",LOOKUP(MAX(المبيعات!$J$2:$J$443),IF(المبيعات!$H$2:$H$443=$C$4,IF(المبيعات!$B$2:$B$443=$B40,ROW($I$2:$I$808)-ROW($I$2)+1)),المبيعات!$K$2:$K$443)),"") ->  | S40: =IF(B40<>0,VLOOKUP(fatoura!B40,v,8,FALSE),"") -> 
C41: =IF(B41<>0,VLOOKUP(fatoura!B41,v,2,FALSE),"") ->  | E41: =IF(B41<>0,VLOOKUP(fatoura!B41,v,4,FALSE),"") ->  | G41: 0 | I41: =IF(B41<>"",$E$1,"") ->  | J41: =IF(B41<>"",$E$2,"") ->  | K41: =IF(B41<>0,VLOOKUP(fatoura!B41,v,6,FALSE),"") ->  | Q41: =IFERROR(IF(B41="","",LOOKUP(MAX(المبيعات!$J$2:$J$443),IF(المبيعات!$H$2:$H$443=$C$4,IF(المبيعات!$B$2:$B$443=$B41,ROW($I$2:$I$808)-ROW($I$2)+1)),المبيعات!$F$2:$F$443)),"") ->  | R41: =IFERROR(IF(C41="","",LOOKUP(MAX(المبيعات!$J$2:$J$443),IF(المبيعات!$H$2:$H$443=$C$4,IF(المبيعات!$B$2:$B$443=$B41,ROW($I$2:$I$808)-ROW($I$2)+1)),المبيعات!$K$2:$K$443)),"") ->  | S41: =IF(B41<>0,VLOOKUP(fatoura!B41,v,8,FALSE),"") -> 

Sheet استعلام_المبيعات
B1: كود الصنف | C1: الصنف | D1: العدد | E1: الوحدة | F1: السعر | G1: مجموع | H1: اسم الزبون | I1: رقم الفاتورة | J1: تاريخ الفاتورة | L1: =SUM(G10:G1048576) -> 14867.5
H2: =IF(H3<>0,VLOOKUP(H3,asma2alzaba2en,2,FALSE),"") -> xx1 | L2: =SUM(F8+L1) -> 0
H3: x1
C5: RK hardware and tools | D5: الرقم: | E5: =I11 -> 1
D6: التاريخ: | E6: =J11 -> 2018-09-27
F7: رصيد سابق | G7: رصيد نهائي
B8: السيد: | C8: =H11 -> xx1 | F8: =IFERROR(VLOOKUP(H11,esmalzaboun,4,FALSE),"0")-L1 -> -14867.5 | G8: =IF(I2<1,L1,IF(I2>0,L2)) -> 14867.5
A10: كود تسلسلي | B10: كود الصنف | C10: الصنف | D10: العدد | E10: الوحدة | F10: السعر | G10: مجموع | H10: اسم الزبون | I10: رقم الفاتورة | J10: تاريخ الفاتورة
A11: 2 | B11: b15 | C11: صنف 1 | D11: 72 | E11: 1000 | F11: 3.15 | G11: 226.8 | H11: xx1 | I11: 1 | J11: 2018-09-27
A12: 3 | B12: b18 | C12: صنف 2 | D12: 90 | E12: 1000 | F12: 3.35 | G12: 301.5 | H12: xx1 | I12: 1 | J12: 2018-09-27
A13: 4 | B13: b25 | C13: صنف 4 | D13: 60 | E13: 1000 | F13: 3.9 | G13: 234 | H13: xx1 | I13: 1 | J13: 2018-09-27
A14: 5 | B14: b30 | C14: صنف 5 | D14: 60 | E14: 1000 | F14: 4.45 | G14: 267 | H14: xx1 | I14: 1 | J14: 2018-09-27
A15: 6 | B15: b40 | C15: صنف 6 | D15: 80 | E15: 1000 | F15: 5.5 | G15: 440 | H15: xx1 | I15: 1 | J15: 2018-09-27
A16: 7 | B16: b50 | C16: صنف 7 | D16: 100 | E16: 1000 | F16: 6.5 | G16: 650 | H16: xx1 | I16: 1 | J16: 2018-09-27
A17: 8 | B17: b70 | C17: صنف 9 | D17: 9 | E17: 1000 | F17: 10.85 | G17: 97.65 | H17: xx1 | I17: 1 | J17: 2018-09-27
A18: 9 | B18: b100 | C18: صنف 10 | D18: 8.4 | E18: 1000 | F18: 16.25 | G18: 136.5 | H18: xx1 | I18: 1 | J18: 2018-09-27
A19: 89 | B19: gab17 | C19: صنف 12 | D19: 18 | E19: برميل | F19: 27 | G19: 486 | H19: xx1 | I19: 42 | J19: 2018-11-15
A20: 90 | B20: gab3 | C20: صنف 11 | D20: 100 | E20: غالون | F20: 5 | G20: 500 | H20: xx1 | I20: 42 | J20: 2018-11-15
A21: 91 | B21: gas4 | C21: صنف 13 | D21: 8 | E21: غالون | F21: 9.25 | G21: 74 | H21: xx1 | I21: 42 | J21: 2018-11-15
A22: 111 | B22: gas17 | C22: صنف 14 | D22: 4 | E22: برميل | F22: 39 | G22: 156 | H22: xx1 | I22: 68 | J22: 2018-12-11
A23: 112 | B23: gab17 | C23: صنف 12 | D23: 10 | E23: برميل | F23: 27 | G23: 270 | H23: xx1 | I23: 68 | J23: 2018-12-11
A24: 113 | B24: b30 | C24: صنف 5 | D24: 60 | E24: 1000 | F24: 4.45 | G24: 267 | H24: xx1 | I24: 68 | J24: 2018-12-11
A25: 114 | B25: b70 | C25: صنف 9 | D25: 15 | E25: 1000 | F25: 10.85 | G25: 162.75 | H25: xx1 | I25: 68 | J25: 2018-12-11
A26: 121 | B26: gas4 | C26: صنف 13 | D26: 20 | E26: غالون | F26: 9.25 | G26: 185 | H26: xx1 | I26: 71 | J26: 2018-12-17
A27: 122 | B27: gas17 | C27: صنف 14 | D27: 5 | E27: برميل | F27: 39 | G27: 195 | H27: xx1 | I27: 71 | J27: 2018-12-17
A28: 128 | B28: gab.50 | C28: صنف 15 | D28: 50 | E28: مرطبان | F28: 1 | G28: 50 | H28: xx1 | I28: 85 | J28: 2019-01-11
A29: 129 | B29: gas.50 | C29: صنف 16 | D29: 25 | E29: مرطبان | F29: 1.5 | G29: 37.5 | H29: xx1 | I29: 85 | J29: 2019-01-11
A30: 139 | B30: gab17 | C30: صنف 12 | D30: 10 | E30: برميل | F30: 27 | G30: 270 | H30: xx1 | I30: 90 | J30: 2019-01-16
A31: 140 | B31: gas17 | C31: صنف 14 | D31: 3 | E31: برميل | F31: 39 | G31: 117 | H31: xx1 | I31: 90 | J31: 2019-01-16
A32: 141 | B32: gas17 | C32: صنف 14 | D32: 3 | E32: برميل | F32: 39 | G32: 117 | H32: xx1 | I32: 95 | J32: 2019-01-22
A33: 142 | B33: 756 | C33: صنف 29 | D33: 15 | E33: ربطة 10 | F33: 11 | G33: 165 | H33: xx1 | I33: 98 | J33: 2019-01-30
A34: 146 | B34: b20 | C34: صنف 3 | D34: 90 | E34: 1000 | F34: 3.5 | G34: 315 | H34: xx1 | I34: 107 | J34: 2019-02-04
A35: 147 | B35: b25 | C35: صنف 4 | D35: 60 | E35: 1000 | F35: 3.9 | G35: 234 | H35: xx1 | I35: 107 | J35: 2019-02-04
A36: 148 | B36: b30 | C36: صنف 5 | D36: 60 | E36: 1000 | F36: 4.45 | G36: 267 | H36: xx1 | I36: 107 | J36: 2019-02-04
A37: 149 | B37: b50 | C37: صنف 7 | D37: 25 | E37: 1000 | F37: 6.5 | G37: 162.5 | H37: xx1 | I37: 107 | J37: 2019-02-04
A38: 150 | B38: gabt25 | C38: صنف 21 | D38: 1 | E38: برميل | F38: 35 | G38: 35 | H38: xx1 | I38: 108 | J38: 2019-02-04
A39: 151 | B39: nt1.8 | C39: صنف 34 | D39: 5 | E39: صندوق 6 | F39: 18 | G39: 90 | H39: xx1 | I39: 108 | J39: 2019-02-04
A40: 170 | B40: lw25 | C40: صنف 38 | D40: 10 | E40: صندوق | F40: 12.5 | G40: 125 | H40: xx1 | I40: 116 | J40: 2019-02-06
A41: 171 | B41: lw19 | C41: صنف 37 | D41: 5 | E41: صندوق | F41: 12.5 | G41: 62.5 | H41: xx1 | I41: 116 | J41: 2019-02-06
A42: 172 | B42: lw50 | C42: صنف 39 | D42: 5 | E42: صندوق | F42: 12.5 | G42: 62.5 | H42: xx1 | I42: 116 | J42: 2019-02-06
A43: 173 | B43: ln80 | C43: صنف 36 | D43: 2 | E43: صندوق 36 | F43: 16.5 | G43: 33 | H43: xx1 | I43: 116 | J43: 2019-02-06
A44: 174 | B44: nt1.8 | C44: صنف 34 | D44: 10 | E44: صندوق 6 | F44: 18 | G44: 180 | H44: xx1 | I44: 116 | J44: 2019-02-06
A45: 175 | B45: shd | C45: صنف 40 | D45: 3 | E45: صندوق 25 | F45: 44 | G45: 132 | H45: xx1 | I45: 116 | J45: 2019-02-06
A46: 176 | B46: sh3 | C46: صنف 35 | D46: 5 | E46: صندوق 25 | F46: 28.5 | G46: 142.5 | H46: xx1 | I46: 116 | J46: 2019-02-06
A47: 307 | B47: f15 | C47: صنف 42 | D47: 40 | E47: وحدة | F47: 1.25 | G47: 50 | H47: xx1 | I47: 135 | J47: 2019-02-15
A48: 308 | B48: f20 | C48: صنف 43 | D48: 40 | E48: وحدة | F48: 1.5 | G48: 60 | H48: xx1 | I48: 135 | J48: 2019-02-15
A49: 309 | B49: f25 | C49: صنف 44 | D49: 300 | E49: وحدة | F49: 1.75 | G49: 525 | H49: xx1 | I49: 135 | J49: 2019-02-15
A50: 310 | B50: f30 | C50: صنف 45 | D50: 300 | E50: وحدة | F50: 1.9 | G50: 570 | H50: xx1 | I50: 135 | J50: 2019-02-15
A51: 311 | B51: f40 | C51: صنف 46 | D51: 20 | E51: وحدة | F51: 2.65 | G51: 53 | H51: xx1 | I51: 135 | J51: 2019-02-15
A52: 312 | B52: f50 | C52: صنف 47 | D52: 20 | E52: وحدة | F52: 3.5 | G52: 70 | H52: xx1 | I52: 135 | J52: 2019-02-15
A53: 313 | B53: gab17 | C53: صنف 12 | D53: 10 | E53: برميل | F53: 27 | G53: 270 | H53: xx1 | I53: 135 | J53: 2019-02-15
A54: 314 | B54: gas17 | C54: صنف 14 | D54: 3 | E54: برميل | F54: 39 | G54: 117 | H54: xx1 | I54: 135 | J54: 2019-02-15
A55: 315 | B55: 5k10 | C55: صنف 26 | D55: 5 | E55: كيلو | F55: 1.6 | G55: 8 | H55: xx1 | I55: 135 | J55: 2019-02-15
A56: 316 | B56: 5k12 | C56: صنف 27 | D56: 5 | E56: كيلو | F56: 1.5 | G56: 7.5 | H56: xx1 | I56: 135 | J56: 2019-02-15
A57: 317 | B57: 1408 | C57: صنف 48 | D57: 60 | E57: وحدة | F57: 1.3 | G57: 78 | H57: xx1 | I57: 135 | J57: 2019-02-15
A58: 318 | B58: 1410 | C58: صنف 49 | D58: 100 | E58: وحدة | F58: 1.5 | G58: 150 | H58: xx1 | I58: 135 | J58: 2019-02-15
A59: 319 | B59: 1414 | C59: صنف 50 | D59: 60 | E59: وحدة | F59: 2 | G59: 120 | H59: xx1 | I59: 135 | J59: 2019-02-15
A60: 320 | B60: shd | C60: صنف 40 | D60: 3 | E60: صندوق 25 | F60: 44 | G60: 132 | H60: xx1 | I60: 135 | J60: 2019-02-15
A61: 226 | B61: nt1.8 | C61: صنف 34 | D61: 10 | E61: صندوق 6 | F61: 18 | G61: 180 | H61: xx1 | I61: 143 | J61: 2019-02-21
A62: 227 | B62: lw25 | C62: صنف 38 | D62: 10 | E62: صندوق | F62: 12 | G62: 120 | H62: xx1 | I62: 143 | J62: 2019-02-21
A63: 228 | B63: lw50 | C63: صنف 39 | D63: 5 | E63: صندوق | F63: 12 | G63: 60 | H63: xx1 | I63: 143 | J63: 2019-02-21
A64: 233 | B64: gas4 | C64: صنف 13 | D64: 10 | E64: غالون | F64: 9.25 | G64: 92.5 | H64: xx1 | I64: 153 | J64: 2019-02-26
A65: 255 | B65: gas17 | C65: صنف 14 | D65: 2 | E65: برميل | F65: 38 | G65: 76 | H65: xx1 | I65: 160 | J65: 2019-03-02
A66: 256 | B66: nt1.8 | C66: صنف 34 | D66: 10 | E66: صندوق 6 | F66: 18 | G66: 180 | H66: xx1 | I66: 160 | J66: 2019-03-02
A67: 257 | B67: lw25 | C67: صنف 38 | D67: 5 | E67: صندوق | F67: 12 | G67: 60 | H67: xx1 | I67: 160 | J67: 2019-03-02
A68: 258 | B68: lw19 | C68: صنف 37 | D68: 5 | E68: صندوق | F68: 12 | G68: 60 | H68: xx1 | I68: 160 | J68: 2019-03-02
A69: 274 | B69: gab17 | C69: صنف 12 | D69: 5 | E69: برميل | F69: 27 | G69: 135 | H69: xx1 | I69: 175 | J69: 2019-03-12
A70: 275 | B70: lw25 | C70: صنف 38 | D70: 5 | E70: صندوق | F70: 12 | G70: 60 | H70: xx1 | I70: 175 | J70: 2019-03-12
A71: 276 | B71: lw50 | C71: صنف 39 | D71: 5 | E71: صندوق | F71: 12 | G71: 60 | H71: xx1 | I71: 175 | J71: 2019-03-12
A72: 277 | B72: sh3 | C72: صنف 35 | D72: 4 | E72: صندوق 25 | F72: 28.5 | G72: 114 | H72: xx1 | I72: 175 | J72: 2019-03-12
A73: 283 | B73: bab80 | C73: صنف 68 | D73: 5 | E73: كف 50 | F73: 10.25 | G73: 51.25 | H73: xx1 | I73: 177 | J73: 2019-03-13
A74: 284 | B74: ba7180 | C74: صنف 78 | D74: 10 | E74: كف 50 | F74: 7.8 | G74: 78 | H74: xx1 | I74: 177 | J74: 2019-03-13
A75: 287 | B75: lw25 | C75: صنف 38 | D75: 4 | E75: صندوق | F75: 12 | G75: 48 | H75: xx1 | I75: 179 | J75: 2019-03-14
A76: 288 | B76: bis120 | C76: صنف 61 | D76: 10 | E76: علبة 50 | F76: 9 | G76: 90 | H76: xx1 | I76: 179 | J76: 2019-03-14
A77: 289 | B77: bis150 | C77: صنف 62 | D77: 3 | E77: علبة 50 | F77: 9 | G77: 27 | H77: xx1 | I77: 179 | J77: 2019-03-14
A78: 290 | B78: nt1.8 | C78: صنف 34 | D78: 10 | E78: صندوق 6 | F78: 18 | G78: 180 | H78: xx1 | I78: 179 | J78: 2019-03-14
A79: 291 | B79: bis40 | C79: صنف 54 | D79: 3 | E79: علبة 50 | F79: 9.75 | G79: 29.25 | H79: xx1 | I79: 180 | J79: 2019-03-15
A80: 292 | B80: bis80 | C80: صنف 57 | D80: 5 | E80: علبة 50 | F80: 9.35 | G80: 46.75 | H80: xx1 | I80: 180 | J80: 2019-03-15
A81: 293 | B81: bis100 | C81: صنف 59 | D81: 5 | E81: علبة 50 | F81: 9.35 | G81: 46.75 | H81: xx1 | I81: 180 | J81: 2019-03-15
A82: 295 | B82: gab3 | C82: صنف 11 | D82: 15 | E82: غالون | F82: 5.25 | G82: 78.75 | H82: xx1 | I82: 185 | J82: 2019-03-19
A83: 296 | B83: gas.50 | C83: صنف 16 | D83: 5 | E83: مرطبان | F83: 1.5 | G83: 7.5 | H83: xx1 | I83: 185 | J83: 2019-03-19
A84: 297 | B84: lw19 | C84: صنف 37 | D84: 2 | E84: صندوق | F84: 12 | G84: 24 | H84: xx1 | I84: 185 | J84: 2019-03-19
A85: 298 | B85: lw25 | C85: صنف 38 | D85: 4 | E85: صندوق | F85: 12 | G85: 48 | H85: xx1 | I85: 185 | J85: 2019-03-19
A86: 299 | B86: lw50 | C86: صنف 39 | D86: 2 | E86: صندوق | F86: 12 | G86: 24 | H86: xx1 | I86: 185 | J86: 2019-03-19
A87: 311 | B87: sh3 | C87: صنف 35 | D87: 5 | E87: صندوق 25 | F87: 28.5 | G87: 142.5 | H87: xx1 | I87: 190 | J87: 2019-03-20
A88: 312 | B88: lw50 | C88: صنف 39 | D88: 1 | E88: صندوق | F88: 12 | G88: 12 | H88: xx1 | I88: 190 | J88: 2019-03-20
A89: 313 | B89: lw25 | C89: صنف 38 | D89: 2 | E89: صندوق | F89: 12 | G89: 24 | H89: xx1 | I89: 190 | J89: 2019-03-20
A90: 314 | B90: bis80 | C90: صنف 57 | D90: 5 | E90: علبة 50 | F90: 9.35 | G90: 46.75 | H90: xx1 | I90: 190 | J90: 2019-03-20
A91: 315 | B91: nt1.8 | C91: صنف 34 | D91: 5 | E91: صندوق 6 | F91: 18 | G91: 90 | H91: xx1 | I91: 190 | J91: 2019-03-20
A92: 316 | B92: ba7120 | C92: صنف 76 | D92: 5 | E92: كف 50 | F92: 7.75 | G92: 38.75 | H92: xx1 | I92: 190 | J92: 2019-03-20
A93: 317 | B93: ba7150 | C93: صنف 77 | D93: 5 | E93: كف 50 | F93: 7.75 | G93: 38.75 | H93: xx1 | I93: 190 | J93: 2019-03-20
A94: 318 | B94: bab320 | C94: صنف 74 | D94: 5 | E94: كف 50 | F94: 10 | G94: 50 | H94: xx1 | I94: 190 | J94: 2019-03-20
A95: 323 | B95: gab17 | C95: صنف 12 | D95: 4 | E95: برميل | F95: 27 | G95: 108 | H95: xx1 | I95: 193 | J95: 2019-03-23
A96: 324 | B96: gas17 | C96: صنف 14 | D96: 2 | E96: برميل | F96: 38 | G96: 76 | H96: xx1 | I96: 193 | J96: 2019-03-23
A97: 325 | B97: nt1.8 | C97: صنف 34 | D97: 5 | E97: صندوق 6 | F97: 18 | G97: 90 | H97: xx1 | I97: 194 | J97: 2019-03-23
A98: 326 | B98: bis150 | C98: صنف 62 | D98: 5 | E98: علبة 50 | F98: 9 | G98: 45 | H98: xx1 | I98: 194 | J98: 2019-03-23
A99: 327 | B99: gas.50 | C99: صنف 16 | D99: 15 | E99: مرطبان | F99: 1.5 | G99: 22.5 | H99: xx1 | I99: 194 | J99: 2019-03-23
A100: 355 | B100: gab3 | C100: صنف 11 | D100: 20 | E100: غالون | F100: 5 | G100: 100 | H100: xx1 | I100: 229 | J100: 2019-04-04
A101: 356 | B101: gas4 | C101: صنف 13 | D101: 10 | E101: غالون | F101: 9.25 | G101: 92.5 | H101: xx1 | I101: 229 | J101: 2019-04-04
A102: 357 | B102: shd | C102: صنف 40 | D102: 2 | E102: صندوق 25 | F102: 43 | G102: 86 | H102: xx1 | I102: 229 | J102: 2019-04-04
A103: 358 | B103: sh3 | C103: صنف 35 | D103: 5 | E103: صندوق 25 | F103: 28 | G103: 140 | H103: xx1 | I103: 229 | J103: 2019-04-04
A104: 360 | B104: nt1.8 | C104: صنف 34 | D104: 10 | E104: صندوق 6 | F104: 18 | G104: 180 | H104: xx1 | I104: 231 | J104: 2019-04-05
A105: 361 | B105: lw50 | C105: صنف 39 | D105: 4 | E105: صندوق | F105: 12 | G105: 48 | H105: xx1 | I105: 231 | J105: 2019-04-05
A106: 362 | B106: gab.50 | C106: صنف 15 | D106: 40 | E106: مرطبان | F106: 1 | G106: 40 | H106: xx1 | I106: 231 | J106: 2019-04-05
A107: 370 | B107: lw19 | C107: صنف 37 | D107: 5 | E107: صندوق | F107: 12 | G107: 60 | H107: xx1 | I107: 239 | J107: 2019-04-10
A108: 371 | B108: lw25 | C108: صنف 38 | D108: 5 | E108: صندوق | F108: 12 | G108: 60 | H108: xx1 | I108: 239 | J108: 2019-04-10
A109: 372 | B109: lw50 | C109: صنف 39 | D109: 5 | E109: صندوق | F109: 12 | G109: 60 | H109: xx1 | I109: 239 | J109: 2019-04-10
A110: 373 | B110: gab17 | C110: صنف 12 | D110: 10 | E110: برميل | F110: 27 | G110: 270 | H110: xx1 | I110: 239 | J110: 2019-04-10
A111: 374 | B111: gas17 | C111: صنف 14 | D111: 4 | E111: برميل | F111: 38 | G111: 152 | H111: xx1 | I111: 239 | J111: 2019-04-10
A112: 383 | B112: lw25 | C112: صنف 38 | D112: 10 | E112: صندوق | F112: 12 | G112: 120 | H112: xx1 | I112: 251 | J112: 2019-04-15
A113: 384 | B113: lw50 | C113: صنف 39 | D113: 5 | E113: صندوق | F113: 12 | G113: 60 | H113: xx1 | I113: 251 | J113: 2019-04-15
A114: 385 | B114: ln80 | C114: صنف 36 | D114: 2 | E114: صندوق 36 | F114: 16.5 | G114: 33 | H114: xx1 | I114: 251 | J114: 2019-04-15
A115: 386 | B115: nt1.8 | C115: صنف 34 | D115: 15 | E115: صندوق 6 | F115: 18 | G115: 270 | H115: xx1 | I115: 251 | J115: 2019-04-15
A116: 387 | B116: shd | C116: صنف 40 | D116: 3 | E116: صندوق 25 | F116: 43 | G116: 129 | H116: xx1 | I116: 251 | J116: 2019-04-15
A117: 388 | B117: kas25m | C117: صنف 98 | D117: 1 | E117: ربطة | F117: 3.25 | G117: 3.25 | H117: xx1 | I117: 251 | J117: 2019-04-15
A118: 390 | B118: gabt25 | C118: صنف 21 | D118: 3 | E118: برميل | F118: 34 | G118: 102 | H118: xx1 | I118: 258 | J118: 2019-04-17
A119: 588 | B119: f25 | C119: صنف 44 | D119: 5 | E119: وحدة | F119: 1.75 | G119: 8.75 | H119: xx1 | I119: 259 | J119: 2019-04-19
A120: 589 | B120: f30 | C120: صنف 45 | D120: 42 | E120: وحدة | F120: 1.9 | G120: 79.8 | H120: xx1 | I120: 259 | J120: 2019-04-19
A121: 414 | B121: sh3 | C121: صنف 35 | D121: 5 | E121: صندوق 25 | F121: 28 | G121: 140 | H121: xx1 | I121: 289 | J121: 2019-04-29
A122: 415 | B122: gab3 | C122: صنف 11 | D122: 20 | E122: غالون | F122: 5 | G122: 100 | H122: xx1 | I122: 289 | J122: 2019-04-29
A123: 416 | B123: gab17 | C123: صنف 12 | D123: 5 | E123: برميل | F123: 27 | G123: 135 | H123: xx1 | I123: 289 | J123: 2019-04-29
A124: 417 | B124: nt1.8 | C124: صنف 34 | D124: 10 | E124: صندوق 6 | F124: 18 | G124: 180 | H124: xx1 | I124: 289 | J124: 2019-04-29

Sheet استعلام_حساب
A1: الاسم | B1: فاتورة | C1: قيمة الفاتورة | D1: دفعة | E1: رقم الوصل | F1: رقم الشيك | G1: التاريخ | H1: تاريخ الشيك | I1: صاحب الشيك
A2: =IF(A3<>0,VLOOKUP(A3,asma2alzaba2en,2,FALSE),"") -> xx1
A3: x1
D5: كشف حساب
D6: =$A$2 -> xx1
A8: الاسم | B8: فاتورة | C8: قيمة الفاتورة | D8: دفعة | E8: رقم الوصل | F8: رقم الشيك | G8: التاريخ | H8: تاريخ الشيك | I8: صاحب الشيك | J8: الرصيد
A9: xx1 | C9: 343 | E9: 46 | G9: 2018-11-20 | J9: =IF(A9<>0,(C9-D9),"") -> 343
A10: xx1 | D10: 343 | E10: 7791 | G10: 2018-11-20 | J10: =IF(A10<>0,SUM(J9+C10-D10),"") -> 0
A11: xx1 | C11: 195 | E11: 80 | G11: 2019-01-07 | J11: 195
A12: xx1 | D12: 195 | E12: 72 | G12: 2019-01-07 | J12: 0
A13: xx1 | C13: 95 | E13: 84 | G13: 2019-01-10 | J13: 95
A14: xx1 | D14: 95 | E14: 77 | G14: 2019-01-10 | J14: 0
A15: xx1 | C15: 45.5 | E15: 118 | G15: 2019-02-07 | J15: 45.5
A16: xx1 | D16: 45.5 | E16: 52 | G16: 2019-02-08 | J16: 0
A17: xx1 | C17: 152 | E17: 157 | G17: 2019-03-01 | J17: 152
A18: xx1 | D18: 152 | E18: 81 | G18: 2019-03-02 | J18: 0
A19: xx1 | C19: 270 | E19: 261 | G19: 2019-04-19 | J19: 270
A20: xx1 | D20: 270 | E20: 3160 | G20: 2019-04-20 | J20: 0
J74: =IF(A74<>0,SUM(J73+C74-D74),"") -> 
J138: =IF(A138<>0,SUM(J137+C138-D138),"") -> 
J202: =IF(A202<>0,SUM(J201+C202-D202),"") -> 
J266: =IF(A266<>0,SUM(J265+C266-D266),"") -> 
J330: =IF(A330<>0,SUM(J329+C330-D330),"") -> 
J394: =IF(A394<>0,SUM(J393+C394-D394),"") -> 
J458: =IF(A458<>0,SUM(J457+C458-D458),"") -> 
J522: =IF(A522<>0,SUM(J521+C522-D522),"") -> 
J586: =IF(A586<>0,SUM(J585+C586-D586),"") -> 
J650: =IF(A650<>0,SUM(J649+C650-D650),"") -> 
J714: =IF(A714<>0,SUM(J713+C714-D714),"") -> 
J778: =IF(A778<>0,SUM(J777+C778-D778),"") -> 
J842: =IF(A842<>0,SUM(J841+C842-D842),"") -> 
J906: =IF(A906<>0,SUM(J905+C906-D906),"") -> 
J970: =IF(A970<>0,SUM(J969+C970-D970),"") -> 
J1034: =IF(A1034<>0,SUM(J1033+C1034-D1034),"") -> 
J1098: =IF(A1098<>0,SUM(J1097+C1098-D1098),"") -> 
J1162: =IF(A1162<>0,SUM(J1161+C1162-D1162),"") -> 
J1226: =IF(A1226<>0,SUM(J1225+C1226-D1226),"") -> 
J1290: =IF(A1290<>0,SUM(J1289+C1290-D1290),"") -> 
J1354: =IF(A1354<>0,SUM(J1353+C1354-D1354),"") -> 
J1418: =IF(A1418<>0,SUM(J1417+C1418-D1418),"") -> 
J1482: =IF(A1482<>0,SUM(J1481+C1482-D1482),"") -> 
J1546: =IF(A1546<>0,SUM(J1545+C1546-D1546),"") -> 
J1610: =IF(A1610<>0,SUM(J1609+C1610-D1610),"") -> 
J1674: =IF(A1674<>0,SUM(J1673+C1674-D1674),"") -> 
J1738: =IF(A1738<>0,SUM(J1737+C1738-D1738),"") -> 
J1802: =IF(A1802<>0,SUM(J1801+C1802-D1802),"") -> 
J1866: =IF(A1866<>0,SUM(J1865+C1866-D1866),"") -> 
J1930: =IF(A1930<>0,SUM(J1929+C1930-D1930),"") -> 
J1994: =IF(A1994<>0,SUM(J1993+C1994-D1994),"") -> 

Sheet كشف حساب
A1: الاسم | B1: فاتورة | C1: قيمة الفاتورة | D1: دفعة | E1: رقم الوصل | F1: رقم الشيك | G1: التاريخ | H1: تاريخ الشيك | I1: صاحب الشيك | Q1: رامي | R1: =SUMIFS($C$2:$C$999747,$A$2:$A$999747,Q1) -> 0 | S1: =SUMIFS($D$2:$D$999747,$A$2:$A$999747,Q1) -> 0 | T1: =R1-S1 -> 0
A2: xx4 | C2: 2353.45 | E2: 1 | F2: 293 | G2: 2018-09-27 | H2: 2019-09-08
A3: xx5 | C3: 2341.1 | E3: 2 | F3: 294 | G3: 2018-09-30 | H3: 2019-06-02
A4: xx6 | C4: 1082.23 | E4: 23 | F4: 296 | G4: 2018-10-08 | H4: 2019-03-09
A5: xx7 | C5: 1130.2 | E5: 24 | G5: 2018-10-05
A6: xx11 | C6: 1776.5 | E6: 25 | G6: 2018-10-05
A7: xx13 | C7: 4058.063 | E7: 26 | G7: 2018-10-09
A8: xx10 | C8: 777.67 | E8: 27 | G8: 2018-10-04
A9: xx12 | C9: 624.7 | E9: 28 | G9: 2018-10-08
A10: xx15 | C10: 2923 | E10: 29 | G10: 2018-10-15
A11: xx8 | C11: 250.5 | E11: 30 | G11: 2018-10-15
A12: xx14 | C12: 125.12 | E12: 31 | G12: 2018-10-13
A13: xx9 | C13: 1302.55 | E13: 33 | G13: 2018-10-17
A14: xx10 | D14: 777.67 | E14: 7761 | F14: 184 | G14: 2018-10-04
A15: xx11 | D15: 1776.5 | E15: 7762 | F15: 34950 | G15: 2018-10-04 | H15: 2018-12-15
A16: xx5 | D16: 1000 | E16: 7763 | G16: 2018-10-04
A17: xx7 | D17: 1130.2 | E17: 7764 | F17: 492941 | G17: 2018-10-05 | H17: 2018-12-10
A18: xx12 | D18: 624.7 | E18: 7766 | G18: 2018-10-08
A19: xx6 | D19: 1082.23 | E19: 7767 | F19: 286760 | G19: 2018-10-08 | H19: 2018-11-25
A20: xx13 | D20: 3749.178 | E20: 7768 | G20: 2018-10-18
A21: xx13 | D21: 308.885 | E21: 7769 | G21: 2018-10-18
A22: xx14 | D22: 125.12 | E22: 777 | G22: 2018-10-13
A23: xx5 | D23: 1341.1 | E23: 7773 | G23: 2018-10-13
A24: xx15 | D24: 2923 | E24: 7774 | G24: 2018-10-15
A25: xx8 | D25: 250.5 | E25: 7775 | G25: 2018-10-15
A26: xx5 | C26: 528 | E26: 34 | G26: 2018-11-02
A27: xx14 | C27: 61.2 | E27: 36 | G27: 2018-11-03
A28: xx14 | D28: 61.2 | E28: 7779 | G28: 2018-11-03
A29: xx3 | C29: 3.3 | E29: 37 | G29: 2018-11-03
A30: xx3 | D30: 3.3 | E30: 7781 | G30: 2018-11-03
A31: xx9 | D31: 303 | E31: 7778 | G31: 2018-11-02
A32: xx4 | D32: 353.45 | E32: 7780 | G32: 2018-11-03
A33: xx6 | C33: 0 | E33: 38 | G33: 2018-11-03
A34: xx8 | C34: 218 | E34: 39 | G34: 2018-11-16
A35: xx10 | C35: 122.4 | E35: 40 | G35: 2018-11-16
A36: xx10 | D36: 122.4 | E36: 7782 | G36: 2018-11-16
A37: xx5 | D37: 528 | E37: 7783 | G37: 2018-11-14
A38: xx9 | D38: 999.55 | E38: 7784 | G38: 2018-11-14
A39: xx8 | D39: 218 | E39: 7786 | G39: 2018-11-16
A40: xx4 | C40: 1060 | E40: 42 | G40: 2018-11-15
A41: xx4 | D41: 500 | E41: 7788 | G41: 2018-11-15
A42: xx1 | C42: 343 | E42: 46 | G42: 2018-11-20
A43: xx13 | C43: 500 | E43: 47 | G43: 2018-11-23
A44: xx7 | C44: 25 | E44: 48 | G44: 2018-11-23
A45: xx1 | D45: 343 | E45: 7791 | G45: 2018-11-20
A46: xx3 | C46: 66.5 | E46: 50 | G46: 2018-11-21
A47: xx7 | D47: 25 | E47: 7795 | G47: 2018-11-21
A48: xx3 | D48: 66.5 | E48: 7792 | G48: 2018-11-21
A49: xx11 | C49: 0 | E49: 51 | G49: 2018-11-21
A50: xx6 | C50: 327.4 | E50: 52 | G50: 2018-11-28
A51: xx9 | C51: 422.85 | E51: 55 | G51: 2018-11-30
A52: xx15 | C52: 97.5 | E52: 56 | G52: 2018-11-30
A53: xx8 | C53: 153 | E53: 58 | G53: 2018-12-07
A54: xx15 | C54: 378 | E54: 59 | G54: 2018-12-01
A55: xx4 | D55: 500 | E55: 7796 | G55: 2018-12-01
A56: xx13 | D56: 500 | E56: 7797 | G56: 2018-11-23
A57: xx6 | D57: 327 | E57: 7798 | F57: 000119 | G57: 2018-11-28 | H57: 2019-02-28
A58: xx15 | D58: 97.5 | E58: 7800 | G58: 2018-11-30
A59: xx14 | C59: 101 | E59: 66 | G59: 2018-12-11
A60: xx4 | C60: 855.75 | E60: 68 | G60: 2018-12-11
A61: xx5 | C61: 705.25 | E61: 69 | G61: 2018-12-11
A62: xx14 | D62: 101 | E62: 57 | G62: 2018-12-11
A63: xx9 | D63: 500 | E63: 60 | F63: 689308/031 | G63: 2018-12-14 | H63: 2018-12-13
A64: xx5 | D64: 705.25 | E64: 61 | G64: 2018-12-14
A65: xx8 | D65: 153 | E65: 54 | G65: 2018-12-10
A66: xx15 | D66: 378 | E66: 55 | G66: 2018-12-10
A67: xx9 | C67: 415.65 | E67: 70 | G67: 2018-12-17
A68: xx4 | C68: 380 | E68: 71 | G68: 2018-12-17
A69: xx8 | C69: 162.5 | E69: 74 | G69: 2018-12-21
A70: xx12 | C70: 276 | E70: 78 | G70: 2018-12-19
A71: xx5 | C71: 325 | E71: 79 | G71: 2018-12-24
A72: xx1 | C72: 195 | E72: 80 | G72: 2019-01-07
A73: xx12 | D73: 276 | E73: 68 | G73: 2018-12-19
A74: xx8 | D74: 162.5 | E74: 70 | G74: 2018-12-21
A75: xx4 | D75: 3030 | E75: 71 | G75: 2018-12-23
A76: xx1 | D76: 195 | E76: 72 | G76: 2019-01-07
A77: xx1 | C77: 95 | E77: 84 | G77: 2019-01-10
A78: xx4 | C78: 87.5 | E78: 85 | G78: 2019-01-11
A79: xx9 | C79: 1325.25 | E79: 87 | G79: 2019-01-11
A80: xx14 | C80: 33 | E80: 89 | G80: 2019-01-11
A81: xx4 | C81: 387 | E81: 90 | G81: 2019-01-16
A82: xx1 | D82: 95 | E82: 77 | G82: 2019-01-10
A83: xx14 | D83: 33 | E83: 80 | G83: 2019-01-11
A84: xx9 | D84: 400 | E84: 82 | F84: 043064 | G84: 2019-01-11 | H84: 2019-01-28
A85: xx5 | D85: 325 | E85: 83 | G85: 2019-01-11
A86: xx4 | C86: 117 | E86: 95 | G86: 2019-01-22
A87: xx4 | C87: 165 | E87: 98 | G87: 2019-01-30
A88: xx9 | C88: 165 | E88: 99 | G88: 2019-01-31
A89: xx5 | C89: 426.5 | E89: 100 | G89: 2019-01-31
A90: xx4 | C90: 978.5 | E90: 107 | G90: 2019-02-04
A91: xx4 | C91: 125 | E91: 108 | G91: 2019-02-04
A92: xx6 | C92: 1991.2 | E92: 110 | G92: 2019-02-06
A93: xx4 | C93: 737.5 | E93: 116 | G93: 2019-02-06
A94: xx5 | D94: 426.5 | E94: 98 | G94: 2019-02-06
A95: xx5 | C95: 382.5 | E95: 117 | G95: 2019-02-07
A96: xx1 | C96: 45.5 | E96: 118 | G96: 2019-02-07
A97: xx8 | C97: 109 | E97: 120 | G97: 2019-02-08
A98: xx9 | D98: 665 | E98: 90 | F98: 134333 | G98: 2019-01-31 | H98: 2019-02-15
A99: xx9 | C99: 266 | E99: 121 | G99: 2019-02-08
A100: xx15 | C100: 220 | E100: 122 | G100: 2019-02-08
A101: xx1 | D101: 45.5 | E101: 52 | G101: 2019-02-08
A102: xx8 | D102: 109 | E102: 53 | G102: 2019-02-08
A103: xx15 | D103: 220 | E103: 54 | G103: 2019-02-08
A104: xx9 | D104: 200 | E104: 55 | G104: 2019-02-08
A105: xx5 | D105: 382.5 | E105: 56 | G105: 2019-02-08
A106: xx9 | C106: 165 | E106: 125 | G106: 2019-02-09
A107: xx7 | C107: 180 | E107: 126 | G107: 2019-02-09
A108: xx9 | C108: 309.6 | E108: 127 | G108: 2019-02-11
A109: xx10 | C109: 72.5 | E109: 131 | G109: 2019-02-13
A110: xx14 | C110: 33.25 | E110: 132 | G110: 2019-02-13
A111: xx15 | C111: 591.6 | E111: 134 | G111: 2019-02-15
A112: xx4 | D112: 200 | E112: 60 | G112: 2019-02-11
A113: xx10 | D113: 72.5 | E113: 61 | G113: 2019-02-13
A114: xx6 | D114: 2200 | E114: 63 | F114: 286789 | G114: 2019-02-13 | H114: 2019-04-25
A115: xx4 | D115: 866 | E115: 65 | F115: 499225 | G115: 2019-02-14 | H115: 2019-04-05
A116: xx9 | D116: 426 | E116: 66 | F116: 513663 | G116: 2019-02-14 | H116: 2019-02-11
A117: xx14 | D117: 33.25 | E117: 67 | G117: 2019-02-14
A118: xx4 | C118: 2210.5 | E118: 135 | G118: 2019-02-15
A119: xx9 | C119: 360 | E119: 136 | G119: 2019-02-15
A120: xx5 | C120: 2012.5 | E120: 138 | G120: 2019-02-16
A121: xx9 | C121: 57 | E121: 139 | G121: 2019-02-16
A122: xx7 | C122: 61.5 | E122: 140 | G122: 2019-02-16
A123: xx7 | D123: 200 | E123: 69 | G123: 2019-02-16
A124: xx15 | C124: 49.6 | E124: 142 | G124: 2019-02-21
A125: xx4 | C125: 360 | E125: 143 | G125: 2019-02-21
A126: xx15 | D126: 641.2 | E126: 72 | F126: 001627 | G126: 2019-02-21 | H126: 2019-02-21
A127: xx9 | D127: 300 | E127: 73 | G127: 2019-02-21
A128: xx7 | C128: 246 | E128: 145 | G128: 2019-02-22
A129: xx13 | C129: 330 | E129: 146 | G129: 2019-02-22
A130: xx8 | C130: 950 | E130: 149 | G130: 2019-02-22
A131: xx13 | D131: 330 | E131: 77 | G131: 2019-02-22
A132: xx8 | D132: 650 | E132: 76 | G132: 2019-02-22
A133: xx5 | D133: 500 | E133: 80 | G133: 2019-02-23
A134: xx4 | C134: 92.5 | E134: 153 | G134: 2019-02-26
A135: xx7 | C135: 1047 | E135: 154 | G135: 2019-03-01
A136: xx9 | C136: 860 | E136: 155 | G136: 2019-03-01
A137: xx1 | C137: 152 | E137: 157 | G137: 2019-03-01
A138: xx5 | C138: 1007 | E138: 158 | G138: 2019-03-01
A139: xx5 | C139: 180 | E139: 159 | G139: 2019-03-02
A140: xx4 | C140: 376 | E140: 160 | G140: 2019-03-02
A141: xx6 | C141: 85 | E141: 162 | G141: 2019-03-06
A142: xx10 | C142: 560 | E142: 164 | G142: 2019-03-06
A143: xx1 | D143: 152 | E143: 81 | G143: 2019-03-02
A144: xx5 | D144: 300 | E144: 87 | G144: 2019-03-02
A145: xx8 | D145: 300 | E145: 88 | G145: 2019-03-02
A146: xx9 | D146: 450 | E146: 89 | F146: 000048 | G146: 2019-03-02 | H146: 2019-03-26
A147: xx9 | C147: 357 | E147: 165 | G147: 2019-03-08
A148: xx10 | D148: 300 | E148: 90 | G148: 2019-03-06
A149: xx13 | C149: 120 | E149: 168 | G149: 2019-03-09
A150: xx10 | C150: 414 | E150: 170 | G150: 2019-03-09
A151: xx9 | D151: 300 | E151: 92 | G151: 2019-03-09
A152: xx5 | D152: 250 | E152: 93 | G152: 2019-03-09
A153: xx13 | D153: 120 | E153: 94 | G153: 2019-03-09
A154: xx8 | C154: 72 | E154: 174 | G154: 2019-03-13
A155: xx4 | C155: 369 | E155: 175 | G155: 2019-03-12
A156: xx6 | C156: 490 | E156: 176 | G156: 2019-03-13
A157: xx4 | C157: 129.25 | E157: 177 | G157: 2019-03-13
A158: xx4 | D158: 500 | E158: 97 | G158: 2019-03-13
A159: xx3 | C159: 95.1 | E159: 178 | G159: 2019-03-14
A160: xx4 | C160: 345 | E160: 179 | G160: 2019-03-14
A161: xx4 | C161: 122.75 | E161: 180 | G161: 2019-03-15
A162: xx10 | D162: 300 | E162: 98 | G162: 2019-03-13
A163: xx8 | D163: 72 | E163: 100 | G163: 2019-03-13
A164: xx15 | C164: 160 | E164: 184 | G164: 2019-03-19
A165: xx4 | C165: 182.25 | E165: 185 | G165: 2019-03-19
A166: xx10 | C166: 28.5 | E166: 186 | G166: 2019-03-20
A167: xx9 | C167: 1624.58 | E167: 188 | G167: 2019-03-21
A168: xx4 | C168: 442.75 | E168: 190 | G168: 2019-03-20
A169: xx3 | D169: 95.1 | E169: 1 | G169: 2019-03-13
A170: xx9 | D170: 200 | E170: 2 | G170: 2019-03-20
A171: xx7 | D171: 200 | E171: 3 | G171: 2019-03-15
A172: xx5 | D172: 250 | E172: 7 | G172: 2019-03-16
A173: xx5 | C173: 60 | E173: 191 | G173: 2019-03-22
A174: xx8 | C174: 271.6 | E174: 192 | G174: 2019-03-21
A175: xx10 | D175: 200 | E175: 8 | G175: 2019-03-20
A176: xx8 | D176: 271.6 | E176: 11 | G176: 2019-03-21
A177: xx9 | D177: 500 | E177: 12 | F177: 000207 | G177: 2019-03-21 | H177: 2019-05-25
A178: xx4 | C178: 184 | E178: 193 | G178: 2019-03-23
A179: xx4 | C179: 157.5 | E179: 194 | G179: 2019-03-23
A180: xx5 | D180: 250 | E180: 15 | G180: 2019-03-23
A181: xx15 | D181: 160 | E181: 16 | G181: 2019-03-23
A182: xx2 | C182: 30 | E182: 199 | G182: 2019-03-27
A183: xx10 | D183: 202.5 | E183: 17 | G183: 2019-03-27
A184: xx2 | D184: 30 | E184: 19 | G184: 2019-03-27
A185: xx6 | C185: 144 | E185: 200 | G185: 2019-03-27
A186: xx10 | C186: 33 | E186: 201 | G186: 2019-03-27
A187: xx9 | C187: 346.25 | E187: 202 | G187: 2019-03-28
A188: xx15 | C188: 160 | E188: 203 | G188: 2019-03-28
A189: xx8 | C189: 66 | E189: 204 | G189: 2019-03-29
A190: xx9 | D190: 700 | E190: 22 | F190: 310721 | G190: 2019-03-28 | H190: 2019-04-25
A191: xx15 | D191: 160 | E191: 23 | G191: 2019-03-29
A192: xx8 | D192: 66 | E192: 24 | G192: 2019-03-29
A193: xx5 | D193: 250 | E193: 25 | G193: 2019-03-30
A194: xx7 | D194: 600 | E194: 26 | F194: 696387 | G194: 2019-03-30 | H194: 2019-03-30
A195: xx4 | D195: 1500 | E195: 27 | G195: 2019-04-01
A196: xx6 | C196: 326.6 | E196: 216 | G196: 2019-04-03
A197: xx12 | C197: 106 | E197: 219 | G197: 2019-04-03
A198: xx6 | C198: 6 | E198: 227 | G198: 2019-04-03
A199: xx4 | C199: 418.5 | E199: 229 | G199: 2019-04-04
A200: xx8 | C200: 108 | E200: 230 | G200: 2019-04-05
... 59 more rows

Sheet المبيعات
A1: كود تسلسلي | B1: كود الصنف | C1: الصنف | D1: العدد | E1: الوحدة | F1: السعر | G1: مجموع | H1: اسم الزبون | I1: رقم الفاتورة | J1: تاريخ الفاتورة | K1: سعر الكلفة | L1: كلفة المباع | M1: الربح ضرب العدد | N1: الارباح | O1: =SUM(M2:M2687) -> -234764.6772
A2: 2 | B2: b15 | C2: صنف 1 | D2: 72 | E2: 1000 | F2: 3.15 | G2: 226.8 | H2: xx1 | I2: 1 | J2: 2018-09-27 | K2: =IF(B2<>0,VLOOKUP(المبيعات!B2,v,6,FALSE),"") -> 1 | L2: =IFERROR(SUM(K2*D2),"") -> 72 | M2: =IFERROR(SUM(G2-L2),"") -> 154.8
A3: 3 | B3: b18 | C3: صنف 2 | D3: 90 | E3: 1000 | F3: 3.35 | G3: 301.5 | H3: xx1 | I3: 1 | J3: 2018-09-27 | K3: =IF(B3<>0,VLOOKUP(المبيعات!B3,v,6,FALSE),"") -> 2 | L3: 180 | M3: 121.5
A4: 4 | B4: b25 | C4: صنف 4 | D4: 60 | E4: 1000 | F4: 3.9 | G4: 234 | H4: xx1 | I4: 1 | J4: 2018-09-27 | K4: =IF(B4<>0,VLOOKUP(المبيعات!B4,v,6,FALSE),"") -> 4 | L4: 240 | M4: -6
A5: 5 | B5: b30 | C5: صنف 5 | D5: 60 | E5: 1000 | F5: 4.45 | G5: 267 | H5: xx1 | I5: 1 | J5: 2018-09-27 | K5: =IF(B5<>0,VLOOKUP(المبيعات!B5,v,6,FALSE),"") -> 5 | L5: 300 | M5: -33
A6: 6 | B6: b40 | C6: صنف 6 | D6: 80 | E6: 1000 | F6: 5.5 | G6: 440 | H6: xx1 | I6: 1 | J6: 2018-09-27 | K6: =IF(B6<>0,VLOOKUP(المبيعات!B6,v,6,FALSE),"") -> 6 | L6: 480 | M6: -40
A7: 7 | B7: b50 | C7: صنف 7 | D7: 100 | E7: 1000 | F7: 6.5 | G7: 650 | H7: xx1 | I7: 1 | J7: 2018-09-27 | K7: =IF(B7<>0,VLOOKUP(المبيعات!B7,v,6,FALSE),"") -> 7 | L7: 700 | M7: -50
A8: 8 | B8: b70 | C8: صنف 9 | D8: 9 | E8: 1000 | F8: 10.85 | G8: 97.65 | H8: xx1 | I8: 1 | J8: 2018-09-27 | K8: =IF(B8<>0,VLOOKUP(المبيعات!B8,v,6,FALSE),"") -> 9 | L8: 81 | M8: 16.65
A9: 9 | B9: b100 | C9: صنف 10 | D9: 8.4 | E9: 1000 | F9: 16.25 | G9: 136.5 | H9: xx1 | I9: 1 | J9: 2018-09-27 | K9: =IF(B9<>0,VLOOKUP(المبيعات!B9,v,6,FALSE),"") -> 10 | L9: 84 | M9: 52.5
A10: =ROW() -> 10 | B10: b15 | C10: صنف 1 | D10: 240 | E10: 1000 | F10: 3.09 | G10: 741.6 | H10: xx2 | I10: 2 | J10: 2018-09-30 | K10: =IF(B10<>0,VLOOKUP(المبيعات!B10,v,6,FALSE),"") -> 1 | L10: 240 | M10: 501.6
A11: =ROW() -> 11 | B11: b18 | C11: صنف 2 | D11: 90 | E11: 1000 | F11: 3.25 | G11: 292.5 | H11: xx2 | I11: 2 | J11: 2018-09-30 | K11: =IF(B11<>0,VLOOKUP(المبيعات!B11,v,6,FALSE),"") -> 2 | L11: 180 | M11: 112.5
A12: =ROW() -> 12 | B12: b25 | C12: صنف 4 | D12: 120 | E12: 1000 | F12: 3.9 | G12: 468 | H12: xx2 | I12: 2 | J12: 2018-09-30 | K12: =IF(B12<>0,VLOOKUP(المبيعات!B12,v,6,FALSE),"") -> 4 | L12: 480 | M12: -12
A13: =ROW() -> 13 | B13: b30 | C13: صنف 5 | D13: 120 | E13: 1000 | F13: 4.4 | G13: 528 | H13: xx2 | I13: 2 | J13: 2018-09-30 | K13: =IF(B13<>0,VLOOKUP(المبيعات!B13,v,6,FALSE),"") -> 5 | L13: 600 | M13: -72
A14: =ROW() -> 14 | B14: b40 | C14: صنف 6 | D14: 40 | E14: 1000 | F14: 5.5 | G14: 220 | H14: xx2 | I14: 2 | J14: 2018-09-30 | K14: =IF(B14<>0,VLOOKUP(المبيعات!B14,v,6,FALSE),"") -> 6 | L14: 240 | M14: -20
A15: =ROW() -> 15 | B15: b100 | C15: صنف 10 | D15: 5.6 | E15: 1000 | F15: 16.25 | G15: 91 | H15: xx2 | I15: 2 | J15: 2018-09-30 | K15: =IF(B15<>0,VLOOKUP(المبيعات!B15,v,6,FALSE),"") -> 10 | L15: 56 | M15: 35
A16: =ROW() -> 16 | B16: b15 | C16: صنف 1 | D16: 48 | E16: 1000 | F16: 3.2 | G16: 153.6 | H16: xx3 | I16: 23 | J16: 2018-10-08 | K16: =IF(B16<>0,VLOOKUP(المبيعات!B16,v,6,FALSE),"") -> 1 | L16: 48 | M16: 105.6
A17: =ROW() -> 17 | B17: b18 | C17: صنف 2 | D17: 36 | E17: 1000 | F17: 3.4 | G17: 122.4 | H17: xx3 | I17: 23 | J17: 2018-10-08 | K17: =IF(B17<>0,VLOOKUP(المبيعات!B17,v,6,FALSE),"") -> 2 | L17: 72 | M17: 50.4
A18: =ROW() -> 18 | B18: b20 | C18: صنف 3 | D18: 36 | E18: 1000 | F18: 3.55 | G18: 127.8 | H18: xx3 | I18: 23 | J18: 2018-10-08 | K18: =IF(B18<>0,VLOOKUP(المبيعات!B18,v,6,FALSE),"") -> 3 | L18: 108 | M18: 19.8
A19: =ROW() -> 19 | B19: b30 | C19: صنف 5 | D19: 60 | E19: 1000 | F19: 4.5 | G19: 270 | H19: xx3 | I19: 23 | J19: 2018-10-08 | K19: =IF(B19<>0,VLOOKUP(المبيعات!B19,v,6,FALSE),"") -> 5 | L19: 300 | M19: -30
A20: =ROW() -> 20 | B20: b40 | C20: صنف 6 | D20: 16 | E20: 1000 | F20: 5.5 | G20: 88 | H20: xx3 | I20: 23 | J20: 2018-10-08 | K20: =IF(B20<>0,VLOOKUP(المبيعات!B20,v,6,FALSE),"") -> 6 | L20: 96 | M20: -8
A21: =ROW() -> 21 | B21: b50 | C21: صنف 7 | D21: 25 | E21: 1000 | F21: 6.55 | G21: 163.75 | H21: xx3 | I21: 23 | J21: 2018-10-08 | K21: =IF(B21<>0,VLOOKUP(المبيعات!B21,v,6,FALSE),"") -> 7 | L21: 175 | M21: -11.25
A22: =ROW() -> 22 | B22: b70 | C22: صنف 9 | D22: 6 | E22: 1000 | F22: 10.9 | G22: 65.4 | H22: xx3 | I22: 23 | J22: 2018-10-08 | K22: =IF(B22<>0,VLOOKUP(المبيعات!B22,v,6,FALSE),"") -> 9 | L22: 54 | M22: 11.4
A23: =ROW() -> 23 | B23: b100 | C23: صنف 10 | D23: 5.6 | E23: 1000 | F23: 16.3 | G23: 91.28 | H23: xx3 | I23: 23 | J23: 2018-10-08 | K23: =IF(B23<>0,VLOOKUP(المبيعات!B23,v,6,FALSE),"") -> 10 | L23: 56 | M23: 35.28
A24: =ROW() -> 24 | B24: b15 | C24: صنف 1 | D24: 48 | E24: 1000 | F24: 3.15 | G24: 151.2 | H24: xx4 | I24: 24 | J24: 2018-10-05 | K24: =IF(B24<>0,VLOOKUP(المبيعات!B24,v,6,FALSE),"") -> 1 | L24: 48 | M24: 103.2
A25: =ROW() -> 25 | B25: b18 | C25: صنف 2 | D25: 36 | E25: 1000 | F25: 3.35 | G25: 120.6 | H25: xx4 | I25: 24 | J25: 2018-10-05 | K25: =IF(B25<>0,VLOOKUP(المبيعات!B25,v,6,FALSE),"") -> 2 | L25: 72 | M25: 48.6
A26: =ROW() -> 26 | B26: b20 | C26: صنف 3 | D26: 36 | E26: 1000 | F26: 3.5 | G26: 126 | H26: xx4 | I26: 24 | J26: 2018-10-05 | K26: =IF(B26<>0,VLOOKUP(المبيعات!B26,v,6,FALSE),"") -> 3 | L26: 108 | M26: 18
A27: =ROW() -> 27 | B27: b25 | C27: صنف 4 | D27: 36 | E27: 1000 | F27: 3.9 | G27: 140.4 | H27: xx4 | I27: 24 | J27: 2018-10-05 | K27: =IF(B27<>0,VLOOKUP(المبيعات!B27,v,6,FALSE),"") -> 4 | L27: 144 | M27: -3.6
A28: =ROW() -> 28 | B28: b30 | C28: صنف 5 | D28: 60 | E28: 1000 | F28: 4.45 | G28: 267 | H28: xx4 | I28: 24 | J28: 2018-10-05 | K28: =IF(B28<>0,VLOOKUP(المبيعات!B28,v,6,FALSE),"") -> 5 | L28: 300 | M28: -33
A29: =ROW() -> 29 | B29: b50 | C29: صنف 7 | D29: 50 | E29: 1000 | F29: 6.5 | G29: 325 | H29: xx4 | I29: 24 | J29: 2018-10-05 | K29: =IF(B29<>0,VLOOKUP(المبيعات!B29,v,6,FALSE),"") -> 7 | L29: 350 | M29: -25
A30: =ROW() -> 30 | B30: b25 | C30: صنف 4 | D30: 120 | E30: 1000 | F30: 3.9 | G30: 468 | H30: xx5 | I30: 25 | J30: 2018-10-05 | K30: =IF(B30<>0,VLOOKUP(المبيعات!B30,v,6,FALSE),"") -> 4 | L30: 480 | M30: -12
A31: =ROW() -> 31 | B31: b30 | C31: صنف 5 | D31: 120 | E31: 1000 | F31: 4.4 | G31: 528 | H31: xx5 | I31: 25 | J31: 2018-10-05 | K31: =IF(B31<>0,VLOOKUP(المبيعات!B31,v,6,FALSE),"") -> 5 | L31: 600 | M31: -72
A32: =ROW() -> 32 | B32: b70 | C32: صنف 9 | D32: 30 | E32: 1000 | F32: 10.85 | G32: 325.5 | H32: xx5 | I32: 25 | J32: 2018-10-05 | K32: =IF(B32<>0,VLOOKUP(المبيعات!B32,v,6,FALSE),"") -> 9 | L32: 270 | M32: 55.5
A33: =ROW() -> 33 | B33: b100 | C33: صنف 10 | D33: 28 | E33: 1000 | F33: 16.25 | G33: 455 | H33: xx5 | I33: 25 | J33: 2018-10-05 | K33: =IF(B33<>0,VLOOKUP(المبيعات!B33,v,6,FALSE),"") -> 10 | L33: 280 | M33: 175
A34: =ROW() -> 34 | B34: b15 | C34: صنف 1 | D34: 120 | E34: 1000 | F34: 2.993 | G34: 359.16 | H34: xx6 | I34: 26 | J34: 2018-10-09 | K34: =IF(B34<>0,VLOOKUP(المبيعات!B34,v,6,FALSE),"") -> 1 | L34: 120 | M34: 239.16
A35: =ROW() -> 35 | B35: b20 | C35: صنف 3 | D35: 180 | E35: 1000 | F35: 3.325 | G35: 598.5 | H35: xx6 | I35: 26 | J35: 2018-10-09 | K35: =IF(B35<>0,VLOOKUP(المبيعات!B35,v,6,FALSE),"") -> 3 | L35: 540 | M35: 58.5
A36: =ROW() -> 36 | B36: b25 | C36: صنف 4 | D36: 120 | E36: 1000 | F36: 3.705 | G36: 444.6 | H36: xx6 | I36: 26 | J36: 2018-10-09 | K36: =IF(B36<>0,VLOOKUP(المبيعات!B36,v,6,FALSE),"") -> 4 | L36: 480 | M36: -35.4
A37: =ROW() -> 37 | B37: b30 | C37: صنف 5 | D37: 120 | E37: 1000 | F37: 4.228 | G37: 507.36 | H37: xx6 | I37: 26 | J37: 2018-10-09 | K37: =IF(B37<>0,VLOOKUP(المبيعات!B37,v,6,FALSE),"") -> 5 | L37: 600 | M37: -92.64
A38: =ROW() -> 38 | B38: b40 | C38: صنف 6 | D38: 40 | E38: 1000 | F38: 5.225 | G38: 209 | H38: xx6 | I38: 26 | J38: 2018-10-09 | K38: =IF(B38<>0,VLOOKUP(المبيعات!B38,v,6,FALSE),"") -> 6 | L38: 240 | M38: -31
A39: =ROW() -> 39 | B39: b50 | C39: صنف 7 | D39: 250 | E39: 1000 | F39: 6.175 | G39: 1543.75 | H39: xx6 | I39: 26 | J39: 2018-10-09 | K39: =IF(B39<>0,VLOOKUP(المبيعات!B39,v,6,FALSE),"") -> 7 | L39: 1750 | M39: -206.25
A40: =ROW() -> 40 | B40: b70 | C40: صنف 9 | D40: 30 | E40: 1000 | F40: 10.308 | G40: 309.24 | H40: xx6 | I40: 26 | J40: 2018-10-09 | K40: =IF(B40<>0,VLOOKUP(المبيعات!B40,v,6,FALSE),"") -> 9 | L40: 270 | M40: 39.24
A41: =ROW() -> 41 | B41: b100 | C41: صنف 10 | D41: 5.6 | E41: 1000 | F41: 15.438 | G41: 86.4528 | H41: xx6 | I41: 26 | J41: 2018-10-09 | K41: =IF(B41<>0,VLOOKUP(المبيعات!B41,v,6,FALSE),"") -> 10 | L41: 56 | M41: 30.4528
A42: =ROW() -> 42 | B42: b15 | C42: صنف 1 | D42: 72 | E42: 1000 | F42: 3.3 | G42: 237.6 | H42: xx7 | I42: 27 | J42: 2018-10-04 | K42: =IF(B42<>0,VLOOKUP(المبيعات!B42,v,6,FALSE),"") -> 1 | L42: 72 | M42: 165.6
A43: =ROW() -> 43 | B43: b25 | C43: صنف 4 | D43: 60 | E43: 1000 | F43: 4 | G43: 240 | H43: xx7 | I43: 27 | J43: 2018-10-04 | K43: =IF(B43<>0,VLOOKUP(المبيعات!B43,v,6,FALSE),"") -> 4 | L43: 240 | M43: 0
A44: =ROW() -> 44 | B44: b40 | C44: صنف 6 | D44: 16 | E44: 1000 | F44: 5.65 | G44: 90.4 | H44: xx7 | I44: 27 | J44: 2018-10-04 | K44: =IF(B44<>0,VLOOKUP(المبيعات!B44,v,6,FALSE),"") -> 6 | L44: 96 | M44: -5.6
A45: =ROW() -> 45 | B45: b50 | C45: صنف 7 | D45: 25 | E45: 1000 | F45: 6.55 | G45: 163.75 | H45: xx7 | I45: 27 | J45: 2018-10-04 | K45: =IF(B45<>0,VLOOKUP(المبيعات!B45,v,6,FALSE),"") -> 7 | L45: 175 | M45: -11.25
A46: =ROW() -> 46 | B46: b100 | C46: صنف 10 | D46: 2.8 | E46: 1000 | F46: 16.4 | G46: 45.92 | H46: xx7 | I46: 27 | J46: 2018-10-04 | K46: =IF(B46<>0,VLOOKUP(المبيعات!B46,v,6,FALSE),"") -> 10 | L46: 28 | M46: 17.92
A47: =ROW() -> 47 | B47: b15 | C47: صنف 1 | D47: 48 | E47: 1000 | F47: 3.3 | G47: 158.4 | H47: xx8 | I47: 28 | J47: 2018-10-08 | K47: =IF(B47<>0,VLOOKUP(المبيعات!B47,v,6,FALSE),"") -> 1 | L47: 48 | M47: 110.4
A48: =ROW() -> 48 | B48: b18 | C48: صنف 2 | D48: 36 | E48: 1000 | F48: 3.5 | G48: 126 | H48: xx8 | I48: 28 | J48: 2018-10-08 | K48: =IF(B48<>0,VLOOKUP(المبيعات!B48,v,6,FALSE),"") -> 2 | L48: 72 | M48: 54
A49: =ROW() -> 49 | B49: b20 | C49: صنف 3 | D49: 36 | E49: 1000 | F49: 3.65 | G49: 131.4 | H49: xx8 | I49: 28 | J49: 2018-10-08 | K49: =IF(B49<>0,VLOOKUP(المبيعات!B49,v,6,FALSE),"") -> 3 | L49: 108 | M49: 23.4
A50: =ROW() -> 50 | B50: b25 | C50: صنف 4 | D50: 24 | E50: 1000 | F50: 4.05 | G50: 97.2 | H50: xx8 | I50: 28 | J50: 2018-10-08 | K50: =IF(B50<>0,VLOOKUP(المبيعات!B50,v,6,FALSE),"") -> 4 | L50: 96 | M50: 1.2
A51: =ROW() -> 51 | B51: b40 | C51: صنف 6 | D51: 8 | E51: 1000 | F51: 5.65 | G51: 45.2 | H51: xx8 | I51: 28 | J51: 2018-10-08 | K51: =IF(B51<>0,VLOOKUP(المبيعات!B51,v,6,FALSE),"") -> 6 | L51: 48 | M51: -2.8
A52: =ROW() -> 52 | B52: b50 | C52: صنف 7 | D52: 10 | E52: 1000 | F52: 6.65 | G52: 66.5 | H52: xx8 | I52: 28 | J52: 2018-10-08 | K52: =IF(B52<>0,VLOOKUP(المبيعات!B52,v,6,FALSE),"") -> 7 | L52: 70 | M52: -3.5
A53: =ROW() -> 53 | B53: b18 | C53: صنف 2 | D53: 180 | E53: 1000 | F53: 3.35 | G53: 603 | H53: xx9 | I53: 29 | J53: 2018-10-15 | K53: =IF(B53<>0,VLOOKUP(المبيعات!B53,v,6,FALSE),"") -> 2 | L53: 360 | M53: 243
A54: =ROW() -> 54 | B54: b25 | C54: صنف 4 | D54: 120 | E54: 1000 | F54: 3.9 | G54: 468 | H54: xx9 | I54: 29 | J54: 2018-10-15 | K54: =IF(B54<>0,VLOOKUP(المبيعات!B54,v,6,FALSE),"") -> 4 | L54: 480 | M54: -12
A55: =ROW() -> 55 | B55: b30 | C55: صنف 5 | D55: 120 | E55: 1000 | F55: 4.45 | G55: 534 | H55: xx9 | I55: 29 | J55: 2018-10-15 | K55: =IF(B55<>0,VLOOKUP(المبيعات!B55,v,6,FALSE),"") -> 5 | L55: 600 | M55: -66
A56: =ROW() -> 56 | B56: b40 | C56: صنف 6 | D56: 80 | E56: 1000 | F56: 5.5 | G56: 440 | H56: xx9 | I56: 29 | J56: 2018-10-15 | K56: =IF(B56<>0,VLOOKUP(المبيعات!B56,v,6,FALSE),"") -> 6 | L56: 480 | M56: -40
A57: =ROW() -> 57 | B57: b50 | C57: صنف 7 | D57: 50 | E57: 1000 | F57: 6.5 | G57: 325 | H57: xx9 | I57: 29 | J57: 2018-10-15 | K57: =IF(B57<>0,VLOOKUP(المبيعات!B57,v,6,FALSE),"") -> 7 | L57: 350 | M57: -25
A58: =ROW() -> 58 | B58: b70 | C58: صنف 9 | D58: 30 | E58: 1000 | F58: 10.85 | G58: 325.5 | H58: xx9 | I58: 29 | J58: 2018-10-15 | K58: =IF(B58<>0,VLOOKUP(المبيعات!B58,v,6,FALSE),"") -> 9 | L58: 270 | M58: 55.5
A59: =ROW() -> 59 | B59: b100 | C59: صنف 10 | D59: 14 | E59: 1000 | F59: 16.25 | G59: 227.5 | H59: xx9 | I59: 29 | J59: 2018-10-15 | K59: =IF(B59<>0,VLOOKUP(المبيعات!B59,v,6,FALSE),"") -> 10 | L59: 140 | M59: 87.5
A60: =ROW() -> 60 | B60: b40 | C60: صنف 6 | D60: 16 | E60: 1000 | F60: 5.5 | G60: 88 | H60: xx10 | I60: 30 | J60: 2018-10-15 | K60: =IF(B60<>0,VLOOKUP(المبيعات!B60,v,6,FALSE),"") -> 6 | L60: 96 | M60: -8
A61: =ROW() -> 61 | B61: b50 | C61: صنف 7 | D61: 25 | E61: 1000 | F61: 6.5 | G61: 162.5 | H61: xx10 | I61: 30 | J61: 2018-10-15 | K61: =IF(B61<>0,VLOOKUP(المبيعات!B61,v,6,FALSE),"") -> 7 | L61: 175 | M61: -12.5
A62: =ROW() -> 62 | B62: b15 | C62: صنف 1 | D62: 24 | E62: 1000 | F62: 3.3 | G62: 79.2 | H62: xx11 | I62: 31 | J62: 2018-10-13 | K62: =IF(B62<>0,VLOOKUP(المبيعات!B62,v,6,FALSE),"") -> 1 | L62: 24 | M62: 55.2
A63: =ROW() -> 63 | B63: b100 | C63: صنف 10 | D63: 2.8 | E63: 1000 | F63: 16.4 | G63: 45.92 | H63: xx11 | I63: 31 | J63: 2018-10-13 | K63: =IF(B63<>0,VLOOKUP(المبيعات!B63,v,6,FALSE),"") -> 10 | L63: 28 | M63: 17.92
A64: =ROW() -> 64 | B64: b18 | C64: صنف 2 | D64: 54 | E64: 1000 | F64: 3.3 | G64: 178.2 | H64: xx12 | I64: 32 | J64: 2018-10-13 | K64: =IF(B64<>0,VLOOKUP(المبيعات!B64,v,6,FALSE),"") -> 2 | L64: 108 | M64: 70.2
A65: =ROW() -> 65 | B65: b20 | C65: صنف 3 | D65: 36 | E65: 1000 | F65: 3.65 | G65: 131.4 | H65: xx12 | I65: 32 | J65: 2018-10-13 | K65: =IF(B65<>0,VLOOKUP(المبيعات!B65,v,6,FALSE),"") -> 3 | L65: 108 | M65: 23.4
A66: =ROW() -> 66 | B66: b30 | C66: صنف 5 | D66: 24 | E66: 1000 | F66: 4.6 | G66: 110.4 | H66: xx12 | I66: 32 | J66: 2018-10-13 | K66: =IF(B66<>0,VLOOKUP(المبيعات!B66,v,6,FALSE),"") -> 5 | L66: =IFERROR(SUM(K66*D66),"") -> 120 | M66: =IFERROR(SUM(G66-L66),"") -> -9.6
A67: =ROW() -> 67 | B67: b40 | C67: صنف 6 | D67: 24 | E67: 1000 | F67: 5.65 | G67: 135.6 | H67: xx12 | I67: 32 | J67: 2018-10-13 | K67: =IF(B67<>0,VLOOKUP(المبيعات!B67,v,6,FALSE),"") -> 6 | L67: 144 | M67: -8.4
A68: =ROW() -> 68 | B68: b50 | C68: صنف 7 | D68: 50 | E68: 1000 | F68: 6.65 | G68: 332.5 | H68: xx12 | I68: 32 | J68: 2018-10-13 | K68: =IF(B68<>0,VLOOKUP(المبيعات!B68,v,6,FALSE),"") -> 7 | L68: 350 | M68: -17.5
A69: =ROW() -> 69 | B69: b70 | C69: صنف 9 | D69: 6 | E69: 1000 | F69: 11 | G69: 66 | H69: xx12 | I69: 32 | J69: 2018-10-13 | K69: =IF(B69<>0,VLOOKUP(المبيعات!B69,v,6,FALSE),"") -> 9 | L69: 54 | M69: 12
A70: =ROW() -> 70 | B70: b100 | C70: صنف 10 | D70: 5.6 | E70: 1000 | F70: 16.4 | G70: 91.84 | H70: xx12 | I70: 32 | J70: 2018-10-13 | K70: =IF(B70<>0,VLOOKUP(المبيعات!B70,v,6,FALSE),"") -> 10 | L70: 56 | M70: 35.84
A71: =ROW() -> 71 | B71: b15 | C71: صنف 1 | D71: 120 | E71: 1000 | F71: 3.15 | G71: 378 | H71: xx13 | I71: 33 | J71: 2018-10-17 | K71: =IF(B71<>0,VLOOKUP(المبيعات!B71,v,6,FALSE),"") -> 1 | L71: 120 | M71: 258
A72: =ROW() -> 72 | B72: b18 | C72: صنف 2 | D72: 54 | E72: 1000 | F72: 3.35 | G72: 180.9 | H72: xx13 | I72: 33 | J72: 2018-10-17 | K72: =IF(B72<>0,VLOOKUP(المبيعات!B72,v,6,FALSE),"") -> 2 | L72: 108 | M72: 72.9
A73: =ROW() -> 73 | B73: b25 | C73: صنف 4 | D73: 24 | E73: 1000 | F73: 3.95 | G73: 94.8 | H73: xx13 | I73: 33 | J73: 2018-10-17 | K73: =IF(B73<>0,VLOOKUP(المبيعات!B73,v,6,FALSE),"") -> 4 | L73: 96 | M73: -1.2
A74: =ROW() -> 74 | B74: b30 | C74: صنف 5 | D74: 36 | E74: 1000 | F74: 4.45 | G74: 160.2 | H74: xx13 | I74: 33 | J74: 2018-10-17 | K74: =IF(B74<>0,VLOOKUP(المبيعات!B74,v,6,FALSE),"") -> 5 | L74: 180 | M74: -19.8
A75: =ROW() -> 75 | B75: b40 | C75: صنف 6 | D75: 40 | E75: 1000 | F75: 5.65 | G75: 226 | H75: xx13 | I75: 33 | J75: 2018-10-17 | K75: =IF(B75<>0,VLOOKUP(المبيعات!B75,v,6,FALSE),"") -> 6 | L75: 240 | M75: -14
A76: =ROW() -> 76 | B76: b50 | C76: صنف 7 | D76: 25 | E76: 1000 | F76: 6.6 | G76: 165 | H76: xx13 | I76: 33 | J76: 2018-10-17 | K76: =IF(B76<>0,VLOOKUP(المبيعات!B76,v,6,FALSE),"") -> 7 | L76: 175 | M76: -10
A77: =ROW() -> 77 | B77: b70 | C77: صنف 9 | D77: 9 | E77: 1000 | F77: 10.85 | G77: 97.65 | H77: xx13 | I77: 33 | J77: 2018-10-17 | K77: =IF(B77<>0,VLOOKUP(المبيعات!B77,v,6,FALSE),"") -> 9 | L77: 81 | M77: 16.65
A78: =ROW() -> 78 | B78: b30 | C78: صنف 5 | D78: 120 | E78: 1000 | F78: 4.4 | G78: 528 | H78: xx2 | I78: 34 | J78: 2018-11-02 | K78: =IF(B78<>0,VLOOKUP(المبيعات!B78,v,6,FALSE),"") -> 5 | L78: 600 | M78: -72
A79: =ROW() -> 79 | B79: b15 | C79: صنف 1 | D79: 48 | E79: 1000 | F79: 3.15 | G79: 151.2 | H79: xx14 | I79: 35 | J79: 2018-11-02 | K79: =IF(B79<>0,VLOOKUP(المبيعات!B79,v,6,FALSE),"") -> 1 | L79: 48 | M79: 103.2
A80: =ROW() -> 80 | B80: b18 | C80: صنف 2 | D80: 54 | E80: 1000 | F80: 3.35 | G80: 180.9 | H80: xx14 | I80: 35 | J80: 2018-11-02 | K80: =IF(B80<>0,VLOOKUP(المبيعات!B80,v,6,FALSE),"") -> 2 | L80: 108 | M80: 72.9
A81: =ROW() -> 81 | B81: b70 | C81: صنف 9 | D81: 15 | E81: 1000 | F81: 10.85 | G81: 162.75 | H81: xx14 | I81: 35 | J81: 2018-11-02 | K81: =IF(B81<>0,VLOOKUP(المبيعات!B81,v,6,FALSE),"") -> 9 | L81: 135 | M81: 27.75
A82: =ROW() -> 82 | B82: b18 | C82: صنف 2 | D82: 18 | E82: 1000 | F82: 3.4 | G82: 61.2 | H82: xx11 | I82: 36 | J82: 2018-11-03 | K82: =IF(B82<>0,VLOOKUP(المبيعات!B82,v,6,FALSE),"") -> 2 | L82: 36 | M82: 25.2
A83: =ROW() -> 83 | B83: b50 | C83: صنف 7 | D83: 0.5 | E83: 1000 | F83: 6.6 | G83: 3.3 | H83: xx15 | I83: 37 | J83: 2018-11-03 | K83: =IF(B83<>0,VLOOKUP(المبيعات!B83,v,6,FALSE),"") -> 7 | L83: 3.5 | M83: =IFERROR(SUM(G83-L83),"") -> -0.2
A84: =ROW() -> 84 | B84: b50 | C84: صنف 7 | D84: 0.5 | E84: 1000 | F84: 0 | G84: 0 | H84: xx3 | I84: 38 | J84: 2018-11-03 | K84: =IF(B84<>0,VLOOKUP(المبيعات!B84,v,6,FALSE),"") -> 7 | L84: 3.5 | M84: =IFERROR(SUM(G84-L84),"") -> -3.5
A85: =ROW() -> 85 | B85: b40 | C85: صنف 6 | D85: 16 | E85: 1000 | F85: 5.5 | G85: 88 | H85: xx10 | I85: 39 | J85: 2018-11-16 | K85: =IF(B85<>0,VLOOKUP(المبيعات!B85,v,6,FALSE),"") -> 6 | L85: 96 | M85: -8
A86: =ROW() -> 86 | B86: b50 | C86: صنف 7 | D86: 20 | E86: 1000 | F86: 6.5 | G86: 130 | H86: xx10 | I86: 39 | J86: 2018-11-16 | K86: =IF(B86<>0,VLOOKUP(المبيعات!B86,v,6,FALSE),"") -> 7 | L86: 140 | M86: -10
A87: =ROW() -> 87 | B87: b18 | C87: صنف 2 | D87: 36 | E87: 1000 | F87: 3.4 | G87: 122.4 | H87: xx7 | I87: 40 | J87: 2018-11-16 | K87: =IF(B87<>0,VLOOKUP(المبيعات!B87,v,6,FALSE),"") -> 2 | L87: 72 | M87: 50.4
A88: =ROW() -> 88 | B88: b25 | C88: صنف 4 | D88: 12 | E88: 1000 | F88: 4.05 | G88: 48.6 | H88: xx12 | I88: 41 | J88: 2018-11-16 | K88: =IF(B88<>0,VLOOKUP(المبيعات!B88,v,6,FALSE),"") -> 4 | L88: 48 | M88: 0.6
A89: =ROW() -> 89 | B89: gab17 | C89: صنف 12 | D89: 18 | E89: برميل | F89: 27 | G89: 486 | H89: xx1 | I89: 42 | J89: 2018-11-15 | K89: =IF(B89<>0,VLOOKUP(المبيعات!B89,v,6,FALSE),"") -> 12 | L89: 216 | M89: 270
A90: =ROW() -> 90 | B90: gab3 | C90: صنف 11 | D90: 100 | E90: غالون | F90: 5 | G90: 500 | H90: xx1 | I90: 42 | J90: 2018-11-15 | K90: =IF(B90<>0,VLOOKUP(المبيعات!B90,v,6,FALSE),"") -> 11 | L90: 1100 | M90: -600
A91: =ROW() -> 91 | B91: gas4 | C91: صنف 13 | D91: 8 | E91: غالون | F91: 9.25 | G91: 74 | H91: xx1 | I91: 42 | J91: 2018-11-15 | K91: =IF(B91<>0,VLOOKUP(المبيعات!B91,v,6,FALSE),"") -> 13 | L91: 104 | M91: -30
A92: =ROW() -> 92 | B92: gab17 | C92: صنف 12 | D92: 4 | E92: برميل | F92: 28 | G92: 112 | H92: xx14 | I92: 44 | J92: 2018-11-21 | K92: =IF(B92<>0,VLOOKUP(المبيعات!B92,v,6,FALSE),"") -> 12 | L92: 48 | M92: 64
A93: =ROW() -> 93 | B93: gab3 | C93: صنف 11 | D93: 10 | E93: غالون | F93: 5.5 | G93: 55 | H93: xx14 | I93: 44 | J93: 2018-11-21 | K93: =IF(B93<>0,VLOOKUP(المبيعات!B93,v,6,FALSE),"") -> 11 | L93: 110 | M93: -55
A94: =ROW() -> 94 | B94: gab3 | C94: صنف 11 | D94: 100 | E94: غالون | F94: 5 | G94: 500 | H94: xx6 | I94: 47 | J94: 2018-11-23 | K94: =IF(B94<>0,VLOOKUP(المبيعات!B94,v,6,FALSE),"") -> 11 | L94: 1100 | M94: -600
A95: =ROW() -> 95 | B95: gab3 | C95: صنف 11 | D95: 5 | E95: غالون | F95: 5 | G95: 25 | H95: xx4 | I95: 48 | J95: 2018-11-23 | K95: =IF(B95<>0,VLOOKUP(المبيعات!B95,v,6,FALSE),"") -> 11 | L95: 55 | M95: -30
A96: =ROW() -> 96 | B96: b50 | C96: صنف 7 | D96: 10 | E96: 1000 | F96: 6.65 | G96: 66.5 | H96: xx15 | I96: 50 | J96: 2018-11-21 | K96: =IF(B96<>0,VLOOKUP(المبيعات!B96,v,6,FALSE),"") -> 7 | L96: 70 | M96: -3.5
A97: =ROW() -> 97 | B97: gab3 | C97: صنف 11 | D97: 1 | E97: غالون | F97: 0 | G97: 0 | H97: xx5 | I97: 51 | J97: 2018-11-21 | K97: =IF(B97<>0,VLOOKUP(المبيعات!B97,v,6,FALSE),"") -> 11 | L97: 11 | M97: -11
A98: =ROW() -> 98 | B98: gas4 | C98: صنف 13 | D98: 1 | E98: غالون | F98: 0 | G98: 0 | H98: xx5 | I98: 51 | J98: 2018-11-21 | K98: =IF(B98<>0,VLOOKUP(المبيعات!B98,v,6,FALSE),"") -> 13 | L98: 13 | M98: -13
A99: =ROW() -> 99 | B99: b50 | C99: صنف 7 | D99: 40 | E99: 1000 | F99: 6.55 | G99: 262 | H99: xx3 | I99: 52 | J99: 2018-11-28 | K99: =IF(B99<>0,VLOOKUP(المبيعات!B99,v,6,FALSE),"") -> 7 | L99: 280 | M99: -18
A100: =ROW() -> 100 | B100: b70 | C100: صنف 9 | D100: 6 | E100: 1000 | F100: 10.9 | G100: 65.4 | H100: xx3 | I100: 52 | J100: 2018-11-28 | K100: =IF(B100<>0,VLOOKUP(المبيعات!B100,v,6,FALSE),"") -> 9 | L100: 54 | M100: 11.4
A101: =ROW() -> 101 | B101: b30 | C101: صنف 5 | D101: 36 | E101: 1000 | F101: 4.45 | G101: 160.2 | H101: xx13 | I101: 55 | J101: 2018-11-30 | K101: =IF(B101<>0,VLOOKUP(المبيعات!B101,v,6,FALSE),"") -> 5 | L101: 180 | M101: -19.8
A102: =ROW() -> 102 | B102: b50 | C102: صنف 7 | D102: 25 | E102: 1000 | F102: 6.6 | G102: 165 | H102: xx13 | I102: 55 | J102: 2018-11-30 | K102: =IF(B102<>0,VLOOKUP(المبيعات!B102,v,6,FALSE),"") -> 7 | L102: 175 | M102: -10
A103: =ROW() -> 103 | B103: b70 | C103: صنف 9 | D103: 9 | E103: 1000 | F103: 10.85 | G103: 97.65 | H103: xx13 | I103: 55 | J103: 2018-11-30 | K103: =IF(B103<>0,VLOOKUP(المبيعات!B103,v,6,FALSE),"") -> 9 | L103: 81 | M103: 16.65
A104: =ROW() -> 104 | B104: gab3 | C104: صنف 11 | D104: 10 | E104: غالون | F104: 5 | G104: 50 | H104: xx9 | I104: 56 | J104: 2018-11-30 | K104: =IF(B104<>0,VLOOKUP(المبيعات!B104,v,6,FALSE),"") -> 11 | L104: 110 | M104: -60
A105: =ROW() -> 105 | B105: gas4 | C105: صنف 13 | D105: 5 | E105: غالون | F105: 9.5 | G105: 47.5 | H105: xx9 | I105: 56 | J105: 2018-11-30 | K105: =IF(B105<>0,VLOOKUP(المبيعات!B105,v,6,FALSE),"") -> 13 | L105: 65 | M105: -17.5
A106: =ROW() -> 106 | B106: b40 | C106: صنف 6 | D106: 16 | E106: 1000 | F106: 5.5 | G106: 88 | H106: xx10 | I106: 58 | J106: 2018-12-07 | K106: =IF(B106<>0,VLOOKUP(المبيعات!B106,v,6,FALSE),"") -> 6 | L106: 96 | M106: -8
A107: =ROW() -> 107 | B107: b50 | C107: صنف 7 | D107: 10 | E107: 1000 | F107: 6.5 | G107: 65 | H107: xx10 | I107: 58 | J107: 2018-12-07 | K107: =IF(B107<>0,VLOOKUP(المبيعات!B107,v,6,FALSE),"") -> 7 | L107: 70 | M107: -5
A108: =ROW() -> 108 | B108: b15 | C108: صنف 1 | D108: 120 | E108: 1000 | F108: 3.15 | G108: 378 | H108: xx9 | I108: 59 | J108: 2018-12-01 | K108: =IF(B108<>0,VLOOKUP(المبيعات!B108,v,6,FALSE),"") -> 1 | L108: 120 | M108: 258
A109: =ROW() -> 109 | B109: b30 | C109: صنف 5 | D109: 12 | E109: 1000 | F109: 4.65 | G109: 55.8 | H109: xx11 | I109: 66 | J109: 2018-12-11 | K109: =IF(B109<>0,VLOOKUP(المبيعات!B109,v,6,FALSE),"") -> 5 | L109: =IFERROR(SUM(K109*D109),"") -> 60 | M109: -4.2
A110: =ROW() -> 110 | B110: b40 | C110: صنف 6 | D110: 8 | E110: 1000 | F110: 5.65 | G110: 45.2 | H110: xx11 | I110: 66 | J110: 2018-12-11 | K110: =IF(B110<>0,VLOOKUP(المبيعات!B110,v,6,FALSE),"") -> 6 | L110: 48 | M110: -2.8
A111: =ROW() -> 111 | B111: gas17 | C111: صنف 14 | D111: 4 | E111: برميل | F111: 39 | G111: 156 | H111: xx1 | I111: 68 | J111: 2018-12-11 | K111: =IF(B111<>0,VLOOKUP(المبيعات!B111,v,6,FALSE),"") -> 14 | L111: 56 | M111: 100
A112: =ROW() -> 112 | B112: gab17 | C112: صنف 12 | D112: 10 | E112: برميل | F112: 27 | G112: 270 | H112: xx1 | I112: 68 | J112: 2018-12-11 | K112: =IF(B112<>0,VLOOKUP(المبيعات!B112,v,6,FALSE),"") -> 12 | L112: 120 | M112: 150
A113: =ROW() -> 113 | B113: b30 | C113: صنف 5 | D113: 60 | E113: 1000 | F113: 4.45 | G113: 267 | H113: xx1 | I113: 68 | J113: 2018-12-11 | K113: =IF(B113<>0,VLOOKUP(المبيعات!B113,v,6,FALSE),"") -> 5 | L113: 300 | M113: -33
A114: =ROW() -> 114 | B114: b70 | C114: صنف 9 | D114: 15 | E114: 1000 | F114: 10.85 | G114: 162.75 | H114: xx1 | I114: 68 | J114: 2018-12-11 | K114: =IF(B114<>0,VLOOKUP(المبيعات!B114,v,6,FALSE),"") -> 9 | L114: 135 | M114: 27.75
A115: =ROW() -> 115 | B115: b20 | C115: صنف 3 | D115: 90 | E115: 1000 | F115: 3.5 | G115: 315 | H115: xx2 | I115: 69 | J115: 2018-12-11 | K115: =IF(B115<>0,VLOOKUP(المبيعات!B115,v,6,FALSE),"") -> 3 | L115: 270 | M115: 45
A116: =ROW() -> 116 | B116: b50 | C116: صنف 7 | D116: 35 | E116: 1000 | F116: 6.5 | G116: 227.5 | H116: xx2 | I116: 69 | J116: 2018-12-11 | K116: =IF(B116<>0,VLOOKUP(المبيعات!B116,v,6,FALSE),"") -> 7 | L116: 245 | M116: -17.5
A117: =ROW() -> 117 | B117: b70 | C117: صنف 9 | D117: 15 | E117: 1000 | F117: 10.85 | G117: 162.75 | H117: xx2 | I117: 69 | J117: 2018-12-11 | K117: =IF(B117<>0,VLOOKUP(المبيعات!B117,v,6,FALSE),"") -> 9 | L117: 135 | M117: 27.75
A118: =ROW() -> 118 | B118: b30 | C118: صنف 5 | D118: 36 | E118: 1000 | F118: 4.25 | G118: 153 | H118: xx13 | I118: 70 | J118: 2018-12-17 | K118: =IF(B118<>0,VLOOKUP(المبيعات!B118,v,6,FALSE),"") -> 5 | L118: 180 | M118: -27
A119: =ROW() -> 119 | B119: b50 | C119: صنف 7 | D119: 25 | E119: 1000 | F119: 6.6 | G119: 165 | H119: xx13 | I119: 70 | J119: 2018-12-17 | K119: =IF(B119<>0,VLOOKUP(المبيعات!B119,v,6,FALSE),"") -> 7 | L119: 175 | M119: -10
A120: =ROW() -> 120 | B120: b70 | C120: صنف 9 | D120: 9 | E120: 1000 | F120: 10.85 | G120: 97.65 | H120: xx13 | I120: 70 | J120: 2018-12-17 | K120: =IF(B120<>0,VLOOKUP(المبيعات!B120,v,6,FALSE),"") -> 9 | L120: 81 | M120: =IFERROR(SUM(G120-L120),"") -> 16.65
A121: =ROW() -> 121 | B121: gas4 | C121: صنف 13 | D121: 20 | E121: غالون | F121: 9.25 | G121: 185 | H121: xx1 | I121: 71 | J121: 2018-12-17 | K121: =IF(B121<>0,VLOOKUP(المبيعات!B121,v,6,FALSE),"") -> 13 | L121: 260 | M121: -75
A122: =ROW() -> 122 | B122: gas17 | C122: صنف 14 | D122: 5 | E122: برميل | F122: 39 | G122: 195 | H122: xx1 | I122: 71 | J122: 2018-12-17 | K122: =IF(B122<>0,VLOOKUP(المبيعات!B122,v,6,FALSE),"") -> 14 | L122: 70 | M122: 125
A123: =ROW() -> 123 | B123: b50 | C123: صنف 7 | D123: 25 | E123: 1000 | F123: 6.5 | G123: 162.5 | H123: xx10 | I123: 74 | J123: 2018-12-21 | K123: =IF(B123<>0,VLOOKUP(المبيعات!B123,v,6,FALSE),"") -> 7 | L123: 175 | M123: -12.5
A124: =ROW() -> 124 | B124: gab3 | C124: صنف 11 | D124: 20 | E124: غالون | F124: 5.25 | G124: 105 | H124: xx14 | I124: 76 | J124: 2018-12-19 | K124: =IF(B124<>0,VLOOKUP(المبيعات!B124,v,6,FALSE),"") -> 11 | L124: 220 | M124: -115
A125: =ROW() -> 125 | B125: gab17 | C125: صنف 12 | D125: 4 | E125: برميل | F125: 28 | G125: 112 | H125: xx14 | I125: 76 | J125: 2018-12-19 | K125: =IF(B125<>0,VLOOKUP(المبيعات!B125,v,6,FALSE),"") -> 12 | L125: 48 | M125: 64
A126: =ROW() -> 126 | B126: b30 | C126: صنف 5 | D126: 60 | E126: 1000 | F126: 4.6 | G126: 276 | H126: xx8 | I126: 78 | J126: 2018-12-19 | K126: =IF(B126<>0,VLOOKUP(المبيعات!B126,v,6,FALSE),"") -> 5 | L126: 300 | M126: -24
A127: =ROW() -> 127 | B127: b50 | C127: صنف 7 | D127: 50 | E127: 1000 | F127: 6.5 | G127: 325 | H127: xx2 | I127: 79 | J127: 2018-12-24 | K127: =IF(B127<>0,VLOOKUP(المبيعات!B127,v,6,FALSE),"") -> 7 | L127: 350 | M127: -25
A128: =ROW() -> 128 | B128: gab.50 | C128: صنف 15 | D128: 50 | E128: مرطبان | F128: 1 | G128: 50 | H128: xx1 | I128: 85 | J128: 2019-01-11 | K128: =IF(B128<>0,VLOOKUP(المبيعات!B128,v,6,FALSE),"") -> 15 | L128: 750 | M128: -700
A129: =ROW() -> 129 | B129: gas.50 | C129: صنف 16 | D129: 25 | E129: مرطبان | F129: 1.5 | G129: 37.5 | H129: xx1 | I129: 85 | J129: 2019-01-11 | K129: =IF(B129<>0,VLOOKUP(المبيعات!B129,v,6,FALSE),"") -> 16 | L129: 400 | M129: -362.5
A130: =ROW() -> 130 | B130: gab.50 | C130: صنف 15 | D130: 38 | E130: مرطبان | F130: 1 | G130: 38 | H130: xx14 | I130: 86 | J130: 2019-01-11 | K130: =IF(B130<>0,VLOOKUP(المبيعات!B130,v,6,FALSE),"") -> 15 | L130: 570 | M130: -532
A131: =ROW() -> 131 | B131: b15 | C131: صنف 1 | D131: 48 | E131: 1000 | F131: 3.15 | G131: 151.2 | H131: xx13 | I131: 87 | J131: 2019-01-11 | K131: =IF(B131<>0,VLOOKUP(المبيعات!B131,v,6,FALSE),"") -> 1 | L131: 48 | M131: 103.2
A132: =ROW() -> 132 | B132: b18 | C132: صنف 2 | D132: 90 | E132: 1000 | F132: 3.35 | G132: 301.5 | H132: xx13 | I132: 87 | J132: 2019-01-11 | K132: =IF(B132<>0,VLOOKUP(المبيعات!B132,v,6,FALSE),"") -> 2 | L132: 180 | M132: 121.5
A133: =ROW() -> 133 | B133: b25 | C133: صنف 4 | D133: 36 | E133: 1000 | F133: 3.95 | G133: 142.2 | H133: xx13 | I133: 87 | J133: 2019-01-11 | K133: =IF(B133<>0,VLOOKUP(المبيعات!B133,v,6,FALSE),"") -> 4 | L133: 144 | M133: -1.8
A134: =ROW() -> 134 | B134: b30 | C134: صنف 5 | D134: 60 | E134: 1000 | F134: 4.45 | G134: 267 | H134: xx13 | I134: 87 | J134: 2019-01-11 | K134: =IF(B134<>0,VLOOKUP(المبيعات!B134,v,6,FALSE),"") -> 5 | L134: 300 | M134: -33
A135: =ROW() -> 135 | B135: b40 | C135: صنف 6 | D135: 24 | E135: 1000 | F135: 5.65 | G135: 135.6 | H135: xx13 | I135: 87 | J135: 2019-01-11 | K135: =IF(B135<>0,VLOOKUP(المبيعات!B135,v,6,FALSE),"") -> 6 | L135: 144 | M135: -8.4
A136: =ROW() -> 136 | B136: b50 | C136: صنف 7 | D136: 25 | E136: 1000 | F136: 6.6 | G136: 165 | H136: xx13 | I136: 87 | J136: 2019-01-11 | K136: =IF(B136<>0,VLOOKUP(المبيعات!B136,v,6,FALSE),"") -> 7 | L136: 175 | M136: -10
A137: =ROW() -> 137 | B137: b70 | C137: صنف 9 | D137: 15 | E137: 1000 | F137: 10.85 | G137: 162.75 | H137: xx13 | I137: 87 | J137: 2019-01-11 | K137: =IF(B137<>0,VLOOKUP(المبيعات!B137,v,6,FALSE),"") -> 9 | L137: 135 | M137: 27.75
A138: =ROW() -> 138 | B138: b70 | C138: صنف 9 | D138: 3 | E138: 1000 | F138: 11 | G138: 33 | H138: xx11 | I138: 89 | J138: 2019-01-11 | K138: =IF(B138<>0,VLOOKUP(المبيعات!B138,v,6,FALSE),"") -> 9 | L138: 27 | M138: 6
A139: =ROW() -> 139 | B139: gab17 | C139: صنف 12 | D139: 10 | E139: برميل | F139: 27 | G139: 270 | H139: xx1 | I139: 90 | J139: 2019-01-16 | K139: =IF(B139<>0,VLOOKUP(المبيعات!B139,v,6,FALSE),"") -> 12 | L139: 120 | M139: 150
A140: =ROW() -> 140 | B140: gas17 | C140: صنف 14 | D140: 3 | E140: برميل | F140: 39 | G140: 117 | H140: xx1 | I140: 90 | J140: 2019-01-16 | K140: =IF(B140<>0,VLOOKUP(المبيعات!B140,v,6,FALSE),"") -> 14 | L140: 42 | M140: 75
A141: =ROW() -> 141 | B141: gas17 | C141: صنف 14 | D141: 3 | E141: برميل | F141: 39 | G141: 117 | H141: xx1 | I141: 95 | J141: 2019-01-22 | K141: =IF(B141<>0,VLOOKUP(المبيعات!B141,v,6,FALSE),"") -> 14 | L141: =IFERROR(SUM(K141*D141),"") -> 42 | M141: 75
A142: =ROW() -> 142 | B142: 756 | C142: صنف 29 | D142: 15 | E142: ربطة 10 | F142: 11 | G142: 165 | H142: xx1 | I142: 98 | J142: 2019-01-30 | K142: =IF(B142<>0,VLOOKUP(المبيعات!B142,v,6,FALSE),"") -> 29 | L142: 435 | M142: -270
A143: =ROW() -> 143 | B143: b50 | C143: صنف 7 | D143: 25 | E143: 1000 | F143: 6.6 | G143: 165 | H143: xx13 | I143: 99 | J143: 2019-01-31 | K143: =IF(B143<>0,VLOOKUP(المبيعات!B143,v,6,FALSE),"") -> 7 | L143: 175 | M143: -10
A144: =ROW() -> 144 | B144: b30 | C144: صنف 5 | D144: 60 | E144: 1000 | F144: 4.4 | G144: 264 | H144: xx2 | I144: 100 | J144: 2019-01-31 | K144: =IF(B144<>0,VLOOKUP(المبيعات!B144,v,6,FALSE),"") -> 5 | L144: 300 | M144: -36
A145: =ROW() -> 145 | B145: b50 | C145: صنف 7 | D145: 25 | E145: 1000 | F145: 6.5 | G145: 162.5 | H145: xx2 | I145: 100 | J145: 2019-01-31 | K145: =IF(B145<>0,VLOOKUP(المبيعات!B145,v,6,FALSE),"") -> 7 | L145: 175 | M145: -12.5
A146: =ROW() -> 146 | B146: b20 | C146: صنف 3 | D146: 90 | E146: 1000 | F146: 3.5 | G146: 315 | H146: xx1 | I146: 107 | J146: 2019-02-04 | K146: =IF(B146<>0,VLOOKUP(المبيعات!B146,v,6,FALSE),"") -> 3 | L146: 270 | M146: =IFERROR(SUM(G146-L146),"") -> 45
A147: =ROW() -> 147 | B147: b25 | C147: صنف 4 | D147: 60 | E147: 1000 | F147: 3.9 | G147: 234 | H147: xx1 | I147: 107 | J147: 2019-02-04 | K147: =IF(B147<>0,VLOOKUP(المبيعات!B147,v,6,FALSE),"") -> 4 | L147: 240 | M147: -6
A148: =ROW() -> 148 | B148: b30 | C148: صنف 5 | D148: 60 | E148: 1000 | F148: 4.45 | G148: 267 | H148: xx1 | I148: 107 | J148: 2019-02-04 | K148: =IF(B148<>0,VLOOKUP(المبيعات!B148,v,6,FALSE),"") -> 5 | L148: 300 | M148: -33
A149: =ROW() -> 149 | B149: b50 | C149: صنف 7 | D149: 25 | E149: 1000 | F149: 6.5 | G149: 162.5 | H149: xx1 | I149: 107 | J149: 2019-02-04 | K149: =IF(B149<>0,VLOOKUP(المبيعات!B149,v,6,FALSE),"") -> 7 | L149: 175 | M149: -12.5
A150: =ROW() -> 150 | B150: gabt25 | C150: صنف 21 | D150: 1 | E150: برميل | F150: 35 | G150: 35 | H150: xx1 | I150: 108 | J150: 2019-02-04 | K150: =IF(B150<>0,VLOOKUP(المبيعات!B150,v,6,FALSE),"") -> 21 | L150: 21 | M150: 14
A151: =ROW() -> 151 | B151: nt1.8 | C151: صنف 34 | D151: 5 | E151: صندوق 6 | F151: 18 | G151: 90 | H151: xx1 | I151: 108 | J151: 2019-02-04 | K151: =IF(B151<>0,VLOOKUP(المبيعات!B151,v,6,FALSE),"") -> 34 | L151: 170 | M151: -80
A152: =ROW() -> 152 | B152: 756 | C152: صنف 29 | D152: 100 | E152: ربطة 10 | F152: 10 | G152: 1000 | H152: xx3 | I152: 110 | J152: 2019-02-06 | K152: =IF(B152<>0,VLOOKUP(المبيعات!B152,v,6,FALSE),"") -> 29 | L152: 2900 | M152: -1900
A153: =ROW() -> 153 | B153: rglens | C153: صنف 24 | D153: 100 | E153: وحدة | F153: 0.7 | G153: 70 | H153: xx3 | I153: 110 | J153: 2019-02-06 | K153: =IF(B153<>0,VLOOKUP(المبيعات!B153,v,6,FALSE),"") -> 24 | L153: 2400 | M153: -2330
A154: =ROW() -> 154 | B154: sh3 | C154: صنف 35 | D154: 3 | E154: صندوق 25 | F154: 28.5 | G154: 85.5 | H154: xx3 | I154: 110 | J154: 2019-02-06 | K154: =IF(B154<>0,VLOOKUP(المبيعات!B154,v,6,FALSE),"") -> 35 | L154: 105 | M154: -19.5
A155: =ROW() -> 155 | B155: shd | C155: صنف 40 | D155: 2 | E155: صندوق 25 | F155: 44 | G155: 88 | H155: xx3 | I155: 110 | J155: 2019-02-06 | K155: =IF(B155<>0,VLOOKUP(المبيعات!B155,v,6,FALSE),"") -> 40 | L155: 80 | M155: 8
A156: =ROW() -> 156 | B156: b18 | C156: صنف 2 | D156: 36 | E156: 1000 | F156: 3.5 | G156: 126 | H156: xx3 | I156: 110 | J156: 2019-02-06 | K156: =IF(B156<>0,VLOOKUP(المبيعات!B156,v,6,FALSE),"") -> 2 | L156: 72 | M156: 54
A157: =ROW() -> 157 | B157: b20 | C157: صنف 3 | D157: 36 | E157: 1000 | F157: 3.65 | G157: 131.4 | H157: xx3 | I157: 110 | J157: 2019-02-06 | K157: =IF(B157<>0,VLOOKUP(المبيعات!B157,v,6,FALSE),"") -> 3 | L157: 108 | M157: 23.4
A158: =ROW() -> 158 | B158: b30 | C158: صنف 5 | D158: 48 | E158: 1000 | F158: 4.6 | G158: 220.8 | H158: xx3 | I158: 110 | J158: 2019-02-06 | K158: =IF(B158<>0,VLOOKUP(المبيعات!B158,v,6,FALSE),"") -> 5 | L158: 240 | M158: -19.2
A159: =ROW() -> 159 | B159: b50 | C159: صنف 7 | D159: 20 | E159: 1000 | F159: 6.65 | G159: 133 | H159: xx3 | I159: 110 | J159: 2019-02-06 | K159: =IF(B159<>0,VLOOKUP(المبيعات!B159,v,6,FALSE),"") -> 7 | L159: 140 | M159: -7
A160: =ROW() -> 160 | B160: b70 | C160: صنف 9 | D160: 6 | E160: 1000 | F160: 11 | G160: 66 | H160: xx3 | I160: 110 | J160: 2019-02-06 | K160: =IF(B160<>0,VLOOKUP(المبيعات!B160,v,6,FALSE),"") -> 9 | L160: 54 | M160: 12
A161: =ROW() -> 161 | B161: lw19 | C161: صنف 37 | D161: 1 | E161: صندوق | F161: 12.5 | G161: 12.5 | H161: xx3 | I161: 110 | J161: 2019-02-06 | K161: =IF(B161<>0,VLOOKUP(المبيعات!B161,v,6,FALSE),"") -> 37 | L161: 37 | M161: -24.5
A162: =ROW() -> 162 | B162: lw25 | C162: صنف 38 | D162: 1 | E162: صندوق | F162: 12.5 | G162: 12.5 | H162: xx3 | I162: 110 | J162: 2019-02-06 | K162: =IF(B162<>0,VLOOKUP(المبيعات!B162,v,6,FALSE),"") -> 38 | L162: 38 | M162: -25.5
A163: =ROW() -> 163 | B163: lw50 | C163: صنف 39 | D163: 1 | E163: صندوق | F163: 12.5 | G163: 12.5 | H163: xx3 | I163: 110 | J163: 2019-02-06 | K163: =IF(B163<>0,VLOOKUP(المبيعات!B163,v,6,FALSE),"") -> 39 | L163: 39 | M163: -26.5
A164: =ROW() -> 164 | B164: ln80 | C164: صنف 36 | D164: 2 | E164: صندوق 36 | F164: 16.5 | G164: 33 | H164: xx3 | I164: 110 | J164: 2019-02-06 | K164: =IF(B164<>0,VLOOKUP(المبيعات!B164,v,6,FALSE),"") -> 36 | L164: 72 | M164: -39
A165: =ROW() -> 165 | B165: 756 | C165: صنف 29 | D165: 50 | E165: ربطة 10 | F165: 11 | G165: 550 | H165: xx14 | I165: 113 | J165: 2019-02-06 | K165: =IF(B165<>0,VLOOKUP(المبيعات!B165,v,6,FALSE),"") -> 29 | L165: 1450 | M165: -900
A166: =ROW() -> 166 | B166: gab3 | C166: صنف 11 | D166: 30 | E166: غالون | F166: 5 | G166: 150 | H166: xx14 | I166: 113 | J166: 2019-02-06 | K166: =IF(B166<>0,VLOOKUP(المبيعات!B166,v,6,FALSE),"") -> 11 | L166: 330 | M166: -180
A167: =ROW() -> 167 | B167: gab17 | C167: صنف 12 | D167: 6 | E167: برميل | F167: 28 | G167: 168 | H167: xx14 | I167: 113 | J167: 2019-02-06 | K167: =IF(B167<>0,VLOOKUP(المبيعات!B167,v,6,FALSE),"") -> 12 | L167: =IFERROR(SUM(K167*D167),"") -> 72 | M167: 96
A168: =ROW() -> 168 | B168: 5k10 | C168: صنف 26 | D168: 25 | E168: كيلو | F168: 1.6 | G168: 40 | H168: xx14 | I168: 113 | J168: 2019-02-06 | K168: =IF(B168<>0,VLOOKUP(المبيعات!B168,v,6,FALSE),"") -> 26 | L168: 650 | M168: -610
A169: =ROW() -> 169 | B169: 5k12 | C169: صنف 27 | D169: 25 | E169: كيلو | F169: 1.5 | G169: 37.5 | H169: xx14 | I169: 113 | J169: 2019-02-06 | K169: =IF(B169<>0,VLOOKUP(المبيعات!B169,v,6,FALSE),"") -> 27 | L169: 675 | M169: -637.5
A170: =ROW() -> 170 | B170: lw25 | C170: صنف 38 | D170: 10 | E170: صندوق | F170: 12.5 | G170: 125 | H170: xx1 | I170: 116 | J170: 2019-02-06 | K170: =IF(B170<>0,VLOOKUP(المبيعات!B170,v,6,FALSE),"") -> 38 | L170: 380 | M170: -255
A171: =ROW() -> 171 | B171: lw19 | C171: صنف 37 | D171: 5 | E171: صندوق | F171: 12.5 | G171: 62.5 | H171: xx1 | I171: 116 | J171: 2019-02-06 | K171: =IF(B171<>0,VLOOKUP(المبيعات!B171,v,6,FALSE),"") -> 37 | L171: 185 | M171: -122.5
A172: =ROW() -> 172 | B172: lw50 | C172: صنف 39 | D172: 5 | E172: صندوق | F172: 12.5 | G172: 62.5 | H172: xx1 | I172: 116 | J172: 2019-02-06 | K172: =IF(B172<>0,VLOOKUP(المبيعات!B172,v,6,FALSE),"") -> 39 | L172: 195 | M172: -132.5
A173: =ROW() -> 173 | B173: ln80 | C173: صنف 36 | D173: 2 | E173: صندوق 36 | F173: 16.5 | G173: 33 | H173: xx1 | I173: 116 | J173: 2019-02-06 | K173: =IF(B173<>0,VLOOKUP(المبيعات!B173,v,6,FALSE),"") -> 36 | L173: 72 | M173: -39
A174: =ROW() -> 174 | B174: nt1.8 | C174: صنف 34 | D174: 10 | E174: صندوق 6 | F174: 18 | G174: 180 | H174: xx1 | I174: 116 | J174: 2019-02-06 | K174: =IF(B174<>0,VLOOKUP(المبيعات!B174,v,6,FALSE),"") -> 34 | L174: 340 | M174: -160
A175: =ROW() -> 175 | B175: shd | C175: صنف 40 | D175: 3 | E175: صندوق 25 | F175: 44 | G175: 132 | H175: xx1 | I175: 116 | J175: 2019-02-06 | K175: =IF(B175<>0,VLOOKUP(المبيعات!B175,v,6,FALSE),"") -> 40 | L175: 120 | M175: 12
A176: =ROW() -> 176 | B176: sh3 | C176: صنف 35 | D176: 5 | E176: صندوق 25 | F176: 28.5 | G176: 142.5 | H176: xx1 | I176: 116 | J176: 2019-02-06 | K176: =IF(B176<>0,VLOOKUP(المبيعات!B176,v,6,FALSE),"") -> 35 | L176: 175 | M176: -32.5
A177: =ROW() -> 177 | B177: b40 | C177: صنف 6 | D177: 40 | E177: 1000 | F177: 5.5 | G177: 220 | H177: xx2 | I177: 117 | J177: 2019-02-07 | K177: =IF(B177<>0,VLOOKUP(المبيعات!B177,v,6,FALSE),"") -> 6 | L177: 240 | M177: -20
A178: =ROW() -> 178 | B178: b50 | C178: صنف 7 | D178: 25 | E178: 1000 | F178: 6.5 | G178: 162.5 | H178: xx2 | I178: 117 | J178: 2019-02-07 | K178: =IF(B178<>0,VLOOKUP(المبيعات!B178,v,6,FALSE),"") -> 7 | L178: 175 | M178: =IFERROR(SUM(G178-L178),"") -> -12.5
A179: =ROW() -> 179 | B179: b40 | C179: صنف 6 | D179: 8 | E179: 1000 | F179: 5.5 | G179: 44 | H179: xx10 | I179: 120 | J179: 2019-02-08 | K179: =IF(B179<>0,VLOOKUP(المبيعات!B179,v,6,FALSE),"") -> 6 | L179: 48 | M179: -4
A180: =ROW() -> 180 | B180: b50 | C180: صنف 7 | D180: 10 | E180: 1000 | F180: 6.5 | G180: 65 | H180: xx10 | I180: 120 | J180: 2019-02-08 | K180: =IF(B180<>0,VLOOKUP(المبيعات!B180,v,6,FALSE),"") -> 7 | L180: 70 | M180: -5
A181: =ROW() -> 181 | B181: sh3 | C181: صنف 35 | D181: 2 | E181: صندوق 25 | F181: 28.5 | G181: 57 | H181: xx13 | I181: 121 | J181: 2019-02-08 | K181: =IF(B181<>0,VLOOKUP(المبيعات!B181,v,6,FALSE),"") -> 35 | L181: 70 | M181: -13
A182: =ROW() -> 182 | B182: shd | C182: صنف 40 | D182: 1 | E182: صندوق 25 | F182: 44 | G182: 44 | H182: xx13 | I182: 121 | J182: 2019-02-08 | K182: =IF(B182<>0,VLOOKUP(المبيعات!B182,v,6,FALSE),"") -> 40 | L182: 40 | M182: 4
A183: =ROW() -> 183 | B183: nt1.8 | C183: صنف 34 | D183: 5 | E183: صندوق 6 | F183: 18 | G183: 90 | H183: xx13 | I183: 121 | J183: 2019-02-08 | K183: =IF(B183<>0,VLOOKUP(المبيعات!B183,v,6,FALSE),"") -> 34 | L183: 170 | M183: -80
A184: =ROW() -> 184 | B184: lw19 | C184: صنف 37 | D184: 2 | E184: صندوق | F184: 12.5 | G184: 25 | H184: xx13 | I184: 121 | J184: 2019-02-08 | K184: =IF(B184<>0,VLOOKUP(المبيعات!B184,v,6,FALSE),"") -> 37 | L184: 74 | M184: -49
A185: =ROW() -> 185 | B185: lw25 | C185: صنف 38 | D185: 2 | E185: صندوق | F185: 12.5 | G185: 25 | H185: xx13 | I185: 121 | J185: 2019-02-08 | K185: =IF(B185<>0,VLOOKUP(المبيعات!B185,v,6,FALSE),"") -> 38 | L185: 76 | M185: -51
A186: =ROW() -> 186 | B186: lw50 | C186: صنف 39 | D186: 2 | E186: صندوق | F186: 12.5 | G186: 25 | H186: xx13 | I186: 121 | J186: 2019-02-08 | K186: =IF(B186<>0,VLOOKUP(المبيعات!B186,v,6,FALSE),"") -> 39 | L186: 78 | M186: -53
A187: =ROW() -> 187 | B187: b40 | C187: صنف 6 | D187: 40 | E187: 1000 | F187: 5.5 | G187: 220 | H187: xx9 | I187: 122 | J187: 2019-02-08 | K187: =IF(B187<>0,VLOOKUP(المبيعات!B187,v,6,FALSE),"") -> 6 | L187: 240 | M187: -20
A188: =ROW() -> 188 | B188: b50 | C188: صنف 7 | D188: 25 | E188: 1000 | F188: 6.6 | G188: 165 | H188: xx13 | I188: 125 | J188: 2019-02-09 | K188: =IF(B188<>0,VLOOKUP(المبيعات!B188,v,6,FALSE),"") -> 7 | L188: 175 | M188: -10
A189: =ROW() -> 189 | B189: nt1.8 | C189: صنف 34 | D189: 10 | E189: صندوق 6 | F189: 18 | G189: 180 | H189: xx4 | I189: 126 | J189: 2019-02-09 | K189: =IF(B189<>0,VLOOKUP(المبيعات!B189,v,6,FALSE),"") -> 34 | L189: 340 | M189: -160
A190: =ROW() -> 190 | B190: bas3.5*16 | C190: صنف 41 | D190: 48 | E190: 1000 | F190: 2.2 | G190: 105.6 | H190: xx13 | I190: 127 | J190: 2019-02-11 | K190: =IF(B190<>0,VLOOKUP(المبيعات!B190,v,6,FALSE),"") -> 41 | L190: 1968 | M190: -1862.4
A191: =ROW() -> 191 | B191: b60 | C191: صنف 8 | D191: 24 | E191: 1000 | F191: 8.5 | G191: 204 | H191: xx13 | I191: 127 | J191: 2019-02-11 | K191: =IF(B191<>0,VLOOKUP(المبيعات!B191,v,6,FALSE),"") -> 8 | L191: 192 | M191: 12
A192: =ROW() -> 192 | B192: nt1.8 | C192: صنف 34 | D192: 5 | E192: صندوق 6 | F192: 18 | G192: 90 | H192: xx14 | I192: 129 | J192: 2019-02-13 | K192: =IF(B192<>0,VLOOKUP(المبيعات!B192,v,6,FALSE),"") -> 34 | L192: 170 | M192: -80
A193: =ROW() -> 193 | B193: sh3 | C193: صنف 35 | D193: 1 | E193: صندوق 25 | F193: 28.5 | G193: 28.5 | H193: xx7 | I193: 131 | J193: 2019-02-13 | K193: =IF(B193<>0,VLOOKUP(المبيعات!B193,v,6,FALSE),"") -> 35 | L193: 35 | M193: -6.5
A194: =ROW() -> 194 | B194: shd | C194: صنف 40 | D194: 1 | E194: صندوق 25 | F194: 44 | G194: 44 | H194: xx7 | I194: 131 | J194: 2019-02-13 | K194: =IF(B194<>0,VLOOKUP(المبيعات!B194,v,6,FALSE),"") -> 40 | L194: 40 | M194: 4
A195: =ROW() -> 195 | B195: b50 | C195: صنف 7 | D195: 5 | E195: 1000 | F195: 6.65 | G195: 33.25 | H195: xx11 | I195: 132 | J195: 2019-02-13 | K195: =IF(B195<>0,VLOOKUP(المبيعات!B195,v,6,FALSE),"") -> 7 | L195: 35 | M195: -1.75
A196: =ROW() -> 196 | B196: b18 | C196: صنف 2 | D196: 180 | E196: 1000 | F196: 3.12 | G196: 561.6 | H196: xx9 | I196: 134 | J196: 2019-02-15 | K196: =IF(B196<>0,VLOOKUP(المبيعات!B196,v,6,FALSE),"") -> 2 | L196: 360 | M196: 201.6
A197: =ROW() -> 197 | B197: gab.50 | C197: صنف 15 | D197: 30 | E197: مرطبان | F197: 1 | G197: 30 | H197: xx9 | I197: 134 | J197: 2019-02-15 | K197: =IF(B197<>0,VLOOKUP(المبيعات!B197,v,6,FALSE),"") -> 15 | L197: 450 | M197: -420
A198: 307 | B198: f15 | C198: صنف 42 | D198: 40 | E198: وحدة | F198: 1.25 | G198: 50 | H198: xx1 | I198: 135 | J198: 2019-02-15 | K198: =IF(B198<>0,VLOOKUP(المبيعات!B198,v,6,FALSE),"") -> 42 | L198: 1680 | M198: -1630
A199: 308 | B199: f20 | C199: صنف 43 | D199: 40 | E199: وحدة | F199: 1.5 | G199: 60 | H199: xx1 | I199: 135 | J199: 2019-02-15 | K199: =IF(B199<>0,VLOOKUP(المبيعات!B199,v,6,FALSE),"") -> 43 | L199: 1720 | M199: -1660
A200: 309 | B200: f25 | C200: صنف 44 | D200: 300 | E200: وحدة | F200: 1.75 | G200: 525 | H200: xx1 | I200: 135 | J200: 2019-02-15 | K200: =IF(B200<>0,VLOOKUP(المبيعات!B200,v,6,FALSE),"") -> 44 | L200: 13200 | M200: -12675
... 4300 more rows

Sheet الاصناف
A1: كود الصنف | B1: الوصف | C1: عدد | D1: الوحدة | E1: سعر | F1: الكلفة | G1: العدد | H1: الباقي من | I1: سعر البضاعة الباقية | J1: رصيد الزبائن | K1: المجموع
A2: 2 | B2: فاتورة | E2: البيع | G2: المباع | H2: الاصناف | I2: =SUM(I4:I100006) -> 1074634 | J2: =SUM('اسماء الزبائن'!E:E) -> 10970.7 | K2: =J2+I2+J3 -> 1092360.7
A3: 3 | B3: دفعة | J3: 6756
A4: b15 | B4: صنف 1 | C4: 1536 | D4: 1000 | E4: 2 | F4: 1 | G4: =SUMIF(المبيعات!B:B,A4,المبيعات!D:D) -> 1224 | H4: =IFERROR(SUM(C4-G4),"") -> 312 | I4: =H4*F4 -> 312
A5: b18 | B5: صنف 2 | C5: 1728 | D5: 1000 | E5: 3 | F5: 2 | G5: =SUMIF(المبيعات!B:B,A5,المبيعات!D:D) -> 1098 | H5: =IFERROR(SUM(C5-G5),"") -> 630 | I5: =H5*F5 -> 1260
A6: b20 | B6: صنف 3 | C6: 666 | D6: 1000 | E6: 4 | F6: 3 | G6: =SUMIF(المبيعات!B:B,A6,المبيعات!D:D) -> 630 | H6: 36 | I6: 108
A7: b25 | B7: صنف 4 | C7: 1212 | D7: 1000 | E7: 5 | F7: 4 | G7: =SUMIF(المبيعات!B:B,A7,المبيعات!D:D) -> 912 | H7: 300 | I7: 1200
A8: b30 | B8: صنف 5 | C8: 3132 | D8: 1000 | E8: 6 | F8: 5 | G8: =SUMIF(المبيعات!B:B,A8,المبيعات!D:D) -> 1584 | H8: 1548 | I8: 7740
A9: b40 | B9: صنف 6 | C9: 768 | D9: 1000 | E9: 7 | F9: 6 | G9: =SUMIF(المبيعات!B:B,A9,المبيعات!D:D) -> 640 | H9: 128 | I9: 768
A10: b50 | B10: صنف 7 | C10: 2905 | D10: 1000 | E10: 8 | F10: 7 | G10: =SUMIF(المبيعات!B:B,A10,المبيعات!D:D) -> 1241 | H10: =IFERROR(SUM(C10-G10),"") -> 1664 | I10: 11648
A11: b60 | B11: صنف 8 | C11: 24 | D11: 1000 | E11: 9 | F11: 8 | G11: =SUMIF(المبيعات!B:B,A11,المبيعات!D:D) -> 24 | H11: =IFERROR(SUM(C11-G11),"") -> 0 | I11: 0
A12: b70 | B12: صنف 9 | C12: 288 | D12: 1000 | E12: 10 | F12: 9 | G12: =SUMIF(المبيعات!B:B,A12,المبيعات!D:D) -> 264 | H12: 24 | I12: 216
A13: b100 | B13: صنف 10 | C13: 89.6 | D13: 1000 | E13: 11 | F13: 10 | G13: =SUMIF(المبيعات!B:B,A13,المبيعات!D:D) -> 78.4 | H13: 11.2 | I13: 112
A14: gab3 | B14: صنف 11 | C14: 650 | D14: غالون | E14: 12 | F14: 11 | G14: =SUMIF(المبيعات!B:B,A14,المبيعات!D:D) -> 369 | H14: =IFERROR(SUM(C14-G14),"") -> 281 | I14: 3091
A15: gab17 | B15: صنف 12 | C15: 120 | D15: برميل | E15: 13 | F15: 12 | G15: =SUMIF(المبيعات!B:B,A15,المبيعات!D:D) -> 91 | H15: 29 | I15: 348
A16: gas4 | B16: صنف 13 | C16: 210 | D16: غالون | E16: 14 | F16: 13 | G16: =SUMIF(المبيعات!B:B,A16,المبيعات!D:D) -> 62 | H16: 148 | I16: 1924
A17: gas17 | B17: صنف 14 | C17: 57 | D17: برميل | E17: 15 | F17: 14 | G17: =SUMIF(المبيعات!B:B,A17,المبيعات!D:D) -> 27 | H17: 30 | I17: 420
A18: gab.50 | B18: صنف 15 | C18: 300 | D18: مرطبان | E18: 16 | F18: 15 | G18: =SUMIF(المبيعات!B:B,A18,المبيعات!D:D) -> 158 | H18: 142 | I18: 2130
A19: gas.50 | B19: صنف 16 | C19: 150 | D19: مرطبان | E19: 17 | F19: 16 | G19: =SUMIF(المبيعات!B:B,A19,المبيعات!D:D) -> 45 | H19: 105 | I19: 1680
A20: naylon | B20: صنف 17 | C20: 14 | D20: كيلو | E20: 18 | F20: 17 | G20: =SUMIF(المبيعات!B:B,A20,المبيعات!D:D) -> 0 | H20: 14 | I20: 238
A21: lamba | B21: صنف 18 | C21: 1 | D21: غرفة | E21: 19 | F21: 18 | G21: =SUMIF(المبيعات!B:B,A21,المبيعات!D:D) -> 0 | H21: =IFERROR(SUM(C21-G21),"") -> 1 | I21: 18
A22: zrar | B22: صنف 19 | C22: 1 | D22: غرفة | E22: 20 | F22: 19 | G22: =SUMIF(المبيعات!B:B,A22,المبيعات!D:D) -> 0 | H22: 1 | I22: 19
A23: piano | B23: صنف 20 | C23: 1 | D23: غرفة | E23: 21 | F23: 20 | G23: =SUMIF(المبيعات!B:B,A23,المبيعات!D:D) -> 0 | H23: 1 | I23: 20
A24: gabt25 | B24: صنف 21 | C24: 4 | D24: برميل | E24: 22 | F24: 21 | G24: =SUMIF(المبيعات!B:B,A24,المبيعات!D:D) -> 4 | H24: 0 | I24: 0
A25: layzer120 | B25: صنف 22 | C25: 50 | D25: وحدة | E25: 23 | F25: 22 | G25: =SUMIF(المبيعات!B:B,A25,المبيعات!D:D) -> 0 | H25: 50 | I25: 1100
A26: layzer75 | B26: صنف 23 | C26: 50 | D26: وحدة | E26: 24 | F26: 23 | G26: =SUMIF(المبيعات!B:B,A26,المبيعات!D:D) -> 0 | H26: 50 | I26: 1150
A27: rglens | B27: صنف 24 | C27: 300 | D27: وحدة | E27: 25 | F27: 24 | G27: =SUMIF(المبيعات!B:B,A27,المبيعات!D:D) -> 100 | H27: 200 | I27: 4800
A28: rglenm | B28: صنف 25 | C28: 100 | D28: وحدة | E28: 26 | F28: 25 | G28: =SUMIF(المبيعات!B:B,A28,المبيعات!D:D) -> 62 | H28: 38 | I28: 950
A29: 5k10 | B29: صنف 26 | C29: 50 | D29: كيلو | E29: 27 | F29: 26 | G29: =SUMIF(المبيعات!B:B,A29,المبيعات!D:D) -> 30 | H29: =IFERROR(SUM(C29-G29),"") -> 20 | I29: 520
A30: 5k12 | B30: صنف 27 | C30: 50 | D30: كيلو | E30: 28 | F30: 27 | G30: =SUMIF(المبيعات!B:B,A30,المبيعات!D:D) -> 30 | H30: =IFERROR(SUM(C30-G30),"") -> 20 | I30: 540
A31: 757 | B31: صنف 28 | C31: 0 | D31: ربطة 10 | E31: 29 | F31: 28 | G31: =SUMIF(المبيعات!B:B,A31,المبيعات!D:D) -> 0 | H31: =IFERROR(SUM(C31-G31),"") -> 0 | I31: 0
A32: 756 | B32: صنف 29 | C32: 350 | D32: ربطة 10 | E32: 30 | F32: 29 | G32: =SUMIF(المبيعات!B:B,A32,المبيعات!D:D) -> 209 | H32: =IFERROR(SUM(C32-G32),"") -> 141 | I32: 4089
A33: 755 | B33: صنف 30 | C33: 50 | D33: ربطة 10 | E33: 31 | F33: 30 | G33: =SUMIF(المبيعات!B:B,A33,المبيعات!D:D) -> 49 | H33: =IFERROR(SUM(C33-G33),"") -> 1 | I33: 30
A34: 8 | B34: صنف 31 | C34: 100 | D34: قضيب | E34: 32 | F34: 31 | G34: =SUMIF(المبيعات!B:B,A34,المبيعات!D:D) -> 0 | H34: =IFERROR(SUM(C34-G34),"") -> 100 | I34: 3100
A35: 10 | B35: صنف 32 | C35: 0 | D35: قضيب | E35: 33 | F35: 32 | G35: =SUMIF(المبيعات!B:B,A35,المبيعات!D:D) -> 0 | H35: 0 | I35: 0
A36: 12 | B36: صنف 33 | C36: 0 | D36: قضيب | E36: 34 | F36: 33 | G36: =SUMIF(المبيعات!B:B,A36,المبيعات!D:D) -> 0 | H36: 0 | I36: 0
A37: nt1.8 | B37: صنف 34 | C37: 350 | D37: صندوق 6 | E37: 35 | F37: 34 | G37: =SUMIF(المبيعات!B:B,A37,المبيعات!D:D) -> 257 | H37: 93 | I37: 3162
A38: sh3 | B38: صنف 35 | C38: 75 | D38: صندوق 25 | E38: 36 | F38: 35 | G38: =SUMIF(المبيعات!B:B,A38,المبيعات!D:D) -> 56 | H38: 19 | I38: 665
A39: ln80 | B39: صنف 36 | C39: 60 | D39: صندوق 36 | E39: 37 | F39: 36 | G39: =SUMIF(المبيعات!B:B,A39,المبيعات!D:D) -> 9 | H39: 51 | I39: 1836
A40: lw19 | B40: صنف 37 | C40: 100 | D40: صندوق | E40: 38 | F40: 37 | G40: =SUMIF(المبيعات!B:B,A40,المبيعات!D:D) -> 25 | H40: 75 | I40: 2775
A41: lw25 | B41: صنف 38 | C41: 175 | D41: صندوق | E41: 39 | F41: 38 | G41: =SUMIF(المبيعات!B:B,A41,المبيعات!D:D) -> 82 | H41: =IFERROR(SUM(C41-G41),"") -> 93 | I41: 3534
A42: lw50 | B42: صنف 39 | C42: 67 | D42: صندوق | E42: 40 | F42: 39 | G42: =SUMIF(المبيعات!B:B,A42,المبيعات!D:D) -> 48 | H42: 19 | I42: 741
A43: shd | B43: صنف 40 | C43: 50 | D43: صندوق 25 | E43: 41 | F43: 40 | G43: =SUMIF(المبيعات!B:B,A43,المبيعات!D:D) -> 22 | H43: 28 | I43: 1120
A44: bas3.5*16 | B44: صنف 41 | C44: 48 | D44: 1000 | E44: 42 | F44: 41 | G44: =SUMIF(المبيعات!B:B,A44,المبيعات!D:D) -> 48 | H44: 0 | I44: 0
A45: f15 | B45: صنف 42 | C45: 500 | D45: وحدة | E45: 43 | F45: 42 | G45: =SUMIF(المبيعات!B:B,A45,المبيعات!D:D) -> 160 | H45: 340 | I45: 14280
A46: f20 | B46: صنف 43 | C46: 1000 | D46: وحدة | E46: 44 | F46: 43 | G46: =SUMIF(المبيعات!B:B,A46,المبيعات!D:D) -> 100 | H46: 900 | I46: 38700
A47: f25 | B47: صنف 44 | C47: 4000 | D47: وحدة | E47: 45 | F47: 44 | G47: =SUMIF(المبيعات!B:B,A47,المبيعات!D:D) -> 1085 | H47: 2915 | I47: 128260
A48: f30 | B48: صنف 45 | C48: 4500 | D48: وحدة | E48: 46 | F48: 45 | G48: =SUMIF(المبيعات!B:B,A48,المبيعات!D:D) -> 1262 | H48: 3238 | I48: 145710
A49: f40 | B49: صنف 46 | C49: 1000 | D49: وحدة | E49: 47 | F49: 46 | G49: =SUMIF(المبيعات!B:B,A49,المبيعات!D:D) -> 370 | H49: 630 | I49: 28980
A50: f50 | B50: صنف 47 | C50: 500 | D50: وحدة | E50: 48 | F50: 47 | G50: =SUMIF(المبيعات!B:B,A50,المبيعات!D:D) -> 150 | H50: 350 | I50: 16450
A51: 1408 | B51: صنف 48 | C51: 500 | D51: وحدة | E51: 49 | F51: 48 | G51: =SUMIF(المبيعات!B:B,A51,المبيعات!D:D) -> 120 | H51: 380 | I51: 18240
A52: 1410 | B52: صنف 49 | C52: 2000 | D52: وحدة | E52: 50 | F52: 49 | G52: =SUMIF(المبيعات!B:B,A52,المبيعات!D:D) -> 300 | H52: 1700 | I52: 83300
A53: 1414 | B53: صنف 50 | C53: 1000 | D53: وحدة | E53: 51 | F53: 50 | G53: =SUMIF(المبيعات!B:B,A53,المبيعات!D:D) -> 280 | H53: 720 | I53: 36000
A54: 1416 | B54: صنف 51 | C54: 10 | D54: وحدة | E54: 52 | F54: 51 | G54: =SUMIF(المبيعات!B:B,A54,المبيعات!D:D) -> 0 | H54: 10 | I54: 510
A55: t40 | B55: صنف 52 | C55: 500 | D55: وحدة | E55: 53 | F55: 52 | G55: =SUMIF(المبيعات!B:B,A55,المبيعات!D:D) -> 500 | H55: 0 | I55: 0
A56: pat250 | B56: صنف 53 | C56: 120 | D56: علبة | E56: 54 | F56: 53 | G56: =SUMIF(المبيعات!B:B,A56,المبيعات!D:D) -> 40 | H56: =IFERROR(SUM(C56-G56),"") -> 80 | I56: =H56*F56 -> 4240
A57: bis40 | B57: صنف 54 | C57: 23 | D57: علبة 50 | E57: 55 | F57: 54 | G57: =SUMIF(المبيعات!B:B,A57,المبيعات!D:D) -> 18 | H57: 5 | I57: 270
A58: bis60 | B58: صنف 55 | C58: 15 | D58: علبة 50 | E58: 56 | F58: 55 | G58: =SUMIF(المبيعات!B:B,A58,المبيعات!D:D) -> 15 | H58: 0 | I58: 0
A59: bis601 | B59: صنف 56 | C59: 5 | D59: علبة 50 | E59: 57 | F59: 56 | G59: =SUMIF(المبيعات!B:B,A59,المبيعات!D:D) -> 1 | H59: =IFERROR(SUM(C59-G59),"") -> 4 | I59: =H59*F59 -> 224
A60: bis80 | B60: صنف 57 | C60: 20 | D60: علبة 50 | E60: 58 | F60: 57 | G60: =SUMIF(المبيعات!B:B,A60,المبيعات!D:D) -> 20 | H60: 0 | I60: 0
A61: bis801 | B61: صنف 58 | C61: 10 | D61: علبة 50 | E61: 59 | F61: 58 | G61: =SUMIF(المبيعات!B:B,A61,المبيعات!D:D) -> 6 | H61: =IFERROR(SUM(C61-G61),"") -> 4 | I61: =H61*F61 -> 232
A62: bis100 | B62: صنف 59 | C62: 20 | D62: علبة 50 | E62: 60 | F62: 59 | G62: =SUMIF(المبيعات!B:B,A62,المبيعات!D:D) -> 20 | H62: 0 | I62: 0
A63: bis101 | B63: صنف 60 | C63: 5 | D63: علبة 50 | E63: 61 | F63: 60 | G63: =SUMIF(المبيعات!B:B,A63,المبيعات!D:D) -> 1 | H63: =IFERROR(SUM(C63-G63),"") -> 4 | I63: =H63*F63 -> 240
A64: bis120 | B64: صنف 61 | C64: 40 | D64: علبة 50 | E64: 62 | F64: 61 | G64: =SUMIF(المبيعات!B:B,A64,المبيعات!D:D) -> 35 | H64: 5 | I64: 305
A65: bis150 | B65: صنف 62 | C65: 20 | D65: علبة 50 | E65: 63 | F65: 62 | G65: =SUMIF(المبيعات!B:B,A65,المبيعات!D:D) -> 13 | H65: 7 | I65: 434
A66: bik60 | B66: صنف 63 | C66: 2 | D66: علبة 50 | E66: 64 | F66: 63 | G66: =SUMIF(المبيعات!B:B,A66,المبيعات!D:D) -> 2 | H66: =IFERROR(SUM(C66-G66),"") -> 0 | I66: =H66*F66 -> 0
A67: bik80 | B67: صنف 64 | C67: 2 | D67: علبة 50 | E67: 65 | F67: 64 | G67: =SUMIF(المبيعات!B:B,A67,المبيعات!D:D) -> 2 | H67: =IFERROR(SUM(C67-G67),"") -> 0 | I67: =H67*F67 -> 0
A68: bik100 | B68: صنف 65 | C68: 2 | D68: علبة 50 | E68: 66 | F68: 65 | G68: =SUMIF(المبيعات!B:B,A68,المبيعات!D:D) -> 2 | H68: =IFERROR(SUM(C68-G68),"") -> 0 | I68: =H68*F68 -> 0
A69: bab40 | B69: صنف 66 | C69: 5 | D69: كف 50 | E69: 67 | F69: 66 | G69: =SUMIF(المبيعات!B:B,A69,المبيعات!D:D) -> 1 | H69: 4 | I69: 264
A70: bab60 | B70: صنف 67 | C70: 5 | D70: كف 50 | E70: 68 | F70: 67 | G70: =SUMIF(المبيعات!B:B,A70,المبيعات!D:D) -> 1 | H70: 4 | I70: 268
A71: bab80 | B71: صنف 68 | C71: 15 | D71: كف 50 | E71: 69 | F71: 68 | G71: =SUMIF(المبيعات!B:B,A71,المبيعات!D:D) -> 6 | H71: 9 | I71: 612
A72: bab100 | B72: صنف 69 | C72: 10 | D72: كف 50 | E72: 70 | F72: 69 | G72: =SUMIF(المبيعات!B:B,A72,المبيعات!D:D) -> 1 | H72: 9 | I72: 621
A73: bab120 | B73: صنف 70 | C73: 10 | D73: كف 50 | E73: 71 | F73: 70 | G73: =SUMIF(المبيعات!B:B,A73,المبيعات!D:D) -> 1 | H73: 9 | I73: 630
A74: bab150 | B74: صنف 71 | C74: 5 | D74: كف 50 | E74: 72 | F74: 71 | G74: =SUMIF(المبيعات!B:B,A74,المبيعات!D:D) -> 0 | H74: 5 | I74: 355
A75: bab180 | B75: صنف 72 | C75: 20 | D75: كف 50 | E75: 73 | F75: 72 | G75: =SUMIF(المبيعات!B:B,A75,المبيعات!D:D) -> 0 | H75: 20 | I75: 1440
A76: bab220 | B76: صنف 73 | C76: 10 | D76: كف 50 | E76: 74 | F76: 73 | G76: =SUMIF(المبيعات!B:B,A76,المبيعات!D:D) -> 0 | H76: 10 | I76: 730
A77: bab320 | B77: صنف 74 | C77: 5 | D77: كف 50 | E77: 75 | F77: 74 | G77: =SUMIF(المبيعات!B:B,A77,المبيعات!D:D) -> 5 | H77: 0 | I77: 0
A78: bab400 | B78: صنف 75 | C78: 5 | D78: كف 50 | E78: 76 | F78: 75 | G78: =SUMIF(المبيعات!B:B,A78,المبيعات!D:D) -> 0 | H78: 5 | I78: 375
A79: ba7120 | B79: صنف 76 | C79: 10 | D79: كف 50 | E79: 77 | F79: 76 | G79: =SUMIF(المبيعات!B:B,A79,المبيعات!D:D) -> 6 | H79: 4 | I79: 304
A80: ba7150 | B80: صنف 77 | C80: 10 | D80: كف 50 | E80: 78 | F80: 77 | G80: =SUMIF(المبيعات!B:B,A80,المبيعات!D:D) -> 6 | H80: 4 | I80: 308
A81: ba7180 | B81: صنف 78 | C81: 20 | D81: كف 50 | E81: 79 | F81: 78 | G81: =SUMIF(المبيعات!B:B,A81,المبيعات!D:D) -> 10 | H81: 10 | I81: 780
A82: ba7220 | B82: صنف 79 | C82: 20 | D82: كف 50 | E82: 80 | F82: 79 | G82: =SUMIF(المبيعات!B:B,A82,المبيعات!D:D) -> 0 | H82: 20 | I82: 1580
A83: ba7320 | B83: صنف 80 | C83: 20 | D83: كف 50 | E83: 81 | F83: 80 | G83: =SUMIF(المبيعات!B:B,A83,المبيعات!D:D) -> 0 | H83: =IFERROR(SUM(C83-G83),"") -> 20 | I83: =H83*F83 -> 1600
A84: ba7400 | B84: صنف 81 | C84: 20 | D84: كف 50 | E84: 82 | F84: 81 | G84: =SUMIF(المبيعات!B:B,A84,المبيعات!D:D) -> 0 | H84: 20 | I84: 1620
A85: basi80 | B85: صنف 82 | C85: 20 | D85: كف 50 | E85: 83 | F85: 82 | G85: =SUMIF(المبيعات!B:B,A85,المبيعات!D:D) -> 0 | H85: 20 | I85: 1640
A86: basi100 | B86: صنف 83 | C86: 20 | D86: كف 50 | E86: 84 | F86: 83 | G86: =SUMIF(المبيعات!B:B,A86,المبيعات!D:D) -> 0 | H86: 20 | I86: 1660
A87: basi120 | B87: صنف 84 | C87: 20 | D87: كف 50 | E87: 85 | F87: 84 | G87: =SUMIF(المبيعات!B:B,A87,المبيعات!D:D) -> 0 | H87: 20 | I87: 1680
A88: basi150 | B88: صنف 85 | C88: 20 | D88: كف 50 | E88: 86 | F88: 85 | G88: =SUMIF(المبيعات!B:B,A88,المبيعات!D:D) -> 0 | H88: 20 | I88: 1700
A89: basi180 | B89: صنف 86 | C89: 20 | D89: كف 50 | E89: 87 | F89: 86 | G89: =SUMIF(المبيعات!B:B,A89,المبيعات!D:D) -> 0 | H89: 20 | I89: 1720
A90: basi220 | B90: صنف 87 | C90: 20 | D90: كف 50 | E90: 88 | F90: 87 | G90: =SUMIF(المبيعات!B:B,A90,المبيعات!D:D) -> 0 | H90: 20 | I90: 1740
A91: basi320 | B91: صنف 88 | C91: 20 | D91: كف 50 | E91: 89 | F91: 88 | G91: =SUMIF(المبيعات!B:B,A91,المبيعات!D:D) -> 0 | H91: 20 | I91: 1760
A92: basi400 | B92: صنف 89 | C92: 20 | D92: كف 50 | E92: 90 | F92: 89 | G92: =SUMIF(المبيعات!B:B,A92,المبيعات!D:D) -> 0 | H92: 20 | I92: 1780
A93: basi500 | B93: صنف 90 | C93: 20 | D93: كف 50 | E93: 91 | F93: 90 | G93: =SUMIF(المبيعات!B:B,A93,المبيعات!D:D) -> 0 | H93: 20 | I93: 1800
A94: basi600 | B94: صنف 91 | C94: 20 | D94: كف 50 | E94: 92 | F94: 91 | G94: =SUMIF(المبيعات!B:B,A94,المبيعات!D:D) -> 0 | H94: 20 | I94: 1820
A95: basi800 | B95: صنف 92 | C95: 20 | D95: كف 50 | E95: 93 | F95: 92 | G95: =SUMIF(المبيعات!B:B,A95,المبيعات!D:D) -> 0 | H95: 20 | I95: 1840
A96: basi1200 | B96: صنف 93 | C96: 20 | D96: كف 50 | E96: 94 | F96: 93 | G96: =SUMIF(المبيعات!B:B,A96,المبيعات!D:D) -> 0 | H96: 20 | I96: 1860
A97: basi1500 | B97: صنف 94 | C97: 20 | D97: كف 50 | E97: 95 | F97: 94 | G97: =SUMIF(المبيعات!B:B,A97,المبيعات!D:D) -> 0 | H97: 20 | I97: 1880
A98: basi2000 | B98: صنف 95 | C98: 20 | D98: كف 50 | E98: 96 | F98: 95 | G98: =SUMIF(المبيعات!B:B,A98,المبيعات!D:D) -> 0 | H98: 20 | I98: 1900
A99: kbatw | B99: صنف 96 | C99: 60 | D99: وحدة | E99: 97 | F99: 96 | G99: =SUMIF(المبيعات!B:B,A99,المبيعات!D:D) -> 0 | H99: 60 | I99: 5760
A100: kab100 | B100: صنف 97 | C100: 66 | D100: وحدة | E100: 98 | F100: 97 | G100: =SUMIF(المبيعات!B:B,A100,المبيعات!D:D) -> 7 | H100: 59 | I100: 5723
A101: kas25m | B101: صنف 98 | C101: 110 | D101: ربطة | E101: 99 | F101: 98 | G101: =SUMIF(المبيعات!B:B,A101,المبيعات!D:D) -> 1 | H101: 109 | I101: 10682
A102: rbats6*100 | B102: صنف 99 | C102: 269 | D102: وحدة | E102: 100 | F102: 99 | G102: =SUMIF(المبيعات!B:B,A102,المبيعات!D:D) -> 0 | H102: 269 | I102: 26631
A103: rbats6*160 | B103: صنف 100 | C103: 500 | D103: وحدة | E103: 101 | F103: 100 | G103: =SUMIF(المبيعات!B:B,A103,المبيعات!D:D) -> 0 | H103: 500 | I103: 50000
A104: rbats8*160 | B104: صنف 101 | C104: 500 | D104: وحدة | E104: 102 | F104: 101 | G104: =SUMIF(المبيعات!B:B,A104,المبيعات!D:D) -> 0 | H104: 500 | I104: 50500
A105: rbats10*160 | B105: صنف 102 | C105: 500 | D105: وحدة | E105: 103 | F105: 102 | G105: =SUMIF(المبيعات!B:B,A105,المبيعات!D:D) -> 0 | H105: 500 | I105: 51000
A106: rmaf6.6ph2 | B106: صنف 103 | C106: 930 | D106: وحدة | E106: 104 | F106: 103 | G106: =SUMIF(المبيعات!B:B,A106,المبيعات!D:D) -> 50 | H106: 880 | I106: 90640
A107: rmaf6.6pz2 | B107: صنف 104 | C107: 1630 | D107: وحدة | E107: 105 | F107: 104 | G107: =SUMIF(المبيعات!B:B,A107,المبيعات!D:D) -> 50 | H107: 1580 | I107: 164320
A108: ssdi400m | B108: صنف 105 | C108: 20 | D108: صندوق | E108: 106 | F108: 105 | G108: =SUMIF(المبيعات!B:B,A108,المبيعات!D:D) -> 0 | H108: 20 | I108: 2100
A109: bhss120 | B109: صنف 106 | C109: 12 | D109: علبة 100 | E109: 107 | F109: 106 | G109: =SUMIF(المبيعات!B:B,A109,المبيعات!D:D) -> 0 | H109: 12 | I109: 1272
G110: =SUMIF(المبيعات!B:B,A110,المبيعات!D:D) -> 0 | H110: 0 | I110: 0
G111: =SUMIF(المبيعات!B:B,A111,المبيعات!D:D) -> 0 | H111: 0 | I111: 0
G112: =SUMIF(المبيعات!B:B,A112,المبيعات!D:D) -> 0 | H112: 0 | I112: 0
G113: =SUMIF(المبيعات!B:B,A113,المبيعات!D:D) -> 0 | H113: 0 | I113: 0
G114: =SUMIF(المبيعات!B:B,A114,المبيعات!D:D) -> 0 | H114: 0 | I114: 0
G115: =SUMIF(المبيعات!B:B,A115,المبيعات!D:D) -> 0 | H115: 0 | I115: 0
G116: =SUMIF(المبيعات!B:B,A116,المبيعات!D:D) -> 0 | H116: 0 | I116: 0
G117: =SUMIF(المبيعات!B:B,A117,المبيعات!D:D) -> 0 | H117: 0 | I117: 0
G118: =SUMIF(المبيعات!B:B,A118,المبيعات!D:D) -> 0 | H118: 0 | I118: 0
G119: =SUMIF(المبيعات!B:B,A119,المبيعات!D:D) -> 0 | H119: 0 | I119: 0
G120: =SUMIF(المبيعات!B:B,A120,المبيعات!D:D) -> 0 | H120: 0 | I120: 0
G121: =SUMIF(المبيعات!B:B,A121,المبيعات!D:D) -> 0 | H121: 0 | I121: 0
G122: =SUMIF(المبيعات!B:B,A122,المبيعات!D:D) -> 0 | H122: 0 | I122: 0
G123: =SUMIF(المبيعات!B:B,A123,المبيعات!D:D) -> 0 | H123: 0 | I123: 0
G124: =SUMIF(المبيعات!B:B,A124,المبيعات!D:D) -> 0 | H124: 0 | I124: 0
G125: =SUMIF(المبيعات!B:B,A125,المبيعات!D:D) -> 0 | H125: 0 | I125: 0
G126: =SUMIF(المبيعات!B:B,A126,المبيعات!D:D) -> 0 | H126: 0 | I126: 0
G127: =SUMIF(المبيعات!B:B,A127,المبيعات!D:D) -> 0 | H127: 0 | I127: 0
G128: =SUMIF(المبيعات!B:B,A128,المبيعات!D:D) -> 0 | H128: 0 | I128: 0
G129: =SUMIF(المبيعات!B:B,A129,المبيعات!D:D) -> 0 | H129: 0 | I129: 0
G130: =SUMIF(المبيعات!B:B,A130,المبيعات!D:D) -> 0 | H130: 0 | I130: 0
G131: =SUMIF(المبيعات!B:B,A131,المبيعات!D:D) -> 0 | H131: 0 | I131: 0
G132: =SUMIF(المبيعات!B:B,A132,المبيعات!D:D) -> 0 | H132: 0 | I132: 0
G133: =SUMIF(المبيعات!B:B,A133,المبيعات!D:D) -> 0 | H133: 0 | I133: 0
G134: =SUMIF(المبيعات!B:B,A134,المبيعات!D:D) -> 0 | H134: 0 | I134: 0
G135: =SUMIF(المبيعات!B:B,A135,المبيعات!D:D) -> 0 | H135: 0 | I135: 0
G136: =SUMIF(المبيعات!B:B,A136,المبيعات!D:D) -> 0 | H136: 0 | I136: 0

Sheet اسماء الزبائن
A1: الهاتف | B1: اسماء الزبائن | C1: رصيد الفواتير | D1: رصيد الدفعات | E1: رصيد الزبون
A2: x1 | B2: xx1 | C2: =SUMIF('كشف حساب'!A:A,B2,'كشف حساب'!C:C) -> 1100.5 | D2: =SUMIF('كشف حساب'!A:A,B2,'كشف حساب'!D:D) -> 1100.5 | E2: =C2-D2 -> 0
A3: x2 | B3: xx2 | C3: =SUMIF('كشف حساب'!A:A,B3,'كشف حساب'!C:C) -> 66 | D3: =SUMIF('كشف حساب'!A:A,B3,'كشف حساب'!D:D) -> 30 | E3: =C3-D3 -> 36
A4: x3 | B4: xx3 | C4: =SUMIF('كشف حساب'!A:A,B4,'كشف حساب'!C:C) -> 352.65 | D4: =SUMIF('كشف حساب'!A:A,B4,'كشف حساب'!D:D) -> 352.65 | E4: 0
A5: x4 | B5: xx4 | C5: =SUMIF('كشف حساب'!A:A,B5,'كشف حساب'!C:C) -> 14867.5 | D5: =SUMIF('كشف حساب'!A:A,B5,'كشف حساب'!D:D) -> 9849.45 | E5: 5018.05
A6: x5 | B6: xx5 | C6: =SUMIF('كشف حساب'!A:A,B6,'كشف حساب'!C:C) -> 10094.85 | D6: =SUMIF('كشف حساب'!A:A,B6,'كشف حساب'!D:D) -> 8108.35 | E6: 1986.5
A7: x6 | B7: xx6 | C7: =SUMIF('كشف حساب'!A:A,B7,'كشف حساب'!C:C) -> 5439.7 | D7: =SUMIF('كشف حساب'!A:A,B7,'كشف حساب'!D:D) -> 4281.23 | E7: 1158.47
A8: x7 | B8: xx7 | C8: =SUMIF('كشف حساب'!A:A,B8,'كشف حساب'!C:C) -> 2869.7 | D8: =SUMIF('كشف حساب'!A:A,B8,'كشف حساب'!D:D) -> 2555.2 | E8: 314.5
A9: x8 | B9: xx8 | C9: =SUMIF('كشف حساب'!A:A,B9,'كشف حساب'!C:C) -> 2710.7 | D9: =SUMIF('كشف حساب'!A:A,B9,'كشف حساب'!D:D) -> 2710.7 | E9: 0
A10: x9 | B10: xx9 | C10: =SUMIF('كشف حساب'!A:A,B10,'كشف حساب'!C:C) -> 8920.73 | D10: =SUMIF('كشف حساب'!A:A,B10,'كشف حساب'!D:D) -> 6793.55 | E10: 2127.18
A11: x10 | B11: xx10 | C11: =SUMIF('كشف حساب'!A:A,B11,'كشف حساب'!C:C) -> 2605.07 | D11: =SUMIF('كشف حساب'!A:A,B11,'كشف حساب'!D:D) -> 2275.07 | E11: 330
A12: x11 | B12: xx11 | C12: =SUMIF('كشف حساب'!A:A,B12,'كشف حساب'!C:C) -> 1776.5 | D12: =SUMIF('كشف حساب'!A:A,B12,'كشف حساب'!D:D) -> 1776.5 | E12: 0
A13: x12 | B13: xx12 | C13: =SUMIF('كشف حساب'!A:A,B13,'كشف حساب'!C:C) -> 1006.7 | D13: =SUMIF('كشف حساب'!A:A,B13,'كشف حساب'!D:D) -> 1006.7 | E13: 0
A14: x13 | B14: xx13 | C14: =SUMIF('كشف حساب'!A:A,B14,'كشف حساب'!C:C) -> 5148.063 | D14: =SUMIF('كشف حساب'!A:A,B14,'كشف حساب'!D:D) -> 5148.063 | E14: 0
A15: x14 | B15: xx14 | C15: =SUMIF('كشف حساب'!A:A,B15,'كشف حساب'!C:C) -> 353.57 | D15: =SUMIF('كشف حساب'!A:A,B15,'كشف حساب'!D:D) -> 353.57 | E15: 0
A16: x15 | B16: xx15 | C16: =SUMIF('كشف حساب'!A:A,B16,'كشف حساب'!C:C) -> 4692.2 | D16: =SUMIF('كشف حساب'!A:A,B16,'كشف حساب'!D:D) -> 4692.2 | E16: 0
A17: x16 | B17: xx16 | C17: =SUMIF('كشف حساب'!A:A,B17,'كشف حساب'!C:C) -> 0 | D17: =SUMIF('كشف حساب'!A:A,B17,'كشف حساب'!D:D) -> 0 | E17: 0
A18: x17 | B18: xx17 | C18: =SUMIF('كشف حساب'!A:A,B18,'كشف حساب'!C:C) -> 0 | D18: =SUMIF('كشف حساب'!A:A,B18,'كشف حساب'!D:D) -> 0 | E18: 0
A19: x18 | B19: xx18 | C19: =SUMIF('كشف حساب'!A:A,B19,'كشف حساب'!C:C) -> 0 | D19: =SUMIF('كشف حساب'!A:A,B19,'كشف حساب'!D:D) -> 0 | E19: 0
A20: x19 | B20: xx19 | C20: =SUMIF('كشف حساب'!A:A,B20,'كشف حساب'!C:C) -> 0 | D20: =SUMIF('كشف حساب'!A:A,B20,'كشف حساب'!D:D) -> 0 | E20: 0
A21: x20 | B21: xx20 | C21: =SUMIF('كشف حساب'!A:A,B21,'كشف حساب'!C:C) -> 0 | D21: =SUMIF('كشف حساب'!A:A,B21,'كشف حساب'!D:D) -> 0 | E21: 0
A22: x21 | B22: xx21 | C22: =SUMIF('كشف حساب'!A:A,B22,'كشف حساب'!C:C) -> 0 | D22: =SUMIF('كشف حساب'!A:A,B22,'كشف حساب'!D:D) -> 0 | E22: =C22-D22 -> 0
A23: x22 | B23: xx22 | C23: =SUMIF('كشف حساب'!A:A,B23,'كشف حساب'!C:C) -> 0 | D23: =SUMIF('كشف حساب'!A:A,B23,'كشف حساب'!D:D) -> 0 | E23: 0
A24: x23 | B24: xx23 | C24: =SUMIF('كشف حساب'!A:A,B24,'كشف حساب'!C:C) -> 0 | D24: =SUMIF('كشف حساب'!A:A,B24,'كشف حساب'!D:D) -> 0 | E24: 0
A25: x24 | B25: xx24 | C25: =SUMIF('كشف حساب'!A:A,B25,'كشف حساب'!C:C) -> 0 | D25: =SUMIF('كشف حساب'!A:A,B25,'كشف حساب'!D:D) -> 0 | E25: 0
A26: x25 | B26: xx25 | C26: =SUMIF('كشف حساب'!A:A,B26,'كشف حساب'!C:C) -> 0 | D26: =SUMIF('كشف حساب'!A:A,B26,'كشف حساب'!D:D) -> 0 | E26: 0
A27: x26 | B27: xx26 | C27: =SUMIF('كشف حساب'!A:A,B27,'كشف حساب'!C:C) -> 0 | D27: =SUMIF('كشف حساب'!A:A,B27,'كشف حساب'!D:D) -> 0 | E27: 0
A28: x27 | B28: xx27 | C28: =SUMIF('كشف حساب'!A:A,B28,'كشف حساب'!C:C) -> 0 | D28: =SUMIF('كشف حساب'!A:A,B28,'كشف حساب'!D:D) -> 0 | E28: 0
A29: x28 | B29: xx28 | C29: =SUMIF('كشف حساب'!A:A,B29,'كشف حساب'!C:C) -> 0 | D29: =SUMIF('كشف حساب'!A:A,B29,'كشف حساب'!D:D) -> 0 | E29: 0
A30: x29 | B30: xx29 | C30: =SUMIF('كشف حساب'!A:A,B30,'كشف حساب'!C:C) -> 0 | D30: =SUMIF('كشف حساب'!A:A,B30,'كشف حساب'!D:D) -> 0 | E30: 0
A31: x30 | B31: xx30 | C31: =SUMIF('كشف حساب'!A:A,B31,'كشف حساب'!C:C) -> 0 | D31: =SUMIF('كشف حساب'!A:A,B31,'كشف حساب'!D:D) -> 0 | E31: 0
A32: x31 | B32: xx31 | C32: =SUMIF('كشف حساب'!A:A,B32,'كشف حساب'!C:C) -> 0 | D32: =SUMIF('كشف حساب'!A:A,B32,'كشف حساب'!D:D) -> 0 | E32: 0
A33: x32 | B33: xx32 | C33: =SUMIF('كشف حساب'!A:A,B33,'كشف حساب'!C:C) -> 0 | D33: =SUMIF('كشف حساب'!A:A,B33,'كشف حساب'!D:D) -> 0 | E33: 0
A34: x33 | B34: xx33 | C34: =SUMIF('كشف حساب'!A:A,B34,'كشف حساب'!C:C) -> 0 | D34: =SUMIF('كشف حساب'!A:A,B34,'كشف حساب'!D:D) -> 0 | E34: 0
A35: x34 | B35: xx34 | C35: =SUMIF('كشف حساب'!A:A,B35,'كشف حساب'!C:C) -> 0 | D35: =SUMIF('كشف حساب'!A:A,B35,'كشف حساب'!D:D) -> 0 | E35: 0
A36: x35 | B36: xx35 | C36: =SUMIF('كشف حساب'!A:A,B36,'كشف حساب'!C:C) -> 0 | D36: =SUMIF('كشف حساب'!A:A,B36,'كشف حساب'!D:D) -> 0 | E36: 0
A37: x36 | B37: xx36 | C37: =SUMIF('كشف حساب'!A:A,B37,'كشف حساب'!C:C) -> 0 | D37: =SUMIF('كشف حساب'!A:A,B37,'كشف حساب'!D:D) -> 0 | E37: 0
A38: x37 | B38: xx37 | C38: =SUMIF('كشف حساب'!A:A,B38,'كشف حساب'!C:C) -> 0 | D38: =SUMIF('كشف حساب'!A:A,B38,'كشف حساب'!D:D) -> 0 | E38: 0
A39: x38 | B39: xx38 | C39: =SUMIF('كشف حساب'!A:A,B39,'كشف حساب'!C:C) -> 0 | D39: =SUMIF('كشف حساب'!A:A,B39,'كشف حساب'!D:D) -> 0 | E39: 0
A40: x39 | B40: xx39 | C40: =SUMIF('كشف حساب'!A:A,B40,'كشف حساب'!C:C) -> 0 | D40: =SUMIF('كشف حساب'!A:A,B40,'كشف حساب'!D:D) -> 0 | E40: 0
A41: x40 | B41: xx40 | C41: =SUMIF('كشف حساب'!A:A,B41,'كشف حساب'!C:C) -> 0 | D41: =SUMIF('كشف حساب'!A:A,B41,'كشف حساب'!D:D) -> 0 | E41: 0
A42: x41 | B42: xx41 | C42: =SUMIF('كشف حساب'!A:A,B42,'كشف حساب'!C:C) -> 0 | D42: =SUMIF('كشف حساب'!A:A,B42,'كشف حساب'!D:D) -> 0 | E42: 0
A43: x42 | B43: xx42 | C43: =SUMIF('كشف حساب'!A:A,B43,'كشف حساب'!C:C) -> 0 | D43: =SUMIF('كشف حساب'!A:A,B43,'كشف حساب'!D:D) -> 0 | E43: 0
A44: x43 | B44: xx43 | C44: =SUMIF('كشف حساب'!A:A,B44,'كشف حساب'!C:C) -> 0 | D44: =SUMIF('كشف حساب'!A:A,B44,'كشف حساب'!D:D) -> 0 | E44: 0
C45: =SUMIF('كشف حساب'!A:A,B45,'كشف حساب'!C:C) -> 0 | D45: =SUMIF('كشف حساب'!A:A,B45,'كشف حساب'!D:D) -> 0 | E45: 0
C46: =SUMIF('كشف حساب'!A:A,B46,'كشف حساب'!C:C) -> 0 | D46: =SUMIF('كشف حساب'!A:A,B46,'كشف حساب'!D:D) -> 0 | E46: 0
C47: =SUMIF('كشف حساب'!A:A,B47,'كشف حساب'!C:C) -> 0 | D47: =SUMIF('كشف حساب'!A:A,B47,'كشف حساب'!D:D) -> 0 | E47: 0
C48: =SUMIF('كشف حساب'!A:A,B48,'كشف حساب'!C:C) -> 0 | D48: =SUMIF('كشف حساب'!A:A,B48,'كشف حساب'!D:D) -> 0 | E48: 0
C49: =SUMIF('كشف حساب'!A:A,B49,'كشف حساب'!C:C) -> 0 | D49: =SUMIF('كشف حساب'!A:A,B49,'كشف حساب'!D:D) -> 0 | E49: 0
C50: =SUMIF('كشف حساب'!A:A,B50,'كشف حساب'!C:C) -> 0 | D50: =SUMIF('كشف حساب'!A:A,B50,'كشف حساب'!D:D) -> 0 | E50: 0
C51: =SUMIF('كشف حساب'!A:A,B51,'كشف حساب'!C:C) -> 0 | D51: =SUMIF('كشف حساب'!A:A,B51,'كشف حساب'!D:D) -> 0 | E51: 0
C52: =SUMIF('كشف حساب'!A:A,B52,'كشف حساب'!C:C) -> 0 | D52: =SUMIF('كشف حساب'!A:A,B52,'كشف حساب'!D:D) -> 0 | E52: 0
C53: =SUMIF('كشف حساب'!A:A,B53,'كشف حساب'!C:C) -> 0 | D53: =SUMIF('كشف حساب'!A:A,B53,'كشف حساب'!D:D) -> 0 | E53: 0
C54: =SUMIF('كشف حساب'!A:A,B54,'كشف حساب'!C:C) -> 0 | D54: =SUMIF('كشف حساب'!A:A,B54,'كشف حساب'!D:D) -> 0 | E54: 0
C55: =SUMIF('كشف حساب'!A:A,B55,'كشف حساب'!C:C) -> 0 | D55: =SUMIF('كشف حساب'!A:A,B55,'كشف حساب'!D:D) -> 0 | E55: 0
C56: =SUMIF('كشف حساب'!A:A,B56,'كشف حساب'!C:C) -> 0 | D56: =SUMIF('كشف حساب'!A:A,B56,'كشف حساب'!D:D) -> 0 | E56: 0
C57: =SUMIF('كشف حساب'!A:A,B57,'كشف حساب'!C:C) -> 0 | D57: =SUMIF('كشف حساب'!A:A,B57,'كشف حساب'!D:D) -> 0 | E57: 0
C58: =SUMIF('كشف حساب'!A:A,B58,'كشف حساب'!C:C) -> 0 | D58: =SUMIF('كشف حساب'!A:A,B58,'كشف حساب'!D:D) -> 0 | E58: 0
C59: =SUMIF('كشف حساب'!A:A,B59,'كشف حساب'!C:C) -> 0 | D59: =SUMIF('كشف حساب'!A:A,B59,'كشف حساب'!D:D) -> 0 | E59: 0
C60: =SUMIF('كشف حساب'!A:A,B60,'كشف حساب'!C:C) -> 0 | D60: =SUMIF('كشف حساب'!A:A,B60,'كشف حساب'!D:D) -> 0 | E60: 0
C61: =SUMIF('كشف حساب'!A:A,B61,'كشف حساب'!C:C) -> 0 | D61: =SUMIF('كشف حساب'!A:A,B61,'كشف حساب'!D:D) -> 0 | E61: 0
C62: =SUMIF('كشف حساب'!A:A,B62,'كشف حساب'!C:C) -> 0 | D62: =SUMIF('كشف حساب'!A:A,B62,'كشف حساب'!D:D) -> 0 | E62: 0
C63: =SUMIF('كشف حساب'!A:A,B63,'كشف حساب'!C:C) -> 0 | D63: =SUMIF('كشف حساب'!A:A,B63,'كشف حساب'!D:D) -> 0 | E63: 0
C64: =SUMIF('كشف حساب'!A:A,B64,'كشف حساب'!C:C) -> 0 | D64: =SUMIF('كشف حساب'!A:A,B64,'كشف حساب'!D:D) -> 0 | E64: 0
C65: =SUMIF('كشف حساب'!A:A,B65,'كشف حساب'!C:C) -> 0 | D65: =SUMIF('كشف حساب'!A:A,B65,'كشف حساب'!D:D) -> 0 | E65: 0
C66: =SUMIF('كشف حساب'!A:A,B66,'كشف حساب'!C:C) -> 0 | D66: =SUMIF('كشف حساب'!A:A,B66,'كشف حساب'!D:D) -> 0 | E66: 0
C67: =SUMIF('كشف حساب'!A:A,B67,'كشف حساب'!C:C) -> 0 | D67: =SUMIF('كشف حساب'!A:A,B67,'كشف حساب'!D:D) -> 0 | E67: 0
C68: =SUMIF('كشف حساب'!A:A,B68,'كشف حساب'!C:C) -> 0 | D68: =SUMIF('كشف حساب'!A:A,B68,'كشف حساب'!D:D) -> 0 | E68: 0
C69: =SUMIF('كشف حساب'!A:A,B69,'كشف حساب'!C:C) -> 0 | D69: =SUMIF('كشف حساب'!A:A,B69,'كشف حساب'!D:D) -> 0 | E69: 0
C70: =SUMIF('كشف حساب'!A:A,B70,'كشف حساب'!C:C) -> 0 | D70: =SUMIF('كشف حساب'!A:A,B70,'كشف حساب'!D:D) -> 0 | E70: 0
C71: =SUMIF('كشف حساب'!A:A,B71,'كشف حساب'!C:C) -> 0 | D71: =SUMIF('كشف حساب'!A:A,B71,'كشف حساب'!D:D) -> 0 | E71: 0
C72: =SUMIF('كشف حساب'!A:A,B72,'كشف حساب'!C:C) -> 0 | D72: =SUMIF('كشف حساب'!A:A,B72,'كشف حساب'!D:D) -> 0 | E72: 0
C73: =SUMIF('كشف حساب'!A:A,B73,'كشف حساب'!C:C) -> 0 | D73: =SUMIF('كشف حساب'!A:A,B73,'كشف حساب'!D:D) -> 0 | E73: 0
C74: =SUMIF('كشف حساب'!A:A,B74,'كشف حساب'!C:C) -> 0 | D74: =SUMIF('كشف حساب'!A:A,B74,'كشف حساب'!D:D) -> 0 | E74: 0
C75: =SUMIF('كشف حساب'!A:A,B75,'كشف حساب'!C:C) -> 0 | D75: =SUMIF('كشف حساب'!A:A,B75,'كشف حساب'!D:D) -> 0 | E75: 0
C76: =SUMIF('كشف حساب'!A:A,B76,'كشف حساب'!C:C) -> 0 | D76: =SUMIF('كشف حساب'!A:A,B76,'كشف حساب'!D:D) -> 0 | E76: 0
C77: =SUMIF('كشف حساب'!A:A,B77,'كشف حساب'!C:C) -> 0 | D77: =SUMIF('كشف حساب'!A:A,B77,'كشف حساب'!D:D) -> 0 | E77: 0
C78: =SUMIF('كشف حساب'!A:A,B78,'كشف حساب'!C:C) -> 0 | D78: =SUMIF('كشف حساب'!A:A,B78,'كشف حساب'!D:D) -> 0 | E78: 0
C79: =SUMIF('كشف حساب'!A:A,B79,'كشف حساب'!C:C) -> 0 | D79: =SUMIF('كشف حساب'!A:A,B79,'كشف حساب'!D:D) -> 0 | E79: 0
C80: =SUMIF('كشف حساب'!A:A,B80,'كشف حساب'!C:C) -> 0 | D80: =SUMIF('كشف حساب'!A:A,B80,'كشف حساب'!D:D) -> 0 | E80: 0
C81: =SUMIF('كشف حساب'!A:A,B81,'كشف حساب'!C:C) -> 0 | D81: =SUMIF('كشف حساب'!A:A,B81,'كشف حساب'!D:D) -> 0 | E81: 0
C82: =SUMIF('كشف حساب'!A:A,B82,'كشف حساب'!C:C) -> 0 | D82: =SUMIF('كشف حساب'!A:A,B82,'كشف حساب'!D:D) -> 0 | E82: 0
C83: =SUMIF('كشف حساب'!A:A,B83,'كشف حساب'!C:C) -> 0 | D83: =SUMIF('كشف حساب'!A:A,B83,'كشف حساب'!D:D) -> 0 | E83: 0
C84: =SUMIF('كشف حساب'!A:A,B84,'كشف حساب'!C:C) -> 0 | D84: =SUMIF('كشف حساب'!A:A,B84,'كشف حساب'!D:D) -> 0 | E84: 0
C85: =SUMIF('كشف حساب'!A:A,B85,'كشف حساب'!C:C) -> 0 | D85: =SUMIF('كشف حساب'!A:A,B85,'كشف حساب'!D:D) -> 0 | E85: =C85-D85 -> 0
C86: =SUMIF('كشف حساب'!A:A,B86,'كشف حساب'!C:C) -> 0 | D86: =SUMIF('كشف حساب'!A:A,B86,'كشف حساب'!D:D) -> 0 | E86: 0
C87: =SUMIF('كشف حساب'!A:A,B87,'كشف حساب'!C:C) -> 0 | D87: =SUMIF('كشف حساب'!A:A,B87,'كشف حساب'!D:D) -> 0 | E87: 0
C88: =SUMIF('كشف حساب'!A:A,B88,'كشف حساب'!C:C) -> 0 | D88: =SUMIF('كشف حساب'!A:A,B88,'كشف حساب'!D:D) -> 0 | E88: 0
C89: =SUMIF('كشف حساب'!A:A,B89,'كشف حساب'!C:C) -> 0 | D89: =SUMIF('كشف حساب'!A:A,B89,'كشف حساب'!D:D) -> 0 | E89: 0
C90: =SUMIF('كشف حساب'!A:A,B90,'كشف حساب'!C:C) -> 0 | D90: =SUMIF('كشف حساب'!A:A,B90,'كشف حساب'!D:D) -> 0 | E90: 0
C91: =SUMIF('كشف حساب'!A:A,B91,'كشف حساب'!C:C) -> 0 | D91: =SUMIF('كشف حساب'!A:A,B91,'كشف حساب'!D:D) -> 0 | E91: 0
C92: =SUMIF('كشف حساب'!A:A,B92,'كشف حساب'!C:C) -> 0 | D92: =SUMIF('كشف حساب'!A:A,B92,'كشف حساب'!D:D) -> 0 | E92: 0
C93: =SUMIF('كشف حساب'!A:A,B93,'كشف حساب'!C:C) -> 0 | D93: =SUMIF('كشف حساب'!A:A,B93,'كشف حساب'!D:D) -> 0 | E93: 0
C94: =SUMIF('كشف حساب'!A:A,B94,'كشف حساب'!C:C) -> 0 | D94: =SUMIF('كشف حساب'!A:A,B94,'كشف حساب'!D:D) -> 0 | E94: 0
C95: =SUMIF('كشف حساب'!A:A,B95,'كشف حساب'!C:C) -> 0 | D95: =SUMIF('كشف حساب'!A:A,B95,'كشف حساب'!D:D) -> 0 | E95: 0
C96: =SUMIF('كشف حساب'!A:A,B96,'كشف حساب'!C:C) -> 0 | D96: =SUMIF('كشف حساب'!A:A,B96,'كشف حساب'!D:D) -> 0 | E96: 0
C97: =SUMIF('كشف حساب'!A:A,B97,'كشف حساب'!C:C) -> 0 | D97: =SUMIF('كشف حساب'!A:A,B97,'كشف حساب'!D:D) -> 0 | E97: 0
